Service,Expense Subtype,Merchant Name,Expense Invoice Date,Total Expense
D1200G-NEIGHBOURHOODS & GROWTH,Facilities-Advertising,FACEBK 2JMQGF66B2,01-Jul-2018,15.00
D1200G-NEIGHBOURHOODS & GROWTH,Facilities-Advertising,WH SMITH,01-Jul-2018,51.97
D1200G-NEIGHBOURHOODS & GROWTH,Consultancy-Business,CANVAS EVENTS LTD,01-Jul-2018,72.00
D1200G-NEIGHBOURHOODS & GROWTH,Travel/Subsistence,TFL CYCLE HIRE,01-Jul-2018,6.00
D1300G-CORPORATE RESOURCES,Accommodation,NATIONBUILDER,01-Jul-2018,172.53
D1300G-CORPORATE RESOURCES,Domestic Goods-Other,ARGOS RETAIL GROUP,01-Jul-2018,-74.98
D1300G-CORPORATE RESOURCES,Travel/Subsistence,OYSTER AUTO-TOP UP,01-Jul-2018,40.00
D1300G-CORPORATE RESOURCES,Education-Library Books,Amazon UK Marketplace,01-Jul-2018,33.45
D1300G-CORPORATE RESOURCES,Travel/Subsistence,OYSTER AUTO-TOP UP,01-Jul-2018,80.00
D1300G-CORPORATE RESOURCES,Travel/Subsistence,OYSTER AUTO-TOP UP,01-Jul-2018,40.00
D1400G-CHILDREN'S SERVICES,Travel/Subsistence,OYSTER AUTO-TOP UP,01-Jul-2018,60.00
D1800G-NEIGHBOURHOODS & GROWTH (HRA),Education-Library Books,Amazon UK Marketplace,01-Jul-2018,41.46
D1100G-ADULTS & PUBLIC HEALTH,Catering Food & Drink,ICELAND,02-Jul-2018,12.08
D1100G-ADULTS & PUBLIC HEALTH,Catering Food & Drink,WWW.ICELAND.CO.UK,02-Jul-2018,126.56
D1200G-NEIGHBOURHOODS & GROWTH,Travel/Subsistence,OFO GB Prepaid,02-Jul-2018,0.70
D1200G-NEIGHBOURHOODS & GROWTH,IT Software,DEBENHAMSELECTRIC,02-Jul-2018,200.00
D1200G-NEIGHBOURHOODS & GROWTH,IT Software,ADOBE  CREATIVE CLOUD,02-Jul-2018,41.62
D1200G-NEIGHBOURHOODS & GROWTH,Education-Library Books,Amazon UK Marketplace,02-Jul-2018,19.98
D1200G-NEIGHBOURHOODS & GROWTH,IT Software,ADOBE  CREATIVE CLOUD,02-Jul-2018,41.62
D1300G-CORPORATE RESOURCES,Travel/Subsistence,OYSTER ONLINE,02-Jul-2018,30.00
D1300G-CORPORATE RESOURCES,Travel/Subsistence,OYSTER ONLINE,02-Jul-2018,20.00
D1300G-CORPORATE RESOURCES,Travel/Subsistence,TRAINLINE,02-Jul-2018,49.40
D1300G-CORPORATE RESOURCES,Catering Food & Drink,SAINSBURY'S SMKT,02-Jul-2018,10.05
D1300G-CORPORATE RESOURCES,Horticultural-Other,WWW.PRESTIGEFLOWERS.CO.U,02-Jul-2018,29.29
D1300G-CORPORATE RESOURCES,Financial Services,LEWISHAM COUNCIL,02-Jul-2018,20.00
D1300G-CORPORATE RESOURCES,Catering Food & Drink,MARKS&SPENCER PLC SACA,02-Jul-2018,198.87
D1300G-CORPORATE RESOURCES,Travel/Subsistence,OYSTER ONLINE,02-Jul-2018,29.18
D1300G-CORPORATE RESOURCES,Travel/Subsistence,TFL ROAD CHARGE,02-Jul-2018,11.50
D1400G-CHILDREN'S SERVICES,Education-Other,AMAZON SVCS EU-UK AMAZON.,02-Jul-2018,5.49
D1400G-CHILDREN'S SERVICES,Education-Library Books,AMAZON SVCS EU-UK AMAZON.,02-Jul-2018,6.63
D1400G-CHILDREN'S SERVICES,Education-Library Books,AMAZON EU AMAZON.CO.UK,02-Jul-2018,5.31
D1100G-ADULTS & PUBLIC HEALTH,Conference Expenses,PUBLIC HEALTH ENGLAND,03-Jul-2018,440.00
D1100G-ADULTS & PUBLIC HEALTH,Catering Food & Drink,LIDL UK LONDON,03-Jul-2018,22.18
D1100G-ADULTS & PUBLIC HEALTH,Domestic Goods-Other,ARGOS RETAIL GROUP,03-Jul-2018,14.99
D1100G-ADULTS & PUBLIC HEALTH,Financial Services,ROYAL BANK UK /,03-Jul-2018,400.00
D1100G-ADULTS & PUBLIC HEALTH,Catering Food & Drink,TESCO STORE 2764,03-Jul-2018,161.99
D1200G-NEIGHBOURHOODS & GROWTH,Professional & Advisory Services,WWW.FTA.CO.UK,03-Jul-2018,13.20
D1300G-CORPORATE RESOURCES,Accommodation,NATIONBUILDER,03-Jul-2018,69.86
D1300G-CORPORATE RESOURCES,Catering Food & Drink,TESCO STORE 2143,03-Jul-2018,31.24
D1300G-CORPORATE RESOURCES,Taxi Fares,BRUNO SHCOOL RUN,03-Jul-2018,125.00
D1300G-CORPORATE RESOURCES,Financial Services,LAMBETH INTERNET PAYM,03-Jul-2018,798.00
D1300G-CORPORATE RESOURCES,Travel/Subsistence,OYSTER AUTO-TOP UP,03-Jul-2018,20.00
D1300G-CORPORATE RESOURCES,Education-Arts/Crafts,WWW.ISTOCK.COM,03-Jul-2018,750.00
D1300G-CORPORATE RESOURCES,Travel/Subsistence,OYSTER ONLINE,03-Jul-2018,30.00
D1300G-CORPORATE RESOURCES,Taxi Fares,GREYHOUND CARS LTD,03-Jul-2018,37.30
D1300G-CORPORATE RESOURCES,Domestic Goods-Other,WWW.ARGOS.CO.UK,03-Jul-2018,247.92
D1300G-CORPORATE RESOURCES,Travel/Subsistence,OYSTER ONLINE,03-Jul-2018,20.00
D1300G-CORPORATE RESOURCES,Domestic Goods-Other,ARGOS RETAIL GROUP,03-Jul-2018,49.96
D1300G-CORPORATE RESOURCES,IT Software-Customised,WP-HANDS FREE COMP,03-Jul-2018,138.00
D1300G-CORPORATE RESOURCES,Clothing-Children/Adults,GRADUATION SERVICE,03-Jul-2018,279.00
D1300G-CORPORATE RESOURCES,Domestic Goods-Other,WWW.ARGOS.CO.UK,03-Jul-2018,186.93
D1300G-CORPORATE RESOURCES,Facilities-Advertising,EXPRESS NEWS,03-Jul-2018,50.00
D1300G-CORPORATE RESOURCES,Domestic Goods-Other,AWS #139903033,03-Jul-2018,137.21
D1400G-CHILDREN'S SERVICES,Education-Library Books,AMAZON SVCS EU-UK AMAZON.,03-Jul-2018,8.78
D1400G-CHILDREN'S SERVICES,Education-Library Books,AMAZON SVCS EU-UK AMAZON.,03-Jul-2018,3.10
D1400G-CHILDREN'S SERVICES,Domestic Goods-Other,ARGOS LTD,03-Jul-2018,0.00
D1400G-CHILDREN'S SERVICES,Education-Library Books,AMAZON SVCS EU-UK AMAZON.,03-Jul-2018,25.20
D1400G-CHILDREN'S SERVICES,Domestic Goods-Other,ONE4ALL GIFT CARD,03-Jul-2018,0.00
D1400G-CHILDREN'S SERVICES,Domestic Goods-Other,ARGOS LTD,03-Jul-2018,9.98
D1100G-ADULTS & PUBLIC HEALTH,Financial Services,CASH ADVANCE FEE,04-Jul-2018,11.80
D1100G-ADULTS & PUBLIC HEALTH,Catering Food & Drink,CO-OP GROUP FOOD,04-Jul-2018,10.63
D1100G-ADULTS & PUBLIC HEALTH,Domestic Goods-Other,WWW.ARGOS.CO.UK,04-Jul-2018,203.94
D1100G-ADULTS & PUBLIC HEALTH,Taxi Fares,WWW.ADDISONLEE.COM,04-Jul-2018,142.80
D1200G-NEIGHBOURHOODS & GROWTH,Facilities-Market Research,WLY,04-Jul-2018,15.00
D1200G-NEIGHBOURHOODS & GROWTH,Education-Library Books,AMAZON SVCS EU-UK AMAZON.,04-Jul-2018,59.94
D1200G-NEIGHBOURHOODS & GROWTH,Education-Library Books,Amazon UK Marketplace,04-Jul-2018,8.99
D1300G-CORPORATE RESOURCES,Travel/Subsistence,OYSTER AUTO-TOP UP,04-Jul-2018,40.00
D1300G-CORPORATE RESOURCES,Arts & Leisure Services,ATTRACTION AND EVENT TICK,04-Jul-2018,36.00
D1300G-CORPORATE RESOURCES,Travel/Subsistence,OYSTER ONLINE,04-Jul-2018,180.00
D1300G-CORPORATE RESOURCES,Financial Services-Grants,CORAM ACADEMY LTD,04-Jul-2018,74.75
D1300G-CORPORATE RESOURCES,Financial Services,GOV.UK,04-Jul-2018,101.92
D1300G-CORPORATE RESOURCES,Travel/Subsistence,OYSTER ONLINE,04-Jul-2018,39.55
D1300G-CORPORATE RESOURCES,Travel/Subsistence,OYSTER AUTO-TOP UP,04-Jul-2018,20.00
D1300G-CORPORATE RESOURCES,Catering Food & Drink,SAINSBURYS S/MKTS,04-Jul-2018,30.00
D1300G-CORPORATE RESOURCES,Travel/Subsistence,OYSTER ONLINE,04-Jul-2018,-20.00
D1300G-CORPORATE RESOURCES,Financial Services,GRO HM PASSPORT OFFICE,04-Jul-2018,9.25
D1300G-CORPORATE RESOURCES,Domestic Goods-Other,ARGOS,04-Jul-2018,-8.99
D1300G-CORPORATE RESOURCES,Travel/Subsistence,OYSTER AUTO-TOP UP,04-Jul-2018,80.00
D1300G-CORPORATE RESOURCES,Catering Food & Drink,TESCO STORES 5999,04-Jul-2018,49.10
D1300G-CORPORATE RESOURCES,Legal Services-Other,HMCOURTS-SERVICE.G,04-Jul-2018,7536.00
D1300G-CORPORATE RESOURCES,Consultancy-Business,BIRTHSDEATHSMARRIAGES.IE,04-Jul-2018,44.51
D1300G-CORPORATE RESOURCES,Domestic Goods-Other,WWW.ARGOS.CO.UK,04-Jul-2018,93.94
D1300G-CORPORATE RESOURCES,Travel/Subsistence,OYSTER AUTO-TOP UP,04-Jul-2018,20.00
D1300G-CORPORATE RESOURCES,Education-Other,WWW.IANTAIT.BIZ,04-Jul-2018,105.00
D1300G-CORPORATE RESOURCES,Travel/Subsistence,OYSTER ONLINE,04-Jul-2018,85.00
D1300G-CORPORATE RESOURCES,Taxi Fares,WWW.MINICABS.CO.UK,04-Jul-2018,35.00
D1300G-CORPORATE RESOURCES,Financial Services,WWW.CITIZENCARD.COM,04-Jul-2018,60.00
D1300G-CORPORATE RESOURCES,IT Software-Customised,PANTHEON SYSTEMS INC,04-Jul-2018,19.54
D1300G-CORPORATE RESOURCES,Travel/Subsistence,OYSTER AUTO-TOP UP,04-Jul-2018,40.00
D1300G-CORPORATE RESOURCES,Travel/Subsistence,OYSTER AUTO-TOP UP,04-Jul-2018,40.00
D1300G-CORPORATE RESOURCES,Travel/Subsistence,OYSTER AUTO-TOP UP,04-Jul-2018,20.00
D1300G-CORPORATE RESOURCES,Taxi Fares,FAMILY COURT TO SW17,04-Jul-2018,50.00
D1300G-CORPORATE RESOURCES,Travel/Subsistence,TRAINLINE,04-Jul-2018,33.35
D1400G-CHILDREN'S SERVICES,Education-Library Books,AMAZON SVCS EU-UK AMAZON.,04-Jul-2018,11.99
D1400G-CHILDREN'S SERVICES,Travel/Subsistence,OYSTER AUTO-TOP UP,04-Jul-2018,80.00
D1400G-CHILDREN'S SERVICES,Catering Food & Drink,JAMAICA SPICE BAKERY L,04-Jul-2018,14.40
D1400G-CHILDREN'S SERVICES,Catering Food & Drink,ICELAND,04-Jul-2018,9.08
D1400G-CHILDREN'S SERVICES,Catering Food & Drink,MARKS&SPENCER PLC SACA,04-Jul-2018,28.75
D1400G-CHILDREN'S SERVICES,Education-Other,AMAZON SVCS EU-UK AMAZON.,04-Jul-2018,2.49
D1100G-ADULTS & PUBLIC HEALTH,Catering Food & Drink,TESCO STORE 2764,05-Jul-2018,139.52
D1100G-ADULTS & PUBLIC HEALTH,Organised Activities,CLEAR PRINTS DIGITAL,05-Jul-2018,1995.00
D1100G-ADULTS & PUBLIC HEALTH,Legal Services-Other,HMCOURTS-SERVICE.G,05-Jul-2018,150.00
D1100G-ADULTS & PUBLIC HEALTH,Taxi Fares,WWW.ADDISONLEE.COM,05-Jul-2018,12.70
D1200G-NEIGHBOURHOODS & GROWTH,IT Services,PAYPAL,05-Jul-2018,50.36
D1200G-NEIGHBOURHOODS & GROWTH,Furniture-Domestic Furniture,SDS (LONDON) LTD,05-Jul-2018,34.57
D1200G-NEIGHBOURHOODS & GROWTH,Furniture-Domestic Furniture,WWW.IKEA.COM,05-Jul-2018,55.00
D1200G-NEIGHBOURHOODS & GROWTH,Building-General,LEYLAND SDM CLAPHAM HIGH,05-Jul-2018,19.20
D1200G-NEIGHBOURHOODS & GROWTH,Horticultural-Other,PITCHCARE ONLINE,05-Jul-2018,190.20
D1300G-CORPORATE RESOURCES,Domestic Goods-Other,WWW.JOHNLEWIS.COM,05-Jul-2018,13.50
D1300G-CORPORATE RESOURCES,Travel/Subsistence,OYSTER AUTO-TOP UP,05-Jul-2018,20.00
D1300G-CORPORATE RESOURCES,Taxi Fares,WWW.MINICABS.CO.UK,05-Jul-2018,-35.00
D1300G-CORPORATE RESOURCES,Travel/Subsistence,TRAINLINE,05-Jul-2018,91.30
D1300G-CORPORATE RESOURCES,Building-Floors,FLOOR FASHION LTD,05-Jul-2018,432.00
D1300G-CORPORATE RESOURCES,IT Software,WWW.WEVIDEO.COM/CHARGE,05-Jul-2018,12.48
D1300G-CORPORATE RESOURCES,Travel/Subsistence,OYSTER ONLINE,05-Jul-2018,30.00
D1300G-CORPORATE RESOURCES,Taxi Fares,SW2 TO CR3,05-Jul-2018,55.00
D1300G-CORPORATE RESOURCES,Travel/Subsistence,OYSTER AUTO-TOP UP,05-Jul-2018,20.00
D1300G-CORPORATE RESOURCES,Travel/Subsistence,OYSTER AUTO-TOP UP,05-Jul-2018,20.00
D1300G-CORPORATE RESOURCES,Domestic Goods-Other,WWW.ARGOS.CO.UK,05-Jul-2018,58.94
D1300G-CORPORATE RESOURCES,Taxi Fares,ABEX65A8C LONDON NET C,05-Jul-2018,23.90
D1300G-CORPORATE RESOURCES,Taxi Fares,CATAX LTD,05-Jul-2018,60.00
D1300G-CORPORATE RESOURCES,Travel/Subsistence,OYSTER AUTO-TOP UP,05-Jul-2018,80.00
D1300G-CORPORATE RESOURCES,Domestic Goods-Other,WWW.ARGOS.CO.UK,05-Jul-2018,501.92
D1300G-CORPORATE RESOURCES,Financial Services,DVLA DRIVER ONLINE,05-Jul-2018,34.00
D1300G-CORPORATE RESOURCES,Financial Services,LAND REGISTRY,05-Jul-2018,3.00
D1300G-CORPORATE RESOURCES,Taxi Fares,E11 TO E4,05-Jul-2018,53.00
D1300G-CORPORATE RESOURCES,Travel/Subsistence,OYSTER AUTO-TOP UP,05-Jul-2018,80.00
D1300G-CORPORATE RESOURCES,Financial Services-Grants,PAYPAL,05-Jul-2018,140.00
D1300G-CORPORATE RESOURCES,Financial Services-Grants,WWW.CORAM.ORG.UK,05-Jul-2018,1218.00
D1400G-CHILDREN'S SERVICES,Domestic Goods-Other,THE POST OFFICE,05-Jul-2018,0.00
D1400G-CHILDREN'S SERVICES,Travel/Subsistence,OYSTER AUTO-TOP UP,05-Jul-2018,80.00
D1400G-CHILDREN'S SERVICES,Financial Services,LONDON BRGH OF LAMBETH,05-Jul-2018,30.00
D1400G-CHILDREN'S SERVICES,Education-Library Books,AMAZON SVCS EU-UK AMAZON.,05-Jul-2018,10.21
D1100G-ADULTS & PUBLIC HEALTH,Catering Food & Drink,WWW.ICELAND.CO.UK,06-Jul-2018,137.19
D1100G-ADULTS & PUBLIC HEALTH,Education-Other,HIGHSPEEDTRAINING.CO.U,06-Jul-2018,120.00
D1200G-NEIGHBOURHOODS & GROWTH,Clothing-Children/Adults,WWW.MINNA.CO.UK,06-Jul-2018,100.00
D1200G-NEIGHBOURHOODS & GROWTH,Accommodation,LBS WORLDWIDE LTD,06-Jul-2018,168.84
D1200G-NEIGHBOURHOODS & GROWTH,Domestic Goods-Other,PAYPAL,06-Jul-2018,-142.68
D1200G-NEIGHBOURHOODS & GROWTH,Utilities,CASTLE WATER,06-Jul-2018,60.87
D1300G-CORPORATE RESOURCES,Travel/Subsistence,OYSTER ONLINE,06-Jul-2018,169.00
D1300G-CORPORATE RESOURCES,Travel/Subsistence,OYSTER AUTO-TOP UP,06-Jul-2018,60.00
D1300G-CORPORATE RESOURCES,Building-Floors,CARPETRIGHT,06-Jul-2018,535.64
D1300G-CORPORATE RESOURCES,Catering Food & Drink,TESCO STORES 5999,06-Jul-2018,72.40
D1300G-CORPORATE RESOURCES,IT Software,ABBEY CARS SE,06-Jul-2018,35.00
D1300G-CORPORATE RESOURCES,Travel/Subsistence,OYSTER AUTO-TOP UP,06-Jul-2018,20.00
D1300G-CORPORATE RESOURCES,Furniture-Domestic Furniture,WWW.IKEA.COM,06-Jul-2018,125.00
D1300G-CORPORATE RESOURCES,Domestic Goods-Other,WWW.ARGOS.CO.UK,06-Jul-2018,53.94
D1300G-CORPORATE RESOURCES,Mail Services-Postage,POST OFFICE SELF SERVI,06-Jul-2018,31.51
D1300G-CORPORATE RESOURCES,Catering Food & Drink,TESCO STORE 2143,06-Jul-2018,88.80
D1300G-CORPORATE RESOURCES,Travel/Subsistence,OYSTER AUTO-TOP UP,06-Jul-2018,60.00
D1300G-CORPORATE RESOURCES,Domestic Goods-Other,CANFORD AUDIO PLC,06-Jul-2018,75.60
D1300G-CORPORATE RESOURCES,Taxi Fares,WWW.MINICABS.CO.UK,06-Jul-2018,118.13
D1300G-CORPORATE RESOURCES,Horticultural-Other,WWW.PRESTIGEFLOWERS.CO.U,06-Jul-2018,26.29
D1300G-CORPORATE RESOURCES,Travel/Subsistence,TFL ROAD CHARGE,06-Jul-2018,11.50
D1400G-CHILDREN'S SERVICES,Catering Food & Drink,TESCO STORE 2143,06-Jul-2018,0.00
D1400G-CHILDREN'S SERVICES,Catering Food & Drink,MARKS&SPENCER PLC SACA,06-Jul-2018,0.00
D1400G-CHILDREN'S SERVICES,Education-Library Books,Amazon UK Marketplace,06-Jul-2018,10.81
D1400G-CHILDREN'S SERVICES,Facilities-Printing,Amazon UK Retail,06-Jul-2018,11.98
D1800G-NEIGHBOURHOODS & GROWTH (HRA),Education-Library Books,Amazon UK Marketplace,06-Jul-2018,67.47
D1100G-ADULTS & PUBLIC HEALTH,Taxi Fares,WWW.ADDISONLEE.COM,07-Jul-2018,93.25
D1300G-CORPORATE RESOURCES,Travel/Subsistence,OYSTER AUTO-TOP UP,07-Jul-2018,40.00
D1300G-CORPORATE RESOURCES,Travel/Subsistence,OYSTER AUTO-TOP UP,07-Jul-2018,60.00
D1300G-CORPORATE RESOURCES,Travel/Subsistence,OYSTER AUTO-TOP UP,07-Jul-2018,40.00
D1300G-CORPORATE RESOURCES,Travel/Subsistence,OYSTER AUTO-TOP UP,07-Jul-2018,120.00
D1400G-CHILDREN'S SERVICES,Travel/Subsistence,OYSTER AUTO-TOP UP,07-Jul-2018,60.00
D1400G-CHILDREN'S SERVICES,Travel/Subsistence,OYSTER AUTO-TOP UP,07-Jul-2018,40.00
D1400G-CHILDREN'S SERVICES,Education-Library Books,Amazon UK Marketplace,07-Jul-2018,123.98
D1200G-NEIGHBOURHOODS & GROWTH,Books/Publications/Resources,WHICH,08-Jul-2018,10.75
D1300G-CORPORATE RESOURCES,Travel/Subsistence,OYSTER AUTO-TOP UP,08-Jul-2018,20.00
D1300G-CORPORATE RESOURCES,Travel/Subsistence,OYSTER AUTO-TOP UP,08-Jul-2018,20.00
D1300G-CORPORATE RESOURCES,Travel/Subsistence,OYSTER AUTO-TOP UP,08-Jul-2018,40.00
D1300G-CORPORATE RESOURCES,Travel/Subsistence,OYSTER AUTO-TOP UP,08-Jul-2018,20.00
D1400G-CHILDREN'S SERVICES,Travel/Subsistence,TFL AUTOSETTLEMENT,08-Jul-2018,0.00
D1400G-CHILDREN'S SERVICES,Education-Library Books,Amazon UK Retail,08-Jul-2018,14.99
D1400G-CHILDREN'S SERVICES,Travel/Subsistence,OYSTER AUTO-TOP UP,08-Jul-2018,20.00
D1100G-ADULTS & PUBLIC HEALTH,Catering Food & Drink,SAINSBURY'S,09-Jul-2018,33.11
D1100G-ADULTS & PUBLIC HEALTH,Catering Food & Drink,TESCO STORES 5999,09-Jul-2018,57.98
D1200G-NEIGHBOURHOODS & GROWTH,Arts & Leisure Services,SPEEDGATE ENTERPRISES,09-Jul-2018,656.00
D1200G-NEIGHBOURHOODS & GROWTH,Domestic Goods-Other,WWW.AUTOTAG.CO.UK,09-Jul-2018,37.74
D1200G-NEIGHBOURHOODS & GROWTH,Facilities-Market Research,WLY,09-Jul-2018,15.00
D1200G-NEIGHBOURHOODS & GROWTH,Stationery,WWW.BUY-STATIONERY.CO.,09-Jul-2018,28.39
D1200G-NEIGHBOURHOODS & GROWTH,Travel/Subsistence,LUL TICKET MACHINE,09-Jul-2018,110.00
D1200G-NEIGHBOURHOODS & GROWTH,Cycles Purchase,HALFORDS 0716,09-Jul-2018,199.50
D1300G-CORPORATE RESOURCES,Taxi Fares,SW8 SW4 TO SE11,09-Jul-2018,32.00
D1300G-CORPORATE RESOURCES,Travel/Subsistence,OYSTER ONLINE,09-Jul-2018,90.00
D1300G-CORPORATE RESOURCES,Taxi Fares,CIVIC CENTER TO SE1,09-Jul-2018,30.00
D1300G-CORPORATE RESOURCES,Taxi Fares,SW2 TO CR3,09-Jul-2018,55.00
D1300G-CORPORATE RESOURCES,Financial Services,LBL NOT PRESENT,09-Jul-2018,40.00
D1300G-CORPORATE RESOURCES,Travel/Subsistence,LUL TICKET MACHINE,09-Jul-2018,100.00
D1300G-CORPORATE RESOURCES,Travel/Subsistence,OYSTER ONLINE,09-Jul-2018,30.00
D1300G-CORPORATE RESOURCES,Taxi Fares,SE1 TO CIVIC CENTER,09-Jul-2018,30.00
D1300G-CORPORATE RESOURCES,Domestic Goods-Other,MOTHERCARE DIRECT-E-CO,09-Jul-2018,174.00
D1300G-CORPORATE RESOURCES,Taxi Fares,TRAVEL CAR SERVICES,09-Jul-2018,39.80
D1300G-CORPORATE RESOURCES,Travel/Subsistence,LONDON & SOUTH EAS,09-Jul-2018,28.50
D1300G-CORPORATE RESOURCES,Financial Services,LAND REGISTRY,09-Jul-2018,6.00
D1300G-CORPORATE RESOURCES,Catering Food & Drink,MARKS&SPENCER PLC SACA,09-Jul-2018,29.90
D1300G-CORPORATE RESOURCES,Travel/Subsistence,OYSTER ONLINE,09-Jul-2018,40.00
D1300G-CORPORATE RESOURCES,Catering Food & Drink,TESCO STORES-2143,09-Jul-2018,2.00
D1300G-CORPORATE RESOURCES,Catering Food & Drink,ASDA SUPERSTORE,09-Jul-2018,20.53
D1300G-CORPORATE RESOURCES,Travel/Subsistence,TRAINLINE,09-Jul-2018,75.00
D1300G-CORPORATE RESOURCES,Taxi Fares,BRUNO LAST 3 DAYS PLUS,09-Jul-2018,125.00
D1300G-CORPORATE RESOURCES,Accommodation,BRITISH A,09-Jul-2018,285.47
D1400G-CHILDREN'S SERVICES,Domestic Goods-Other,ONE4ALL GIFT CARD,09-Jul-2018,0.00
D1400G-CHILDREN'S SERVICES,Education-Library Books,Amazon UK Marketplace,09-Jul-2018,4.72
D1400G-CHILDREN'S SERVICES,Education-Library Books,Amazon UK Retail,09-Jul-2018,30.72
D1100G-ADULTS & PUBLIC HEALTH,Domestic Goods-Other,WWW.ARGOS.CO.UK,10-Jul-2018,43.94
D1100G-ADULTS & PUBLIC HEALTH,Catering Food & Drink,MN WEST NORWOOD HALAL,10-Jul-2018,118.06
D1200G-NEIGHBOURHOODS & GROWTH,Facilities-Printing,WWW.STUPRINT.COM,10-Jul-2018,120.36
D1200G-NEIGHBOURHOODS & GROWTH,Education-Library Books,Amazon UK Marketplace,10-Jul-2018,11.94
D1200G-NEIGHBOURHOODS & GROWTH,Mail Services-Postage,LONDON LETTERBOX MARKE,10-Jul-2018,712.76
D1200G-NEIGHBOURHOODS & GROWTH,Facilities-Printing,CLEAR PRINTING LIMITED,10-Jul-2018,27.50
D1300G-CORPORATE RESOURCES,IT Services,HOO,10-Jul-2018,5.60
D1300G-CORPORATE RESOURCES,Travel/Subsistence,OYSTER AUTO-TOP UP,10-Jul-2018,20.00
D1300G-CORPORATE RESOURCES,Taxi Fares,SW2 TO CR3,10-Jul-2018,55.00
D1300G-CORPORATE RESOURCES,Catering Food & Drink,SAINSBURYS S/MKTS,10-Jul-2018,1.85
D1300G-CORPORATE RESOURCES,Travel/Subsistence,TRAINLINE,10-Jul-2018,121.50
D1300G-CORPORATE RESOURCES,Travel/Subsistence,OYSTER ONLINE,10-Jul-2018,115.00
D1300G-CORPORATE RESOURCES,Accommodation,EASYJET,10-Jul-2018,112.99
D1300G-CORPORATE RESOURCES,Taxi Fares,TRAVEL CAR SERVICES,10-Jul-2018,39.80
D1300G-CORPORATE RESOURCES,Travel/Subsistence,OYSTER ONLINE,10-Jul-2018,30.00
D1300G-CORPORATE RESOURCES,Travel/Subsistence,OYSTER AUTO-TOP UP,10-Jul-2018,20.00
D1300G-CORPORATE RESOURCES,Domestic Goods-Other,MOTHERCARE DIRECT-E-CO,10-Jul-2018,29.99
D1300G-CORPORATE RESOURCES,Travel/Subsistence,OYSTER ONLINE,10-Jul-2018,60.00
D1400G-CHILDREN'S SERVICES,Cleaning-Chemical,PAYPAL,10-Jul-2018,0.00
D1400G-CHILDREN'S SERVICES,Domestic Goods-Other,MARKS&SPENCER PLC SACA,10-Jul-2018,0.00
D1400G-CHILDREN'S SERVICES,Education-Musical Instruments,FIZZ DJ MUSIC STORE,10-Jul-2018,0.00
D1400G-CHILDREN'S SERVICES,Education-Library Books,Amazon UK Marketplace,10-Jul-2018,13.63
D1400G-CHILDREN'S SERVICES,Stationery,WH SMITH,10-Jul-2018,0.00
D1400G-CHILDREN'S SERVICES,Domestic Goods-Other,ONE4ALL GIFT CARD,10-Jul-2018,0.00
D1400G-CHILDREN'S SERVICES,Education-Library Books,"Amazon Svcs Europe,SAR",10-Jul-2018,14.24
D1400G-CHILDREN'S SERVICES,Domestic Goods-Other,THE POST OFFICE,10-Jul-2018,0.00
D1800G-NEIGHBOURHOODS & GROWTH (HRA),Building-Timber,BREWERS,10-Jul-2018,47.39
D1800G-NEIGHBOURHOODS & GROWTH (HRA),Building-Timber,BLISSETTS BUILDERS SUPPLI,10-Jul-2018,89.85
D1800G-NEIGHBOURHOODS & GROWTH (HRA),Building-Timber,B & Q 1037,10-Jul-2018,61.34
D1100G-ADULTS & PUBLIC HEALTH,Legal Services-Other,HMCOURTS-SERVICE.G,11-Jul-2018,150.00
D1200G-NEIGHBOURHOODS & GROWTH,Cycles Purchase,THE LONDON CYCLE WORKS,11-Jul-2018,41.00
D1200G-NEIGHBOURHOODS & GROWTH,Education-Library Books,Amazon UK Marketplace,11-Jul-2018,42.38
D1200G-NEIGHBOURHOODS & GROWTH,Education-Library Books,Amazon UK Marketplace,11-Jul-2018,29.80
D1200G-NEIGHBOURHOODS & GROWTH,Clothing-Children/Adults,WORKWEAR EXPRESS LIMITED,11-Jul-2018,982.79
D1300G-CORPORATE RESOURCES,Travel/Subsistence,OYSTER AUTO-TOP UP,11-Jul-2018,20.00
D1300G-CORPORATE RESOURCES,Travel/Subsistence,OYSTER AUTO-TOP UP,11-Jul-2018,40.00
D1300G-CORPORATE RESOURCES,Accommodation,Air Mauriti,11-Jul-2018,2540.94
D1300G-CORPORATE RESOURCES,Travel/Subsistence,OYSTER ONLINE,11-Jul-2018,30.00
D1300G-CORPORATE RESOURCES,Travel/Subsistence,OYSTER ONLINE,11-Jul-2018,-30.00
D1300G-CORPORATE RESOURCES,Travel/Subsistence,OYSTER AUTO-TOP UP,11-Jul-2018,60.00
D1300G-CORPORATE RESOURCES,Mail Services-Postage,POST OFFICE COUNTER,11-Jul-2018,38.04
D1300G-CORPORATE RESOURCES,Travel/Subsistence,OYSTER ONLINE,11-Jul-2018,-40.00
D1300G-CORPORATE RESOURCES,Facilities-Market Research,Amazon Prime,11-Jul-2018,7.99
D1300G-CORPORATE RESOURCES,Taxi Fares,SW17 TO FC N E11,11-Jul-2018,35.00
D1400G-CHILDREN'S SERVICES,Public Transport,BRIXTONHILL EXPRESS,11-Jul-2018,140.00
D1400G-CHILDREN'S SERVICES,Domestic Goods-Other,LANYARDS TOMORROW,11-Jul-2018,0.00
D1400G-CHILDREN'S SERVICES,Cleaning-Chemical,PAYPAL,11-Jul-2018,0.00
D1400G-CHILDREN'S SERVICES,Travel/Subsistence,OYSTER AUTO-TOP UP,11-Jul-2018,20.00
D1800G-NEIGHBOURHOODS & GROWTH (HRA),Building-Timber,JEWSON,11-Jul-2018,66.26
D1800G-NEIGHBOURHOODS & GROWTH (HRA),Building-Timber,SCREWFIX,11-Jul-2018,269.99
D1100G-ADULTS & PUBLIC HEALTH,Legal Services-Other,HMCOURTS-SERVICE.G,12-Jul-2018,300.00
D1100G-ADULTS & PUBLIC HEALTH,Banquet & Catering,WWW.EVENTSUPPLIES.CO.U,12-Jul-2018,190.76
D1100G-ADULTS & PUBLIC HEALTH,Domestic Goods-Other,WWW.ARGOS.CO.UK,12-Jul-2018,58.94
D1100G-ADULTS & PUBLIC HEALTH,Financial Services,LAMBETH INTERNET PAYM,12-Jul-2018,100.00
D1200G-NEIGHBOURHOODS & GROWTH,Domestic Goods-Other,AMAZON EU AMAZON.CO.UK,12-Jul-2018,4.73
D1200G-NEIGHBOURHOODS & GROWTH,Financial Services,LAMBETH INTERNET PAYM,12-Jul-2018,231.00
D1200G-NEIGHBOURHOODS & GROWTH,Building-Timber,SELCO TRADING CTR,12-Jul-2018,304.75
D1300G-CORPORATE RESOURCES,Travel/Subsistence,OYSTER AUTO-TOP UP,12-Jul-2018,40.00
D1300G-CORPORATE RESOURCES,Travel/Subsistence,LUL TICKET MACHINE,12-Jul-2018,50.00
D1300G-CORPORATE RESOURCES,Travel/Subsistence,OYSTER AUTO-TOP UP,12-Jul-2018,20.00
D1300G-CORPORATE RESOURCES,Accommodation,REIMBURSMENT,12-Jul-2018,-3.00
D1300G-CORPORATE RESOURCES,Mail Services-Postage,THE POST OFFICE,12-Jul-2018,13.43
D1300G-CORPORATE RESOURCES,IT Software,EXCEL TAXIS NETWORK,12-Jul-2018,56.00
D1300G-CORPORATE RESOURCES,Travel/Subsistence,OYSTER AUTO-TOP UP,12-Jul-2018,20.00
D1300G-CORPORATE RESOURCES,Accommodation,COMPENSATION,12-Jul-2018,-20.00
D1300G-CORPORATE RESOURCES,Telecommunications,E N S LTD,12-Jul-2018,660.76
D1300G-CORPORATE RESOURCES,Travel/Subsistence,OYSTER AUTO-TOP UP,12-Jul-2018,40.00
D1300G-CORPORATE RESOURCES,Travel/Subsistence,OYSTER AUTO-TOP UP,12-Jul-2018,40.00
D1300G-CORPORATE RESOURCES,Taxi Fares,SW2 TO CR3,12-Jul-2018,55.00
D1300G-CORPORATE RESOURCES,Travel/Subsistence,OYSTER AUTO-TOP UP,12-Jul-2018,40.00
D1300G-CORPORATE RESOURCES,IT Software,REACHING HIGHER,12-Jul-2018,110.00
D1300G-CORPORATE RESOURCES,Travel/Subsistence,OYSTER ONLINE,12-Jul-2018,60.00
D1300G-CORPORATE RESOURCES,Travel/Subsistence,OYSTER ONLINE,12-Jul-2018,50.00
D1300G-CORPORATE RESOURCES,Catering Food & Drink,TESCO STORES 5999,12-Jul-2018,72.40
D1300G-CORPORATE RESOURCES,Professional & Advisory Services,COLLEGE OF PUBLIC SPEA,12-Jul-2018,390.00
D1300G-CORPORATE RESOURCES,Travel/Subsistence,OYSTER AUTO-TOP UP,12-Jul-2018,120.00
D1300G-CORPORATE RESOURCES,Taxi Fares,TRAVEL CAR SERVICES,12-Jul-2018,39.80
D1400G-CHILDREN'S SERVICES,Education-Library Books,Amazon UK Marketplace,12-Jul-2018,30.82
D1400G-CHILDREN'S SERVICES,Catering Food & Drink,SAINSBURYS S/MKTS,12-Jul-2018,0.00
D1400G-CHILDREN'S SERVICES,Catering Equipment,ECO UK MERCHANT LTD,12-Jul-2018,0.00
D1400G-CHILDREN'S SERVICES,Travel/Subsistence,OYSTER AUTO-TOP UP,12-Jul-2018,20.00
D1400G-CHILDREN'S SERVICES,Catering Food & Drink,TESCO STORE 2143,12-Jul-2018,0.00
D1400G-CHILDREN'S SERVICES,Catering Food & Drink,SAINSBURYS S/MKTS,12-Jul-2018,0.00
D1400G-CHILDREN'S SERVICES,Catering Food & Drink,MARKS&SPENCER PLC SACA,12-Jul-2018,0.00
D1400G-CHILDREN'S SERVICES,Stationery,WH SMITH,12-Jul-2018,0.00
D1800G-NEIGHBOURHOODS & GROWTH (HRA),Facilities-Market Research,Amazon Prime,12-Jul-2018,0.99
D1800G-NEIGHBOURHOODS & GROWTH (HRA),Building-Timber,SCREWFIX,12-Jul-2018,450.29
D1200G-NEIGHBOURHOODS & GROWTH,Stationery,IDC BAND,13-Jul-2018,600.00
D1200G-NEIGHBOURHOODS & GROWTH,Building-Timber,SCREWFIX DIRECT,13-Jul-2018,22.53
D1300G-CORPORATE RESOURCES,Travel/Subsistence,OYSTER AUTO-TOP UP,13-Jul-2018,40.00
D1300G-CORPORATE RESOURCES,Education-Library Books,MAG EVENTS,13-Jul-2018,669.60
D1300G-CORPORATE RESOURCES,Travel/Subsistence,OYSTER AUTO-TOP UP,13-Jul-2018,80.00
D1300G-CORPORATE RESOURCES,Domestic Goods-Other,WWW.ARGOS.CO.UK,13-Jul-2018,93.94
D1300G-CORPORATE RESOURCES,Travel/Subsistence,NORTHERN RAIL,13-Jul-2018,121.00
D1300G-CORPORATE RESOURCES,Accommodation,BRITANNIA,13-Jul-2018,52.00
D1300G-CORPORATE RESOURCES,Travel/Subsistence,TRAINLINE,13-Jul-2018,25.05
D1300G-CORPORATE RESOURCES,Travel/Subsistence,OYSTER AUTO-TOP UP,13-Jul-2018,100.00
D1300G-CORPORATE RESOURCES,Travel/Subsistence,OYSTER AUTO-TOP UP,13-Jul-2018,40.00
D1300G-CORPORATE RESOURCES,Travel/Subsistence,OYSTER AUTO-TOP UP,13-Jul-2018,20.00
D1300G-CORPORATE RESOURCES,Travel/Subsistence,OYSTER AUTO-TOP UP,13-Jul-2018,20.00
D1400G-CHILDREN'S SERVICES,Travel/Subsistence,OYSTER AUTO-TOP UP,13-Jul-2018,20.00
D1400G-CHILDREN'S SERVICES,Catering Food & Drink,SAINSBURYS S/MKTS,13-Jul-2018,0.00
D1800G-NEIGHBOURHOODS & GROWTH (HRA),Accommodation,WWW.MEMBERS.LANDSCAPEI,13-Jul-2018,216.00
D1800G-NEIGHBOURHOODS & GROWTH (HRA),Facilities-Printing,Amazon UK Retail,13-Jul-2018,73.28
D1800G-NEIGHBOURHOODS & GROWTH (HRA),Building-Timber,SCREWFIX,13-Jul-2018,17.96
D1300G-CORPORATE RESOURCES,Travel/Subsistence,OYSTER AUTO-TOP UP,14-Jul-2018,40.00
D1300G-CORPORATE RESOURCES,Travel/Subsistence,OYSTER AUTO-TOP UP,14-Jul-2018,60.00
D1300G-CORPORATE RESOURCES,Travel/Subsistence,OYSTER AUTO-TOP UP,14-Jul-2018,20.00
D1300G-CORPORATE RESOURCES,Travel/Subsistence,OYSTER AUTO-TOP UP,14-Jul-2018,60.00
D1300G-CORPORATE RESOURCES,Travel/Subsistence,OYSTER AUTO-TOP UP,14-Jul-2018,80.00
D1300G-CORPORATE RESOURCES,Travel/Subsistence,OYSTER AUTO-TOP UP,14-Jul-2018,40.00
D1400G-CHILDREN'S SERVICES,Travel/Subsistence,OYSTER AUTO-TOP UP,14-Jul-2018,40.00
D1400G-CHILDREN'S SERVICES,Travel/Subsistence,OYSTER AUTO-TOP UP,14-Jul-2018,60.00
D1800G-NEIGHBOURHOODS & GROWTH (HRA),Facilities-Market Research,WWW.INSIDEHG.CO.UK R/T,14-Jul-2018,64.50
D1200G-NEIGHBOURHOODS & GROWTH,Travel/Subsistence,ZIPCAR,15-Jul-2018,506.85
D1300G-CORPORATE RESOURCES,Travel/Subsistence,OYSTER AUTO-TOP UP,15-Jul-2018,20.00
D1300G-CORPORATE RESOURCES,Travel/Subsistence,OYSTER AUTO-TOP UP,15-Jul-2018,40.00
D1300G-CORPORATE RESOURCES,Travel/Subsistence,OYSTER AUTO-TOP UP,15-Jul-2018,60.00
D1300G-CORPORATE RESOURCES,Travel/Subsistence,OYSTER AUTO-TOP UP,15-Jul-2018,20.00
D1400G-CHILDREN'S SERVICES,Domestic Goods-Other,CUPSDIRECT.CO.UK,15-Jul-2018,59.88
D1400G-CHILDREN'S SERVICES,Travel/Subsistence,OYSTER AUTO-TOP UP,15-Jul-2018,100.00
D1400G-CHILDREN'S SERVICES,Education-Library Books,AMAZON SVCS EU-UK AMAZON.,15-Jul-2018,44.49
D1100G-ADULTS & PUBLIC HEALTH,Catering Food & Drink,SAINSBURY'S,16-Jul-2018,34.10
D1100G-ADULTS & PUBLIC HEALTH,Stationery,Amazon UK Marketplace,16-Jul-2018,14.76
D1100G-ADULTS & PUBLIC HEALTH,Catering Food & Drink,TESCO STORES 5999,16-Jul-2018,64.93
D1200G-NEIGHBOURHOODS & GROWTH,Cycles Purchase,HALFORDS 0716,16-Jul-2018,220.00
D1200G-NEIGHBOURHOODS & GROWTH,Stationery,AMAZON SVCS EU-UK AMAZON.,16-Jul-2018,7.78
D1200G-NEIGHBOURHOODS & GROWTH,Travel/Subsistence,ZIPCAR,16-Jul-2018,0.00
D1200G-NEIGHBOURHOODS & GROWTH,Facilities-Market Research,MAILCHIMP,16-Jul-2018,61.52
D1200G-NEIGHBOURHOODS & GROWTH,Healthcare Services,Amazon UK Retail,16-Jul-2018,92.00
D1200G-NEIGHBOURHOODS & GROWTH,Education-Library Books,Amazon UK Marketplace,16-Jul-2018,43.98
D1200G-NEIGHBOURHOODS & GROWTH,Mail Services-Postage,LONDON LETTERBOX MARKE,16-Jul-2018,294.00
D1200G-NEIGHBOURHOODS & GROWTH,Furniture-Domestic Furniture,WAYFAIR #2568693558,16-Jul-2018,410.98
D1200G-NEIGHBOURHOODS & GROWTH,Accommodation,Hotel on Booking.com,16-Jul-2018,478.00
D1200G-NEIGHBOURHOODS & GROWTH,Healthcare Equipment,Amazon UK Marketplace,16-Jul-2018,262.50
D1200G-NEIGHBOURHOODS & GROWTH,Stationery,Amazon UK Marketplace,16-Jul-2018,33.58
D1200G-NEIGHBOURHOODS & GROWTH,Education-Library Books,Amazon UK Marketplace,16-Jul-2018,59.78
D1200G-NEIGHBOURHOODS & GROWTH,Furniture-Domestic Furniture,WAYFAIR #2554740528,16-Jul-2018,556.96
D1300G-CORPORATE RESOURCES,Travel/Subsistence,TRAINLINE,16-Jul-2018,107.50
D1300G-CORPORATE RESOURCES,Travel/Subsistence,OYSTER ONLINE,16-Jul-2018,20.00
D1300G-CORPORATE RESOURCES,Catering Food & Drink,TESCO STORES 5999,16-Jul-2018,72.40
D1300G-CORPORATE RESOURCES,Taxi Fares,TRAVEL CAR SERVICES,16-Jul-2018,39.80
D1300G-CORPORATE RESOURCES,Education-Library Books,Amazon UK Marketplace,16-Jul-2018,27.31
D1300G-CORPORATE RESOURCES,Travel/Subsistence,OYSTER ONLINE,16-Jul-2018,30.00
D1300G-CORPORATE RESOURCES,Taxi Fares,CIVIC TO CM16,16-Jul-2018,160.00
D1300G-CORPORATE RESOURCES,Travel/Subsistence,OYSTER ONLINE,16-Jul-2018,30.00
D1300G-CORPORATE RESOURCES,Taxi Fares,SW2 TO CR3,16-Jul-2018,55.00
D1300G-CORPORATE RESOURCES,Travel/Subsistence,OYSTER ONLINE,16-Jul-2018,109.00
D1300G-CORPORATE RESOURCES,Travel/Subsistence,OYSTER ONLINE,16-Jul-2018,30.00
D1400G-CHILDREN'S SERVICES,Catering Food & Drink,TESCO STORE 2143,16-Jul-2018,7.76
D1400G-CHILDREN'S SERVICES,Education-Library Books,WWW.PRISONS.ORG.UK,16-Jul-2018,25.98
D1400G-CHILDREN'S SERVICES,Financial Services,GRO HM PASSPORT OFFICE,16-Jul-2018,23.40
D1400G-CHILDREN'S SERVICES,Education-Other,IRISH POST,16-Jul-2018,85.00
D1400G-CHILDREN'S SERVICES,Books/Publications/Resources,SAINSBURYS           CASH,16-Jul-2018,170.00
D1400G-CHILDREN'S SERVICES,Education-Library Books,WWW.PRISONS.ORG.UK,16-Jul-2018,119.18
D1800G-NEIGHBOURHOODS & GROWTH (HRA),IT Software-Customised,INTELLISOFTWARE LTD,16-Jul-2018,52.80
D1800G-NEIGHBOURHOODS & GROWTH (HRA),IT Software-Customised,INFOGRAM.COM,16-Jul-2018,-167.26
D1100G-ADULTS & PUBLIC HEALTH,Catering Food & Drink,ICELAND,17-Jul-2018,6.00
D1100G-ADULTS & PUBLIC HEALTH,Catering Food & Drink,TESCO STORE 2143,17-Jul-2018,9.00
D1200G-NEIGHBOURHOODS & GROWTH,Vehicle Maintenance,BARTON PETROLEUM,17-Jul-2018,492.00
D1200G-NEIGHBOURHOODS & GROWTH,Education-Library Books,Amazon UK Marketplace,17-Jul-2018,288.57
D1200G-NEIGHBOURHOODS & GROWTH,Stationery,Amazon UK Marketplace,17-Jul-2018,35.92
D1200G-NEIGHBOURHOODS & GROWTH,Building-Plumbing,FRASER & ELLIS LTD,17-Jul-2018,417.94
D1200G-NEIGHBOURHOODS & GROWTH,Stationery,Amazon UK Marketplace,17-Jul-2018,19.99
D1200G-NEIGHBOURHOODS & GROWTH,IT Services,AMZ*Gocableties Ltd,17-Jul-2018,262.44
D1300G-CORPORATE RESOURCES,Travel/Subsistence,LUL TICKET MACHINE,17-Jul-2018,100.00
D1300G-CORPORATE RESOURCES,Travel/Subsistence,LUL TICKET MACHINE,17-Jul-2018,30.00
D1300G-CORPORATE RESOURCES,Travel/Subsistence,WWW.SOUTHALLTRAVEL.CO.UK,17-Jul-2018,2683.96
D1300G-CORPORATE RESOURCES,Taxi Fares,CIVIC CM16 TOSW19,17-Jul-2018,320.00
D1300G-CORPORATE RESOURCES,Taxi Fares,SW2 TO CR3,17-Jul-2018,55.00
D1300G-CORPORATE RESOURCES,Travel/Subsistence,OYSTER AUTO-TOP UP,17-Jul-2018,20.00
D1300G-CORPORATE RESOURCES,Travel/Subsistence,OYSTER AUTO-TOP UP,17-Jul-2018,20.00
D1300G-CORPORATE RESOURCES,Financial Services,HM PASSPORT OFFICE,17-Jul-2018,85.00
D1300G-CORPORATE RESOURCES,Travel/Subsistence,OYSTER AUTO-TOP UP,17-Jul-2018,20.00
D1300G-CORPORATE RESOURCES,Catering Food & Drink,TESCO STORES 5999,17-Jul-2018,-1.09
D1300G-CORPORATE RESOURCES,Domestic Goods-Other,WWW.ARGOS.CO.UK,17-Jul-2018,328.92
D1300G-CORPORATE RESOURCES,Travel/Subsistence,OYSTER ONLINE,17-Jul-2018,80.00
D1300G-CORPORATE RESOURCES,Facilities-Advertising,WH SMITH,17-Jul-2018,240.00
D1300G-CORPORATE RESOURCES,Taxi Fares,TRAVEL CAR SERVICES,17-Jul-2018,39.80
D1300G-CORPORATE RESOURCES,Travel/Subsistence,TFL ROAD CHARGE,17-Jul-2018,11.50
D1300G-CORPORATE RESOURCES,Accommodation,HOLIDAY INN EXPRESS LE,17-Jul-2018,149.00
D1400G-CHILDREN'S SERVICES,Education-Library Books,AMAZON SVCS EU-UK AMAZON.,17-Jul-2018,2.81
D1400G-CHILDREN'S SERVICES,Books/Publications/Resources,CASH ADVANCE FEE,17-Jul-2018,5.02
D1400G-CHILDREN'S SERVICES,IT Software-Customised,HANDS FREE COMPUTING,17-Jul-2018,2581.20
D1400G-CHILDREN'S SERVICES,Building-Tools,HSS HIRE,17-Jul-2018,330.00
D1800G-NEIGHBOURHOODS & GROWTH (HRA),Building-Timber,JEWSON,17-Jul-2018,-33.60
D1100G-ADULTS & PUBLIC HEALTH,Catering Food & Drink,WWW.ICELAND.CO.UK,18-Jul-2018,215.78
D1200G-NEIGHBOURHOODS & GROWTH,Stationery,Amazon UK Retail,18-Jul-2018,47.62
D1200G-NEIGHBOURHOODS & GROWTH,Accommodation,PREMIER INN 44536865,18-Jul-2018,765.00
D1200G-NEIGHBOURHOODS & GROWTH,Education-Library Books,Amazon UK Marketplace,18-Jul-2018,12.40
D1200G-NEIGHBOURHOODS & GROWTH,Education-Library Books,Amazon UK Marketplace,18-Jul-2018,13.57
D1200G-NEIGHBOURHOODS & GROWTH,Education-Library Books,Amazon UK Marketplace,18-Jul-2018,9.35
D1200G-NEIGHBOURHOODS & GROWTH,Mail Services-Postage,POST OFFICE COUNTER,18-Jul-2018,27.84
D1200G-NEIGHBOURHOODS & GROWTH,Travel/Subsistence,LUL TICKET MACHINE,18-Jul-2018,50.00
D1300G-CORPORATE RESOURCES,Catering Food & Drink,SAINSBURYS S/MKTS,18-Jul-2018,1.85
D1300G-CORPORATE RESOURCES,Domestic Goods-Other,CURRYS ONLINE,18-Jul-2018,1039.94
D1300G-CORPORATE RESOURCES,Travel/Subsistence,OYSTER AUTO-TOP UP,18-Jul-2018,40.00
D1300G-CORPORATE RESOURCES,Facilities-Market Research,Prime Fresh Membership,18-Jul-2018,3.99
D1300G-CORPORATE RESOURCES,Travel/Subsistence,OYSTER AUTO-TOP UP,18-Jul-2018,60.00
D1300G-CORPORATE RESOURCES,Facilities-Storage,BIG YELLOW S S NINE EL,18-Jul-2018,246.00
D1300G-CORPORATE RESOURCES,Works-Construction,DISCOUNT CARPETS S,18-Jul-2018,528.50
D1300G-CORPORATE RESOURCES,Travel/Subsistence,OYSTER AUTO-TOP UP,18-Jul-2018,40.00
D1300G-CORPORATE RESOURCES,Financial Services,LONDON BRGH OF LAMBETH,18-Jul-2018,10.00
D1300G-CORPORATE RESOURCES,Travel/Subsistence,LUL TICKET MACHINE,18-Jul-2018,50.00
D1300G-CORPORATE RESOURCES,Furniture-Domestic Furniture,WWW.IKEA.COM,18-Jul-2018,205.00
D1300G-CORPORATE RESOURCES,Travel/Subsistence,OYSTER ONLINE,18-Jul-2018,60.00
D1300G-CORPORATE RESOURCES,Facilities-Storage,ACTIVE MOVES LTD,18-Jul-2018,144.00
D1300G-CORPORATE RESOURCES,Travel/Subsistence,OYSTER ONLINE,18-Jul-2018,30.00
D1300G-CORPORATE RESOURCES,Furniture-Domestic Furniture,WWW.IKEA.COM,18-Jul-2018,-17.50
D1400G-CHILDREN'S SERVICES,Catering Food & Drink,TESCO STORE 2143,18-Jul-2018,120.00
D1400G-CHILDREN'S SERVICES,Education-Library Books,AMZ*fbabooksandmedia,18-Jul-2018,-5.72
D1400G-CHILDREN'S SERVICES,Travel/Subsistence,OYSTER AUTO-TOP UP,18-Jul-2018,20.00
D1800G-NEIGHBOURHOODS & GROWTH (HRA),Education-Library Books,Amazon UK Marketplace,18-Jul-2018,32.97
D1100G-ADULTS & PUBLIC HEALTH,Catering Food & Drink,MN WEST NORWOOD HALAL,19-Jul-2018,57.98
D1100G-ADULTS & PUBLIC HEALTH,Conference Expenses,PUBLIC HEALTH ENGLAND,19-Jul-2018,350.00
D1100G-ADULTS & PUBLIC HEALTH,Couriers,CITYSPRINT,19-Jul-2018,19.88
D1200G-NEIGHBOURHOODS & GROWTH,Travel/Subsistence,TRAINLINE,19-Jul-2018,35.15
D1200G-NEIGHBOURHOODS & GROWTH,Catering Food & Drink,TESCO STORE 2143,19-Jul-2018,34.78
D1200G-NEIGHBOURHOODS & GROWTH,Education-Library Books,Amazon UK Marketplace,19-Jul-2018,16.65
D1200G-NEIGHBOURHOODS & GROWTH,Accommodation,PREMIER INN 44536865,19-Jul-2018,1167.00
D1200G-NEIGHBOURHOODS & GROWTH,Education-Library Books,Amazon UK Marketplace,19-Jul-2018,139.99
D1200G-NEIGHBOURHOODS & GROWTH,Consultancy-Business,WUFOO.COM,19-Jul-2018,14.00
D1200G-NEIGHBOURHOODS & GROWTH,Building-General,THE TRADE HUB,19-Jul-2018,25.98
D1200G-NEIGHBOURHOODS & GROWTH,Domestic Goods-Other,CURRYS SUPERSTORE,19-Jul-2018,99.97
D1200G-NEIGHBOURHOODS & GROWTH,Education-Library Books,Amazon UK Marketplace,19-Jul-2018,5.88
D1200G-NEIGHBOURHOODS & GROWTH,Travel/Subsistence,ZIPCAR,19-Jul-2018,52.25
D1200G-NEIGHBOURHOODS & GROWTH,Building-General,LEYLAND SDM CLAPHAM HIGH,19-Jul-2018,22.16
D1200G-NEIGHBOURHOODS & GROWTH,Catering Food & Drink,JS ONLINE GROCERY,19-Jul-2018,337.19
D1300G-CORPORATE RESOURCES,Travel/Subsistence,OYSTER AUTO-TOP UP,19-Jul-2018,120.00
D1300G-CORPORATE RESOURCES,Taxi Fares,TRAVEL CAR SERVICES,19-Jul-2018,40.50
D1300G-CORPORATE RESOURCES,Taxi Fares,SW2 TO CR3,19-Jul-2018,55.00
D1300G-CORPORATE RESOURCES,Domestic Goods-Other,SCIENCE MUSEUM,19-Jul-2018,106.00
D1300G-CORPORATE RESOURCES,Travel/Subsistence,OYSTER ONLINE,19-Jul-2018,60.00
D1300G-CORPORATE RESOURCES,Taxi Fares,WWW.MINICABS.CO.UK,19-Jul-2018,118.13
D1300G-CORPORATE RESOURCES,Travel/Subsistence,OYSTER AUTO-TOP UP,19-Jul-2018,40.00
D1300G-CORPORATE RESOURCES,Travel/Subsistence,OYSTER AUTO-TOP UP,19-Jul-2018,20.00
D1300G-CORPORATE RESOURCES,Domestic Goods-Other,MOTHERCARE UK LTD,19-Jul-2018,40.00
D1300G-CORPORATE RESOURCES,Travel/Subsistence,LUL TICKET MACHINE,19-Jul-2018,50.00
D1300G-CORPORATE RESOURCES,Domestic Goods-Other,THE SCIENCE MUSEUM,19-Jul-2018,110.00
D1300G-CORPORATE RESOURCES,Financial Services-Grants,ALLPAY MOTO (CALLPAY/I,19-Jul-2018,699.70
D1300G-CORPORATE RESOURCES,Travel/Subsistence,OYSTER AUTO-TOP UP,19-Jul-2018,40.00
D1300G-CORPORATE RESOURCES,Travel/Subsistence,EUROSTAR INTERNET,19-Jul-2018,242.00
D1300G-CORPORATE RESOURCES,Mail Services-Postage,THE POST OFFICE,19-Jul-2018,24.12
D1300G-CORPORATE RESOURCES,Travel/Subsistence,OYSTER ONLINE,19-Jul-2018,30.00
D1300G-CORPORATE RESOURCES,Travel/Subsistence,OYSTER AUTO-TOP UP,19-Jul-2018,20.00
D1300G-CORPORATE RESOURCES,Domestic Goods-Other,THE SCIENCE MUSEUM,19-Jul-2018,20.00
D1300G-CORPORATE RESOURCES,Travel/Subsistence,OYSTER ONLINE,19-Jul-2018,30.00
D1300G-CORPORATE RESOURCES,Financial Services,HM PASSPORT OFFICE,19-Jul-2018,108.00
D1300G-CORPORATE RESOURCES,Travel/Subsistence,TRAINLINE,19-Jul-2018,110.90
D1400G-CHILDREN'S SERVICES,Education-Library Books,AMAZON SVCS EU-UK AMAZON.,19-Jul-2018,10.79
D1400G-CHILDREN'S SERVICES,Catering Food & Drink,HERNE HILL LONDIS,19-Jul-2018,156.90
D1400G-CHILDREN'S SERVICES,Travel/Subsistence,OYSTER AUTO-TOP UP,19-Jul-2018,40.00
D1800G-NEIGHBOURHOODS & GROWTH (HRA),Travel/Subsistence,LUL TICKET MACHINE,19-Jul-2018,110.00
D1800G-NEIGHBOURHOODS & GROWTH (HRA),Building-Timber,SCREWFIX,19-Jul-2018,50.97
D1800G-NEIGHBOURHOODS & GROWTH (HRA),Facilities-Market Research,Amazon Prime,19-Jul-2018,7.99
D1800G-NEIGHBOURHOODS & GROWTH (HRA),Education-Library Books,Amazon UK Marketplace,19-Jul-2018,4.50
D1100G-ADULTS & PUBLIC HEALTH,Legal Services-Other,HMCOURTS-SERVICE.G,20-Jul-2018,75.00
D1200G-NEIGHBOURHOODS & GROWTH,Cycles Purchase,HALFORDS 0716,20-Jul-2018,7.78
D1200G-NEIGHBOURHOODS & GROWTH,Building-Timber,ACRE LANE TIMBER LTD,20-Jul-2018,19.79
D1200G-NEIGHBOURHOODS & GROWTH,Education-Library Books,Amazon UK Marketplace,20-Jul-2018,23.60
D1200G-NEIGHBOURHOODS & GROWTH,Travel/Subsistence,OYSTER AUTO-TOP UP,20-Jul-2018,20.00
D1300G-CORPORATE RESOURCES,Education-Library Books,Amazon UK Marketplace,20-Jul-2018,612.35
D1300G-CORPORATE RESOURCES,Financial Services-Grants,THE POPPY APPEAL,20-Jul-2018,340.00
D1300G-CORPORATE RESOURCES,Domestic Goods-Other,WWW.ARGOS.CO.UK,20-Jul-2018,45.42
D1300G-CORPORATE RESOURCES,Catering Food & Drink,TESCO STORES 6560,20-Jul-2018,40.00
D1300G-CORPORATE RESOURCES,Financial Services,M&S BRIXTON,20-Jul-2018,50.00
D1300G-CORPORATE RESOURCES,Catering Food & Drink,TESCO STORES 5999,20-Jul-2018,105.10
D1300G-CORPORATE RESOURCES,Domestic Goods-Other,ARGOS,20-Jul-2018,42.98
D1300G-CORPORATE RESOURCES,Travel/Subsistence,OYSTER AUTO-TOP UP,20-Jul-2018,40.00
D1300G-CORPORATE RESOURCES,Domestic Goods-Other,WWW.ARGOS.CO.UK,20-Jul-2018,162.94
D1300G-CORPORATE RESOURCES,Travel/Subsistence,OYSTER AUTO-TOP UP,20-Jul-2018,40.00
D1300G-CORPORATE RESOURCES,Domestic Goods-Other,ARGOS RETAIL GROUP,20-Jul-2018,23.97
D1300G-CORPORATE RESOURCES,Domestic Goods-Other,WWW.ARGOS.CO.UK,20-Jul-2018,54.99
D1300G-CORPORATE RESOURCES,Taxi Fares,CIVIC TO KINGS,20-Jul-2018,20.00
D1300G-CORPORATE RESOURCES,Taxi Fares,SE15 TO CR7,20-Jul-2018,280.00
D1300G-CORPORATE RESOURCES,Domestic Goods-Other,WWW.ARGOS.CO.UK,20-Jul-2018,1625.67
D1300G-CORPORATE RESOURCES,Telecommunications,O2 UK PAYMENT,20-Jul-2018,232.13
D1300G-CORPORATE RESOURCES,IT Software,ADOBE  CREATIVE CLOUD,20-Jul-2018,141.60
D1300G-CORPORATE RESOURCES,Travel/Subsistence,OYSTER AUTO-TOP UP,20-Jul-2018,40.00
D1300G-CORPORATE RESOURCES,Catering Food & Drink,MARKS&SPENCER PLC,20-Jul-2018,59.25
D1300G-CORPORATE RESOURCES,Financial Services-Grants,PAYPAL,20-Jul-2018,216.00
D1300G-CORPORATE RESOURCES,Travel/Subsistence,OYSTER ONLINE,20-Jul-2018,30.00
D1300G-CORPORATE RESOURCES,Legal Services-Other,MARSTON GROUP LTD,20-Jul-2018,102.50
D1300G-CORPORATE RESOURCES,Furniture-Domestic Furniture,WWW.IKEA.COM,20-Jul-2018,467.50
D1300G-CORPORATE RESOURCES,Telecommunications,O2 UK PAYMENT,20-Jul-2018,232.61
D1300G-CORPORATE RESOURCES,Financial Services,NATWEST BANK  /,20-Jul-2018,340.00
D1300G-CORPORATE RESOURCES,Taxi Fares,WWW.ADDISONLEE.COM,20-Jul-2018,53.65
D1400G-CHILDREN'S SERVICES,Travel/Subsistence,OYSTER AUTO-TOP UP,20-Jul-2018,40.00
D1400G-CHILDREN'S SERVICES,Education-Library Books,Amazon UK Marketplace,20-Jul-2018,31.76
D1400G-CHILDREN'S SERVICES,Education-Other,PAYPAL,20-Jul-2018,90.00
D1400G-CHILDREN'S SERVICES,Education-Library Books,Amazon UK Marketplace,20-Jul-2018,27.71
D1100G-ADULTS & PUBLIC HEALTH,Taxi Fares,Taxicentrale Amsterdam BV,21-Jul-2018,45.20
D1100G-ADULTS & PUBLIC HEALTH,Accommodation,IBIS AMSTERDAM,21-Jul-2018,57.95
D1200G-NEIGHBOURHOODS & GROWTH,Horticultural-Seeds & Plants,WHITTINGTONS (LONDON),21-Jul-2018,17.62
D1200G-NEIGHBOURHOODS & GROWTH,Taxi Fares,UBER TRIP JVM53 HELP.UBER,21-Jul-2018,5.90
D1200G-NEIGHBOURHOODS & GROWTH,Horticultural-Other,Dennis Edwards Flowers,21-Jul-2018,25.00
D1200G-NEIGHBOURHOODS & GROWTH,Taxi Fares,UBER TRIP SICKM HELP.UBER,21-Jul-2018,11.72
D1300G-CORPORATE RESOURCES,Travel/Subsistence,OYSTER AUTO-TOP UP,21-Jul-2018,60.00
D1300G-CORPORATE RESOURCES,Facilities-Market Research,WLY,21-Jul-2018,15.00
D1300G-CORPORATE RESOURCES,Travel/Subsistence,OYSTER AUTO-TOP UP,21-Jul-2018,40.00
D1300G-CORPORATE RESOURCES,Travel/Subsistence,OYSTER AUTO-TOP UP,21-Jul-2018,20.00
D1300G-CORPORATE RESOURCES,Travel/Subsistence,OYSTER AUTO-TOP UP,21-Jul-2018,60.00
D1400G-CHILDREN'S SERVICES,Building-Tools,DENTONS CATERING EQUIP,21-Jul-2018,6.98
D1400G-CHILDREN'S SERVICES,Education-Library Books,Amazon UK Marketplace,21-Jul-2018,6.20
D1400G-CHILDREN'S SERVICES,Travel/Subsistence,OYSTER AUTO-TOP UP,21-Jul-2018,20.00
D1400G-CHILDREN'S SERVICES,Building-Tools,DENTONS CATERING EQUIP,21-Jul-2018,61.63
D1400G-CHILDREN'S SERVICES,Education-Arts/Crafts,BAKER ROSS LTD,21-Jul-2018,126.77
D1800G-NEIGHBOURHOODS & GROWTH (HRA),Facilities-Market Research,Amazon Prime,21-Jul-2018,7.99
D1200G-NEIGHBOURHOODS & GROWTH,Taxi Fares,UBER TRIP 5VK5I HELP.UBER,22-Jul-2018,5.88
D1200G-NEIGHBOURHOODS & GROWTH,Travel/Subsistence,ZIPCAR,22-Jul-2018,28.50
D1300G-CORPORATE RESOURCES,Travel/Subsistence,OYSTER AUTO-TOP UP,22-Jul-2018,80.00
D1300G-CORPORATE RESOURCES,Travel/Subsistence,OYSTER AUTO-TOP UP,22-Jul-2018,20.00
D1300G-CORPORATE RESOURCES,Education-Library Books,Amazon UK Marketplace,22-Jul-2018,15.23
D1300G-CORPORATE RESOURCES,Stationery,Amazon UK Marketplace,22-Jul-2018,41.25
D1300G-CORPORATE RESOURCES,Travel/Subsistence,OYSTER AUTO-TOP UP,22-Jul-2018,20.00
D1300G-CORPORATE RESOURCES,Travel/Subsistence,OYSTER AUTO-TOP UP,22-Jul-2018,40.00
D1300G-CORPORATE RESOURCES,Travel/Subsistence,OYSTER AUTO-TOP UP,22-Jul-2018,40.00
D1300G-CORPORATE RESOURCES,Travel/Subsistence,OYSTER AUTO-TOP UP,22-Jul-2018,20.00
D1300G-CORPORATE RESOURCES,Travel/Subsistence,OYSTER AUTO-TOP UP,22-Jul-2018,80.00
D1400G-CHILDREN'S SERVICES,Travel/Subsistence,OYSTER AUTO-TOP UP,22-Jul-2018,40.00
D1400G-CHILDREN'S SERVICES,Domestic Goods-Other,ARGOS LTD,22-Jul-2018,19.96
D1400G-CHILDREN'S SERVICES,Facilities-Printing,Amazon UK Retail,22-Jul-2018,63.49
D1400G-CHILDREN'S SERVICES,Facilities-Printing,Amazon UK Retail,22-Jul-2018,28.64
D1100G-ADULTS & PUBLIC HEALTH,Catering Food & Drink,TESCO STORES 5999,23-Jul-2018,56.78
D1100G-ADULTS & PUBLIC HEALTH,Financial Services,ROYAL BANK UK /,23-Jul-2018,400.00
D1200G-NEIGHBOURHOODS & GROWTH,Mail Services-Postage,POST OFFICE COUNTER,23-Jul-2018,2.11
D1200G-NEIGHBOURHOODS & GROWTH,Travel/Subsistence,OYSTER AUTO-TOP UP,23-Jul-2018,20.00
D1200G-NEIGHBOURHOODS & GROWTH,Travel/Subsistence,ZIPCAR,23-Jul-2018,-13.75
D1200G-NEIGHBOURHOODS & GROWTH,Taxi Fares,UBER   *TRIP KUFNM,23-Jul-2018,6.22
D1200G-NEIGHBOURHOODS & GROWTH,Travel/Subsistence,OYSTER AUTO-TOP UP,23-Jul-2018,40.00
D1200G-NEIGHBOURHOODS & GROWTH,Vehicle Maintenance,JETYRES,23-Jul-2018,123.60
D1300G-CORPORATE RESOURCES,Financial Services,CASH ADVANCE FEE,23-Jul-2018,2.95
D1300G-CORPORATE RESOURCES,Accommodation,CASH ADVANCE FEE,23-Jul-2018,10.03
D1300G-CORPORATE RESOURCES,Travel/Subsistence,TRAINLINE,23-Jul-2018,6.85
D1300G-CORPORATE RESOURCES,Financial Services,UKBA7287662524,23-Jul-2018,3199.00
D1300G-CORPORATE RESOURCES,Travel/Subsistence,OYSTER ONLINE,23-Jul-2018,30.00
D1300G-CORPORATE RESOURCES,Taxi Fares,SW2 TO N10,23-Jul-2018,70.00
D1300G-CORPORATE RESOURCES,Travel/Subsistence,OYSTER ONLINE,23-Jul-2018,-20.00
D1300G-CORPORATE RESOURCES,Financial Services,LAND REGISTRY,23-Jul-2018,3.00
D1300G-CORPORATE RESOURCES,Domestic Goods-Other,WWW.ARGOS.CO.UK,23-Jul-2018,103.94
D1300G-CORPORATE RESOURCES,Financial Services,LONDON BRGH OF LAMBETH,23-Jul-2018,30.00
D1300G-CORPORATE RESOURCES,Travel/Subsistence,OYSTER ONLINE,23-Jul-2018,30.00
D1300G-CORPORATE RESOURCES,Domestic Goods-Other,ARGOS,23-Jul-2018,646.83
D1300G-CORPORATE RESOURCES,Travel/Subsistence,EUROSTAR INTERNET,23-Jul-2018,259.50
D1300G-CORPORATE RESOURCES,Travel/Subsistence,OYSTER ONLINE,23-Jul-2018,-30.00
D1400G-CHILDREN'S SERVICES,Education-Library Books,AMAZON SVCS EU-UK AMAZON.,23-Jul-2018,11.98
D1400G-CHILDREN'S SERVICES,Education-Other,POUNDLAND LTD,23-Jul-2018,10.00
D1400G-CHILDREN'S SERVICES,Facilities-Printing,Amazon UK Retail,23-Jul-2018,89.68
D1400G-CHILDREN'S SERVICES,Education-Library Books,Amazon UK Marketplace,23-Jul-2018,23.96
D1400G-CHILDREN'S SERVICES,Education-Arts/Crafts,MOTHERCARE UK LTD,23-Jul-2018,2.00
D1400G-CHILDREN'S SERVICES,Public Transport,BRIXTONHILL EXPRESS,23-Jul-2018,70.00
D1800G-NEIGHBOURHOODS & GROWTH (HRA),Education-Library Books,Amazon UK Marketplace,23-Jul-2018,29.95
D1100G-ADULTS & PUBLIC HEALTH,Catering Food & Drink,IZ *Restaurant-Cafe IN DE,24-Jul-2018,34.93
D1100G-ADULTS & PUBLIC HEALTH,Catering Food & Drink,THE CORNER,24-Jul-2018,36.76
D1100G-ADULTS & PUBLIC HEALTH,Financial Services,CASH ADVANCE FEE,24-Jul-2018,11.80
D1200G-NEIGHBOURHOODS & GROWTH,Consultancy-Business,FORTRESS MASTER LOCKSMITH,24-Jul-2018,74.35
D1200G-NEIGHBOURHOODS & GROWTH,Building-Paint,S LONDON DECORTORS,24-Jul-2018,81.60
D1200G-NEIGHBOURHOODS & GROWTH,Facilities-Market Research,HOO,24-Jul-2018,30.00
D1300G-CORPORATE RESOURCES,Taxi Fares,ABEX671D4 LONDON NET C,24-Jul-2018,77.80
D1300G-CORPORATE RESOURCES,Taxi Fares,ME7 TO SE15,24-Jul-2018,230.00
D1300G-CORPORATE RESOURCES,Travel/Subsistence,OYSTER ONLINE,24-Jul-2018,25.00
D1300G-CORPORATE RESOURCES,Facilities-Market Research,Amazon Prime,24-Jul-2018,7.99
D1300G-CORPORATE RESOURCES,Mail Services-Postage,THE POST OFFICE,24-Jul-2018,17.29
D1300G-CORPORATE RESOURCES,Travel/Subsistence,TRAINLINE,24-Jul-2018,88.40
D1300G-CORPORATE RESOURCES,Taxi Fares,E14 TO CRO RETURN,24-Jul-2018,77.80
D1300G-CORPORATE RESOURCES,Travel/Subsistence,OYSTER ONLINE,24-Jul-2018,40.00
D1300G-CORPORATE RESOURCES,IT Software,APPLIANCEDIRECT CO,24-Jul-2018,824.35
D1300G-CORPORATE RESOURCES,Catering Food & Drink,TESCO STORES 5999,24-Jul-2018,72.40
D1300G-CORPORATE RESOURCES,Financial Services,UKBA8648314563,24-Jul-2018,3199.00
D1300G-CORPORATE RESOURCES,Catering Food & Drink,SATAY BAR,24-Jul-2018,130.00
D1300G-CORPORATE RESOURCES,Financial Services,UKBA8648310011,24-Jul-2018,3199.00
D1300G-CORPORATE RESOURCES,Taxi Fares,SE25 TO WC1V,24-Jul-2018,60.00
D1300G-CORPORATE RESOURCES,Taxi Fares,SW2SW2HA9,24-Jul-2018,80.00
D1300G-CORPORATE RESOURCES,Furniture-Domestic Furniture,WWW.IKEA.COM,24-Jul-2018,817.00
D1300G-CORPORATE RESOURCES,Financial Services,UKBA8648314563,24-Jul-2018,-3000.00
D1400G-CHILDREN'S SERVICES,Education-Library Books,Amazon UK Retail,24-Jul-2018,20.44
D1400G-CHILDREN'S SERVICES,Facilities-Printing,Amazon UK Retail,24-Jul-2018,7.98
D1400G-CHILDREN'S SERVICES,Domestic Goods-Other,AMAZON EU AMAZON.CO.UK,24-Jul-2018,9.78
D1800G-NEIGHBOURHOODS & GROWTH (HRA),Travel/Subsistence,LUL TICKET MACHINE,24-Jul-2018,50.00
D1100G-ADULTS & PUBLIC HEALTH,Taxi Fares,WWW.ADDISONLEE.COM,25-Jul-2018,49.70
D1100G-ADULTS & PUBLIC HEALTH,Catering Food & Drink,ICELAND,25-Jul-2018,9.00
D1100G-ADULTS & PUBLIC HEALTH,Catering Food & Drink,TESCO STORES 4342,25-Jul-2018,21.00
D1100G-ADULTS & PUBLIC HEALTH,Healthcare Services,MEDIWORLD LIMITED,25-Jul-2018,63.00
D1200G-NEIGHBOURHOODS & GROWTH,Travel/Subsistence,LUL TICKET MACHINE,25-Jul-2018,20.00
D1300G-CORPORATE RESOURCES,Consultancy-Other,WWW.PRCA.ORG.UK,25-Jul-2018,958.80
D1300G-CORPORATE RESOURCES,IT Software,SPORTS CITY LONDON,25-Jul-2018,1189.83
D1300G-CORPORATE RESOURCES,Taxi Fares,WC1V TO SE25,25-Jul-2018,60.00
D1300G-CORPORATE RESOURCES,Taxi Fares,ST GEORGE SW8,25-Jul-2018,35.00
D1300G-CORPORATE RESOURCES,Temporary & Agency Staff,REED SPECIALIST,25-Jul-2018,66.83
D1300G-CORPORATE RESOURCES,Travel/Subsistence,OYSTER AUTO-TOP UP,25-Jul-2018,80.00
D1300G-CORPORATE RESOURCES,Accommodation,FLYBE.COM   F6RKLC,25-Jul-2018,241.96
D1300G-CORPORATE RESOURCES,Travel/Subsistence,OYSTER AUTO-TOP UP,25-Jul-2018,80.00
D1300G-CORPORATE RESOURCES,Education-Library Books,Amazon UK Marketplace,25-Jul-2018,124.75
D1300G-CORPORATE RESOURCES,Travel/Subsistence,OYSTER AUTO-TOP UP,25-Jul-2018,20.00
D1300G-CORPORATE RESOURCES,Travel/Subsistence,OYSTER AUTO-TOP UP,25-Jul-2018,100.00
D1300G-CORPORATE RESOURCES,Travel/Subsistence,OYSTER AUTO-TOP UP,25-Jul-2018,20.00
D1300G-CORPORATE RESOURCES,Taxi Fares,SE15 SW2 RETURN,25-Jul-2018,80.00
D1400G-CHILDREN'S SERVICES,Catering Food & Drink,TESCO STORE 2143,25-Jul-2018,38.26
D1400G-CHILDREN'S SERVICES,Education-Library Books,Amazon UK Marketplace,25-Jul-2018,3.77
D1400G-CHILDREN'S SERVICES,Building-Tools,HSS HIRE,25-Jul-2018,5.40
D1400G-CHILDREN'S SERVICES,Facilities-Printing,Amazon UK Retail,25-Jul-2018,14.99
D1400G-CHILDREN'S SERVICES,Facilities-Printing,Amazon UK Retail,25-Jul-2018,10.82
D1400G-CHILDREN'S SERVICES,Education-Library Books,Amazon UK Marketplace,25-Jul-2018,18.84
D1800G-NEIGHBOURHOODS & GROWTH (HRA),Horticultural-Other,Amazon UK Marketplace,25-Jul-2018,39.99
D1800G-NEIGHBOURHOODS & GROWTH (HRA),Travel/Subsistence,NEW SOUTHERN RAILW,25-Jul-2018,50.00
D1100G-ADULTS & PUBLIC HEALTH,Catering Food & Drink,LIDL UK LONDON,26-Jul-2018,17.94
D1100G-ADULTS & PUBLIC HEALTH,Public Transport,GVB DE BOELELAAN VU,26-Jul-2018,6.87
D1100G-ADULTS & PUBLIC HEALTH,Catering Food & Drink,BRUG 34,26-Jul-2018,12.14
D1300G-CORPORATE RESOURCES,Financial Services-Grants,PAYPAL,26-Jul-2018,648.00
D1300G-CORPORATE RESOURCES,Travel/Subsistence,OYSTER AUTO-TOP UP,26-Jul-2018,80.00
D1300G-CORPORATE RESOURCES,Travel/Subsistence,OYSTER AUTO-TOP UP,26-Jul-2018,40.00
D1300G-CORPORATE RESOURCES,Travel/Subsistence,OYSTER ONLINE,26-Jul-2018,60.00
D1300G-CORPORATE RESOURCES,Travel/Subsistence,OYSTER ONLINE,26-Jul-2018,60.00
D1300G-CORPORATE RESOURCES,Travel/Subsistence,TRAINLINE,26-Jul-2018,67.00
D1300G-CORPORATE RESOURCES,Travel/Subsistence,OYSTER ONLINE,26-Jul-2018,30.00
D1300G-CORPORATE RESOURCES,Travel/Subsistence,OYSTER ONLINE,26-Jul-2018,-30.00
D1300G-CORPORATE RESOURCES,Catering Food & Drink,ASDA STORES LTD 5871,26-Jul-2018,789.19
D1300G-CORPORATE RESOURCES,Travel/Subsistence,OYSTER AUTO-TOP UP,26-Jul-2018,20.00
D1400G-CHILDREN'S SERVICES,Education-Library Books,Amazon UK Marketplace,26-Jul-2018,18.67
D1400G-CHILDREN'S SERVICES,Education-Library Books,Amazon UK Marketplace,26-Jul-2018,7.62
D1400G-CHILDREN'S SERVICES,Education-Other,POUNDLAND LTD,26-Jul-2018,7.00
D1800G-NEIGHBOURHOODS & GROWTH (HRA),Building-Timber,B & Q 1256,26-Jul-2018,29.90
D1100G-ADULTS & PUBLIC HEALTH,Catering Food & Drink,HMSHOST AMSTERDAM SCHIPHO,27-Jul-2018,12.37
D1100G-ADULTS & PUBLIC HEALTH,Public Transport,GVB EXPL. TRAMS,27-Jul-2018,2.75
D1100G-ADULTS & PUBLIC HEALTH,Public Transport,NS AMSTERDAM RAI,27-Jul-2018,3.67
D1200G-NEIGHBOURHOODS & GROWTH,Consultancy-Business,FORTRESS MASTER LOCKSMITH,27-Jul-2018,11.90
D1200G-NEIGHBOURHOODS & GROWTH,Furniture-Domestic Furniture,WAYFAIR #2565498558,27-Jul-2018,466.97
D1200G-NEIGHBOURHOODS & GROWTH,Furniture-Domestic Furniture,WWW.IKEA.COM,27-Jul-2018,70.00
D1300G-CORPORATE RESOURCES,Travel/Subsistence,OYSTER AUTO-TOP UP,27-Jul-2018,20.00
D1300G-CORPORATE RESOURCES,Financial Services,THE HOME OFFICE,27-Jul-2018,75.00
D1300G-CORPORATE RESOURCES,Travel/Subsistence,OYSTER AUTO-TOP UP,27-Jul-2018,40.00
D1300G-CORPORATE RESOURCES,Catering Food & Drink,TESCO STORE 2143,27-Jul-2018,60.00
D1300G-CORPORATE RESOURCES,Travel/Subsistence,OYSTER AUTO-TOP UP,27-Jul-2018,20.00
D1300G-CORPORATE RESOURCES,Travel/Subsistence,OYSTER AUTO-TOP UP,27-Jul-2018,60.00
D1300G-CORPORATE RESOURCES,Education-Library Books,Amazon UK Marketplace,27-Jul-2018,69.99
D1300G-CORPORATE RESOURCES,Catering Food & Drink,TESCO STORES 5999,27-Jul-2018,72.40
D1300G-CORPORATE RESOURCES,Travel/Subsistence,TRAINLINE,27-Jul-2018,60.25
D1300G-CORPORATE RESOURCES,Mail Services-Postage,THE POST OFFICE,27-Jul-2018,6.50
D1300G-CORPORATE RESOURCES,Education-Other,LB HACKNEY (HLT),27-Jul-2018,45.00
D1300G-CORPORATE RESOURCES,Travel/Subsistence,OYSTER AUTO-TOP UP,27-Jul-2018,20.00
D1300G-CORPORATE RESOURCES,Travel/Subsistence,OYSTER AUTO-TOP UP,27-Jul-2018,100.00
D1400G-CHILDREN'S SERVICES,Education-Library Books,Amazon UK Marketplace,27-Jul-2018,9.52
D1400G-CHILDREN'S SERVICES,Public Transport,BRIXTONHILL EXPRESS,27-Jul-2018,200.00
D1800G-NEIGHBOURHOODS & GROWTH (HRA),Education-Library Books,AMAZON SVCS EU-UK AMAZON.,27-Jul-2018,19.97
D1800G-NEIGHBOURHOODS & GROWTH (HRA),Education-Library Books,AMAZON SVCS EU-UK AMAZON.,27-Jul-2018,13.99
D1800G-NEIGHBOURHOODS & GROWTH (HRA),Education-Library Books,Amazon UK Marketplace,27-Jul-2018,13.99
D1800G-NEIGHBOURHOODS & GROWTH (HRA),Domestic Goods-Other,AMAZON EU AMAZON.CO.UK,27-Jul-2018,5.27
D1800G-NEIGHBOURHOODS & GROWTH (HRA),Couriers,Amazon Prime,27-Jul-2018,-7.99
D1300G-CORPORATE RESOURCES,Travel/Subsistence,NEW SOUTHERN RAILW,28-Jul-2018,20.00
D1200G-NEIGHBOURHOODS & GROWTH,Taxi Fares,UBER TRIP GR6PS HELP.UBER,29-Jul-2018,22.18
D1200G-NEIGHBOURHOODS & GROWTH,Taxi Fares,UBER TRIP IIQAN HELP.UBER,29-Jul-2018,11.86
D1300G-CORPORATE RESOURCES,Travel/Subsistence,OYSTER AUTO-TOP UP,29-Jul-2018,140.00
D1300G-CORPORATE RESOURCES,Travel/Subsistence,OYSTER AUTO-TOP UP,29-Jul-2018,40.00
D1300G-CORPORATE RESOURCES,Travel/Subsistence,OYSTER AUTO-TOP UP,29-Jul-2018,100.00
D1300G-CORPORATE RESOURCES,Travel/Subsistence,OYSTER AUTO-TOP UP,29-Jul-2018,80.00
D1300G-CORPORATE RESOURCES,Travel/Subsistence,OYSTER AUTO-TOP UP,29-Jul-2018,40.00
D1300G-CORPORATE RESOURCES,Travel/Subsistence,OYSTER AUTO-TOP UP,29-Jul-2018,20.00
D1300G-CORPORATE RESOURCES,Travel/Subsistence,OYSTER AUTO-TOP UP,29-Jul-2018,20.00
D1800G-NEIGHBOURHOODS & GROWTH (HRA),Furniture-Other,Amazon UK Retail,29-Jul-2018,15.98
D1800G-NEIGHBOURHOODS & GROWTH (HRA),Facilities-Printing,Amazon UK Retail,29-Jul-2018,96.96
D1100G-ADULTS & PUBLIC HEALTH,Catering Food & Drink,TESCO STORES 5999,30-Jul-2018,45.82
D1100G-ADULTS & PUBLIC HEALTH,Catering Food & Drink,MN WEST NORWOOD HALAL,30-Jul-2018,27.55
D1100G-ADULTS & PUBLIC HEALTH,Legal Services-Other,HMCOURTS-SERVICE.G,30-Jul-2018,75.00
D1100G-ADULTS & PUBLIC HEALTH,Catering Food & Drink,TESCO STORE 2445,30-Jul-2018,122.48
D1200G-NEIGHBOURHOODS & GROWTH,Cycles Purchase,HALFORDS 0535,30-Jul-2018,9.99
D1300G-CORPORATE RESOURCES,Mail Services-Postage,THE POST OFFICE,30-Jul-2018,13.16
D1300G-CORPORATE RESOURCES,Financial Services,LAND REGISTRY,30-Jul-2018,3.00
D1300G-CORPORATE RESOURCES,Travel/Subsistence,OYSTER AUTO-TOP UP,30-Jul-2018,60.00
D1300G-CORPORATE RESOURCES,Education-Library Books,Amazon UK Marketplace,30-Jul-2018,2.45
D1300G-CORPORATE RESOURCES,Taxi Fares,3 TIMES SW9 SE1,30-Jul-2018,60.00
D1300G-CORPORATE RESOURCES,Travel/Subsistence,OYSTER ONLINE,30-Jul-2018,20.00
D1300G-CORPORATE RESOURCES,Travel/Subsistence,OYSTER AUTO-TOP UP,30-Jul-2018,40.00
D1300G-CORPORATE RESOURCES,Domestic Goods-Other,PAMIR LONDON LTD,30-Jul-2018,5.89
D1300G-CORPORATE RESOURCES,Travel/Subsistence,LUL TICKET MACHINE,30-Jul-2018,50.00
D1300G-CORPORATE RESOURCES,Taxi Fares,CR0 TO E4,30-Jul-2018,77.80
D1300G-CORPORATE RESOURCES,Travel/Subsistence,OYSTER ONLINE,30-Jul-2018,30.00
D1300G-CORPORATE RESOURCES,Travel/Subsistence,OYSTER AUTO-TOP UP,30-Jul-2018,40.00
D1300G-CORPORATE RESOURCES,Travel/Subsistence,OYSTER AUTO-TOP UP,30-Jul-2018,40.00
D1300G-CORPORATE RESOURCES,Travel/Subsistence,OYSTER ONLINE,30-Jul-2018,30.00
D1400G-CHILDREN'S SERVICES,Domestic Goods-Other,AO RETAIL LIMITED,30-Jul-2018,624.00
D1400G-CHILDREN'S SERVICES,Education-Other,POUNDLAND LTD,30-Jul-2018,4.00
D1400G-CHILDREN'S SERVICES,Education-Other,Amazon UK Marketplace,30-Jul-2018,11.96
D1800G-NEIGHBOURHOODS & GROWTH (HRA),Travel/Subsistence,NEW SOUTHERN RAILW,30-Jul-2018,50.00
D1800G-NEIGHBOURHOODS & GROWTH (HRA),Furniture-Other,Amazon UK Marketplace,30-Jul-2018,144.97
D1100G-ADULTS & PUBLIC HEALTH,Legal Services-Other,HMCOURTS-SERVICE.G,31-Jul-2018,300.00
D1200G-NEIGHBOURHOODS & GROWTH,Building-Plumbing,FRASER & ELLIS LTD,31-Jul-2018,37.18
D1200G-NEIGHBOURHOODS & GROWTH,Consultancy-Business,CANVAS EVENTS LTD,31-Jul-2018,36.00
D1200G-NEIGHBOURHOODS & GROWTH,Facilities-Printing,PLANET NUMBERS,31-Jul-2018,360.00
D1200G-NEIGHBOURHOODS & GROWTH,IT Software-Customised,SurveyMonkey,31-Jul-2018,264.00
D1200G-NEIGHBOURHOODS & GROWTH,Facilities-Advertising,FACEBK 7FFXMFJ5B2,31-Jul-2018,19.77
D1300G-CORPORATE RESOURCES,Financial Services,GRO HM PASSPORT OFFICE,31-Jul-2018,0.00
D1300G-CORPORATE RESOURCES,Travel/Subsistence,OYSTER AUTO-TOP UP,31-Jul-2018,20.00
D1300G-CORPORATE RESOURCES,Legal Services-Other,HMCOURTS-SERVICE.G,31-Jul-2018,88.00
D1300G-CORPORATE RESOURCES,Domestic Goods-Other,WWW.ARGOS.CO.UK,31-Jul-2018,199.99
D1300G-CORPORATE RESOURCES,Travel/Subsistence,OYSTER ONLINE,31-Jul-2018,30.00
D1300G-CORPORATE RESOURCES,Travel/Subsistence,OYSTER AUTO-TOP UP,31-Jul-2018,20.00
D1300G-CORPORATE RESOURCES,Catering Food & Drink,TESCO STORE 2143,31-Jul-2018,20.00
D1300G-CORPORATE RESOURCES,Travel/Subsistence,OYSTER ONLINE,31-Jul-2018,90.00
D1300G-CORPORATE RESOURCES,Furniture-Domestic Furniture,HOMEDONE.CO.UK,31-Jul-2018,193.98
D1300G-CORPORATE RESOURCES,Financial Services,LAND REGISTRY,31-Jul-2018,3.00
D1300G-CORPORATE RESOURCES,Travel/Subsistence,OYSTER ONLINE,31-Jul-2018,30.00
D1300G-CORPORATE RESOURCES,Horticultural-Other,WWW.PRESTIGEFLOWERS.CO.U,31-Jul-2018,31.29
D1400G-CHILDREN'S SERVICES,Public Transport,BRIXTONHILL EXPRESS,31-Jul-2018,200.00
D1800G-NEIGHBOURHOODS & GROWTH (HRA),Building-Timber,B & Q 1037,31-Jul-2018,57.86
D1800G-NEIGHBOURHOODS & GROWTH (HRA),Building-Timber,C BREWER & SONS,31-Jul-2018,41.75
D1100G-ADULTS & PUBLIC HEALTH,Education-Library Books,AMZN MKTP UK AMAZON.CO.UK,01-Aug-2018,80.92
D1100G-ADULTS & PUBLIC HEALTH,Catering Food & Drink,WWW.ICELAND.CO.UK,01-Aug-2018,203.66
D1200G-NEIGHBOURHOODS & GROWTH,Vehicle Maintenance,JETYRES,01-Aug-2018,303.00
D1200G-NEIGHBOURHOODS & GROWTH,Consultancy-Business,CANVAS EVENTS LTD,01-Aug-2018,72.00
D1300G-CORPORATE RESOURCES,Legal Services-Other,HMCOURTS-SERVICE.G,01-Aug-2018,1101.00
D1300G-CORPORATE RESOURCES,Taxi Fares,ABEX67BB0 LONDON NET C,01-Aug-2018,39.30
D1300G-CORPORATE RESOURCES,Travel/Subsistence,OYSTER AUTO-TOP UP,01-Aug-2018,100.00
D1300G-CORPORATE RESOURCES,Catering Food & Drink,TESCO STORES 5999,01-Aug-2018,70.90
D1300G-CORPORATE RESOURCES,Travel/Subsistence,OYSTER ONLINE,01-Aug-2018,30.00
D1300G-CORPORATE RESOURCES,Travel/Subsistence,OYSTER AUTO-TOP UP,01-Aug-2018,20.00
D1300G-CORPORATE RESOURCES,Travel/Subsistence,OYSTER ONLINE,01-Aug-2018,129.00
D1300G-CORPORATE RESOURCES,Travel/Subsistence,TFL OYST PHOTOCARD,01-Aug-2018,10.00
D1300G-CORPORATE RESOURCES,Facilities-Storage,WWW.SAFESTORE.CO.UK,01-Aug-2018,692.84
D1300G-CORPORATE RESOURCES,Furniture-Domestic Furniture,WWW.IKEA.COM,01-Aug-2018,325.00
D1300G-CORPORATE RESOURCES,Domestic Goods-Other,ARGOS RETAIL GROUP,01-Aug-2018,132.96
D1300G-CORPORATE RESOURCES,Domestic Goods-Other,WWW.ARGOS.CO.UK,01-Aug-2018,379.94
D1300G-CORPORATE RESOURCES,Accommodation,NATIONBUILDER,01-Aug-2018,172.18
D1300G-CORPORATE RESOURCES,Travel/Subsistence,PGL TRAVEL LIMITED,01-Aug-2018,304.50
D1400G-CHILDREN'S SERVICES,Catering Food & Drink,JAMAICA SPICE BAKERY L,01-Aug-2018,16.00
D1400G-CHILDREN'S SERVICES,Education-Library Books,AMAZON.CO.UK AMAZON.CO.UK,01-Aug-2018,9.09
D1400G-CHILDREN'S SERVICES,Catering Food & Drink,TESCO STORES-2143,01-Aug-2018,14.87
D1400G-CHILDREN'S SERVICES,Public Transport,BRIXTONHILL EXPRESS,01-Aug-2018,70.00
D1400G-CHILDREN'S SERVICES,Education-Library Books,AMZN Mktp UK,01-Aug-2018,12.93
D1400G-CHILDREN'S SERVICES,Building-Tools,HSS HIRE,01-Aug-2018,167.70
D1400G-CHILDREN'S SERVICES,Domestic Goods-Other,POUNDLAND LTD 1203,01-Aug-2018,1.00
D1400G-CHILDREN'S SERVICES,Education-Library Books,Amazon.co.uk,01-Aug-2018,7.33
D1400G-CHILDREN'S SERVICES,Catering Food & Drink,MARKS&SPENCER PLC SACA,01-Aug-2018,21.75
D1100G-ADULTS & PUBLIC HEALTH,Legal Services-Other,HMCOURTS-SERVICE.G,02-Aug-2018,150.00
D1200G-NEIGHBOURHOODS & GROWTH,IT Software,ADOBE  CREATIVE CLOUD,02-Aug-2018,83.24
D1200G-NEIGHBOURHOODS & GROWTH,Domestic Goods-Other,LOCKFIELD SYSTEMS LTD,02-Aug-2018,47.40
D1200G-NEIGHBOURHOODS & GROWTH,Education-Library Books,AMZN Mktp UK,02-Aug-2018,11.48
D1300G-CORPORATE RESOURCES,Travel/Subsistence,OYSTER AUTO-TOP UP,02-Aug-2018,20.00
D1300G-CORPORATE RESOURCES,Travel/Subsistence,OYSTER AUTO-TOP UP,02-Aug-2018,20.00
D1300G-CORPORATE RESOURCES,Travel/Subsistence,OYSTER ONLINE,02-Aug-2018,-30.00
D1300G-CORPORATE RESOURCES,Travel/Subsistence,OYSTER AUTO-TOP UP,02-Aug-2018,20.00
D1300G-CORPORATE RESOURCES,Domestic Goods-Other,CURRYS ONLINE,02-Aug-2018,604.96
D1300G-CORPORATE RESOURCES,Furniture-Office Furniture,POSTURITE (UK) LTD,02-Aug-2018,993.90
D1300G-CORPORATE RESOURCES,Sports Equipment,SPORTS DIRECT,02-Aug-2018,130.00
D1300G-CORPORATE RESOURCES,Travel/Subsistence,OYSTER AUTO-TOP UP,02-Aug-2018,100.00
D1300G-CORPORATE RESOURCES,Travel/Subsistence,OYSTER AUTO-TOP UP,02-Aug-2018,40.00
D1300G-CORPORATE RESOURCES,Travel/Subsistence,OYSTER ONLINE,02-Aug-2018,-30.00
D1300G-CORPORATE RESOURCES,Mail Services-Postage,POST OFFICE COUNTER,02-Aug-2018,7.08
D1300G-CORPORATE RESOURCES,Travel/Subsistence,OYSTER AUTO-TOP UP,02-Aug-2018,40.00
D1300G-CORPORATE RESOURCES,Travel/Subsistence,LUL TICKET MACHINE,02-Aug-2018,30.00
D1400G-CHILDREN'S SERVICES,Education-Library Books,AMZN Mktp UK,02-Aug-2018,22.29
D1400G-CHILDREN'S SERVICES,Education-Other,AMZN Mktp UK,02-Aug-2018,95.99
D1400G-CHILDREN'S SERVICES,Catering Food & Drink,TESCO STORES-2143,02-Aug-2018,9.00
D1400G-CHILDREN'S SERVICES,Education-Library Books,ABEBOOKS.UK FMTBBG,02-Aug-2018,3.24
D1400G-CHILDREN'S SERVICES,Education-Library Books,ABEBOOKS.UK FMTBBH,02-Aug-2018,3.39
D1400G-CHILDREN'S SERVICES,Education-Library Books,ABEBOOKS.UK FMTBBJ,02-Aug-2018,3.29
D1400G-CHILDREN'S SERVICES,Education-Library Books,ABEBOOKS.UK FMTBBI,02-Aug-2018,3.31
D1400G-CHILDREN'S SERVICES,Education-Library Books,Amazon.co.uk,02-Aug-2018,16.44
D1100G-ADULTS & PUBLIC HEALTH,Couriers,CITYSPRINT,03-Aug-2018,24.00
D1200G-NEIGHBOURHOODS & GROWTH,Education-Library Books,AMZN Mktp UK,03-Aug-2018,4.30
D1200G-NEIGHBOURHOODS & GROWTH,Education-Library Books,AMZN Mktp UK,03-Aug-2018,21.89
D1200G-NEIGHBOURHOODS & GROWTH,Travel/Subsistence,OYSTER AUTO-TOP UP,03-Aug-2018,40.00
D1200G-NEIGHBOURHOODS & GROWTH,Works-Surveys,WWW.SGS-ENGINEERING.CO,03-Aug-2018,239.99
D1300G-CORPORATE RESOURCES,Travel/Subsistence,LUL TICKET MACHINE,03-Aug-2018,50.00
D1300G-CORPORATE RESOURCES,Travel/Subsistence,OYSTER AUTO-TOP UP,03-Aug-2018,40.00
D1300G-CORPORATE RESOURCES,Consultancy-Business,AWS EMEA,03-Aug-2018,140.62
D1300G-CORPORATE RESOURCES,Accommodation,NATIONBUILDER,03-Aug-2018,70.62
D1300G-CORPORATE RESOURCES,Travel/Subsistence,OYSTER AUTO-TOP UP,03-Aug-2018,60.00
D1300G-CORPORATE RESOURCES,Travel/Subsistence,OYSTER AUTO-TOP UP,03-Aug-2018,40.00
D1300G-CORPORATE RESOURCES,Travel/Subsistence,OYSTER AUTO-TOP UP,03-Aug-2018,40.00
D1300G-CORPORATE RESOURCES,Travel/Subsistence,OYSTER ONLINE,03-Aug-2018,40.00
D1300G-CORPORATE RESOURCES,Catering Food & Drink,TESCO STORES 5999,03-Aug-2018,72.40
D1300G-CORPORATE RESOURCES,Mail Services-Postage,POST OFFICE COUNTER,03-Aug-2018,3.54
D1300G-CORPORATE RESOURCES,Education-Library Books,AMZN Mktp UK,03-Aug-2018,5.76
D1300G-CORPORATE RESOURCES,Travel/Subsistence,OYSTER ONLINE,03-Aug-2018,20.00
D1300G-CORPORATE RESOURCES,Catering Food & Drink,TESCO STORE 2143,03-Aug-2018,30.00
D1400G-CHILDREN'S SERVICES,Education-Library Books,Amazon.co.uk,03-Aug-2018,7.87
D1400G-CHILDREN'S SERVICES,Education-Other,ECO UK MERCHANT LTD,03-Aug-2018,8.00
D1200G-NEIGHBOURHOODS & GROWTH,Taxi Fares,UBER TRIP PGFVO HELP.UBER,04-Aug-2018,6.95
D1200G-NEIGHBOURHOODS & GROWTH,Facilities-Market Research,WLY,04-Aug-2018,15.00
D1300G-CORPORATE RESOURCES,Travel/Subsistence,OYSTER AUTO-TOP UP,04-Aug-2018,40.00
D1300G-CORPORATE RESOURCES,IT Software-Customised,PANTHEON SYSTEMS INC,04-Aug-2018,27.78
D1300G-CORPORATE RESOURCES,Travel/Subsistence,OYSTER AUTO-TOP UP,04-Aug-2018,40.00
D1200G-NEIGHBOURHOODS & GROWTH,Taxi Fares,UBER TRIP PGFVO HELP.UBER,05-Aug-2018,-6.95
D1200G-NEIGHBOURHOODS & GROWTH,IT Services,Dropbox 48XT936PTPDX,05-Aug-2018,36.00
D1300G-CORPORATE RESOURCES,Domestic Goods-Other,AMAZON.CO.UK AMAZON.CO.UK,05-Aug-2018,629.90
D1300G-CORPORATE RESOURCES,Travel/Subsistence,OYSTER AUTO-TOP UP,05-Aug-2018,40.00
D1300G-CORPORATE RESOURCES,Travel/Subsistence,OYSTER AUTO-TOP UP,05-Aug-2018,20.00
D1300G-CORPORATE RESOURCES,Travel/Subsistence,OYSTER AUTO-TOP UP,05-Aug-2018,40.00
D1300G-CORPORATE RESOURCES,Facilities-Market Research,WWW.INSIDEHG.CO.UK R/T,05-Aug-2018,169.00
D1300G-CORPORATE RESOURCES,Travel/Subsistence,OYSTER AUTO-TOP UP,05-Aug-2018,20.00
D1300G-CORPORATE RESOURCES,IT Software,WWW.WEVIDEO.COM/CHARGE,05-Aug-2018,12.68
D1300G-CORPORATE RESOURCES,Travel/Subsistence,OYSTER AUTO-TOP UP,05-Aug-2018,20.00
D1400G-CHILDREN'S SERVICES,Travel/Subsistence,TFL AUTOSETTLEMENT,05-Aug-2018,20.00
D1100G-ADULTS & PUBLIC HEALTH,Catering Food & Drink,SAINSBURY'S,06-Aug-2018,35.71
D1100G-ADULTS & PUBLIC HEALTH,Education-Library Books,AMZN Mktp UK,06-Aug-2018,62.49
D1100G-ADULTS & PUBLIC HEALTH,Building-Others,AMZN Mktp UK,06-Aug-2018,54.49
D1100G-ADULTS & PUBLIC HEALTH,Catering Food & Drink,TESCO STORES 5999,06-Aug-2018,47.07
D1200G-NEIGHBOURHOODS & GROWTH,Cycles Purchase,HALFORDS 0716,06-Aug-2018,22.00
D1200G-NEIGHBOURHOODS & GROWTH,Furniture-Domestic Furniture,WWW.IKEA.COM,06-Aug-2018,729.00
D1200G-NEIGHBOURHOODS & GROWTH,Furniture-Domestic Furniture,WAYFAIR #2570757388,06-Aug-2018,435.99
D1300G-CORPORATE RESOURCES,Domestic Goods-Other,WWW.ARGOS.CO.UK,06-Aug-2018,234.99
D1300G-CORPORATE RESOURCES,Financial Services-Grants,PAYPAL,06-Aug-2018,108.00
D1300G-CORPORATE RESOURCES,Financial Services,GRO HM PASSPORT OFFICE,06-Aug-2018,23.40
D1300G-CORPORATE RESOURCES,Consultancy-Other,WWW.PRCA.ORG.UK,06-Aug-2018,420.00
D1300G-CORPORATE RESOURCES,Travel/Subsistence,OYSTER ONLINE,06-Aug-2018,90.00
D1300G-CORPORATE RESOURCES,Travel/Subsistence,OYSTER AUTO-TOP UP,06-Aug-2018,20.00
D1300G-CORPORATE RESOURCES,Catering Food & Drink,TESCO STORES-2143,06-Aug-2018,8.65
D1300G-CORPORATE RESOURCES,Catering Food & Drink,SAINSBURYS S/MKTS,06-Aug-2018,16.08
D1300G-CORPORATE RESOURCES,Travel/Subsistence,TRAINLINE,06-Aug-2018,170.80
D1300G-CORPORATE RESOURCES,Travel/Subsistence,OYSTER ONLINE,06-Aug-2018,30.00
D1300G-CORPORATE RESOURCES,Travel/Subsistence,OYSTER AUTO-TOP UP,06-Aug-2018,20.00
D1300G-CORPORATE RESOURCES,Facilities-Storage,WWW.BIGYELLOW.CO.UK,06-Aug-2018,89.60
D1300G-CORPORATE RESOURCES,Domestic Goods-Other,WWW.ARGOS.CO.UK,06-Aug-2018,124.99
D1300G-CORPORATE RESOURCES,Financial Services,DVLA DRIVER ONLINE,06-Aug-2018,34.00
D1300G-CORPORATE RESOURCES,Domestic Goods-Other,WWW.ARGOS.CO.UK,06-Aug-2018,330.95
D1300G-CORPORATE RESOURCES,Clothing-Children/Adults,WWW.ASOS.COM,06-Aug-2018,27.50
D1400G-CHILDREN'S SERVICES,Mail Services-Postage,POST OFFICE COUNTER,06-Aug-2018,1.77
D1400G-CHILDREN'S SERVICES,Education-Other,PAMIR LONDON LTD,06-Aug-2018,8.97
D1400G-CHILDREN'S SERVICES,Education-Library Books,SKR*AbeBooks FNWOMH,06-Aug-2018,20.63
D1400G-CHILDREN'S SERVICES,Books/Publications/Resources,SAINSBURYS           CASH,06-Aug-2018,160.00
D1400G-CHILDREN'S SERVICES,Catering Food & Drink,TESCO STORE 2143,06-Aug-2018,4.00
D1400G-CHILDREN'S SERVICES,Education-Library Books,Amazon.co.uk,06-Aug-2018,11.40
D1400G-CHILDREN'S SERVICES,Catering Food & Drink,TESCO STORES-2143,06-Aug-2018,7.72
D1400G-CHILDREN'S SERVICES,Education-Library Books,AMZN MKTP UK AMAZON.CO.UK,06-Aug-2018,13.00
D1400G-CHILDREN'S SERVICES,Education-Library Books,SKR*AbeBooks FNWOMG,06-Aug-2018,27.75
D1800G-NEIGHBOURHOODS & GROWTH (HRA),Consultancy-Business,WWW.PMGLTD.CO.UK,06-Aug-2018,474.00
D1800G-NEIGHBOURHOODS & GROWTH (HRA),Education-Library Books,AMZN Mktp UK,06-Aug-2018,149.48
D1800G-NEIGHBOURHOODS & GROWTH (HRA),Education-Library Books,AMZN MKTP UK AMAZON.CO.UK,06-Aug-2018,353.98
D1800G-NEIGHBOURHOODS & GROWTH (HRA),Travel/Subsistence,NEW SOUTHERN RAILW,06-Aug-2018,50.00
D1100G-ADULTS & PUBLIC HEALTH,Taxi Fares,LEAD X,07-Aug-2018,250.00
D1100G-ADULTS & PUBLIC HEALTH,Public Transport,VIRGIN TRAINS,07-Aug-2018,5.20
D1100G-ADULTS & PUBLIC HEALTH,Financial Services,PO KENNINGTON PARK 0711,07-Aug-2018,400.00
D1100G-ADULTS & PUBLIC HEALTH,Education-Other,HIGHSPEEDTRAINING.CO.U,07-Aug-2018,168.00
D1200G-NEIGHBOURHOODS & GROWTH,Building-Plumbing,FRASER & ELLIS LTD,07-Aug-2018,224.91
D1200G-NEIGHBOURHOODS & GROWTH,Building-Timber,SCREWFIX BRIXTON,07-Aug-2018,22.97
D1200G-NEIGHBOURHOODS & GROWTH,Building-Timber,SCREWFIX BRIXTON,07-Aug-2018,140.79
D1300G-CORPORATE RESOURCES,Financial Services,LAND REGISTRY,07-Aug-2018,3.00
D1300G-CORPORATE RESOURCES,Arts & Leisure Services,WWW.FLIPOUT.CO.UK,07-Aug-2018,38.00
D1300G-CORPORATE RESOURCES,Travel/Subsistence,OYSTER ONLINE,07-Aug-2018,40.00
D1300G-CORPORATE RESOURCES,Catering Food & Drink,TESCO STORES 5999,07-Aug-2018,72.40
D1300G-CORPORATE RESOURCES,Facilities-Advertising,JUNCTION NEWS,07-Aug-2018,60.00
D1300G-CORPORATE RESOURCES,Financial Services-Grants,PAYPAL,07-Aug-2018,378.00
D1300G-CORPORATE RESOURCES,Travel/Subsistence,OYSTER ONLINE,07-Aug-2018,150.00
D1300G-CORPORATE RESOURCES,Mail Services-Postage,THE POST OFFICE,07-Aug-2018,3.54
D1300G-CORPORATE RESOURCES,Travel/Subsistence,OYSTER AUTO-TOP UP,07-Aug-2018,20.00
D1300G-CORPORATE RESOURCES,Travel/Subsistence,OYSTER ONLINE,07-Aug-2018,-30.00
D1300G-CORPORATE RESOURCES,Domestic Goods-Other,ARGOS RETAIL GROUP,07-Aug-2018,251.96
D1400G-CHILDREN'S SERVICES,Education-Library Books,SKR*AbeBooks FNWOMI,07-Aug-2018,6.71
D1400G-CHILDREN'S SERVICES,Books/Publications/Resources,CASH ADVANCE FEE,07-Aug-2018,4.72
D1400G-CHILDREN'S SERVICES,Education-Other,THE FINANCIAL TIMES,07-Aug-2018,624.00
D1100G-ADULTS & PUBLIC HEALTH,Healthcare Equipment,NRS HEALTHCARE,08-Aug-2018,8.16
D1100G-ADULTS & PUBLIC HEALTH,Legal Services-Other,HMCOURTS-SERVICE.G,08-Aug-2018,225.00
D1100G-ADULTS & PUBLIC HEALTH,Financial Services,CASH ADVANCE FEE,08-Aug-2018,11.80
D1200G-NEIGHBOURHOODS & GROWTH,Building-Timber,ACRE LANE BUILDERS,08-Aug-2018,424.38
D1200G-NEIGHBOURHOODS & GROWTH,Education-Library Books,AMZN Mktp UK,08-Aug-2018,41.98
D1200G-NEIGHBOURHOODS & GROWTH,Books/Publications/Resources,WHICH,08-Aug-2018,10.75
D1200G-NEIGHBOURHOODS & GROWTH,Consultancy-Business,FORTRESS MASTER LOCKSMITH,08-Aug-2018,3.94
D1200G-NEIGHBOURHOODS & GROWTH,Taxi Fares,WWW.ADDISONLEE.COM,08-Aug-2018,18.25
D1200G-NEIGHBOURHOODS & GROWTH,Building-Timber,SCREWFIX DIRECT,08-Aug-2018,49.11
D1200G-NEIGHBOURHOODS & GROWTH,Furniture-Domestic Furniture,BRIXTON FURNITURE CENT,08-Aug-2018,565.00
D1300G-CORPORATE RESOURCES,Travel/Subsistence,OYSTER AUTO-TOP UP,08-Aug-2018,20.00
D1300G-CORPORATE RESOURCES,Taxi Fares,SW4 TO CIVIC,08-Aug-2018,15.00
D1300G-CORPORATE RESOURCES,Building-Timber,WICKES BUILDING,08-Aug-2018,508.10
D1300G-CORPORATE RESOURCES,Facilities-Printing,EMAP PUBLISHING LTD,08-Aug-2018,115.92
D1300G-CORPORATE RESOURCES,Travel/Subsistence,AUTO TOP-UP ARREARS,08-Aug-2018,120.00
D1300G-CORPORATE RESOURCES,Taxi Fares,ABEX682F0 LONDON NET C,08-Aug-2018,43.90
D1300G-CORPORATE RESOURCES,Taxi Fares,CIVIC TO SW4,08-Aug-2018,15.00
D1300G-CORPORATE RESOURCES,Travel/Subsistence,OYSTER AUTO-TOP UP,08-Aug-2018,80.00
D1300G-CORPORATE RESOURCES,Furniture-Domestic Furniture,WWW.BEDS.CO.UK,08-Aug-2018,279.00
D1300G-CORPORATE RESOURCES,Travel/Subsistence,OYSTER ONLINE,08-Aug-2018,30.00
D1300G-CORPORATE RESOURCES,Travel/Subsistence,TFL AUTOSETTLEMENT,08-Aug-2018,40.00
D1300G-CORPORATE RESOURCES,Accommodation,BLUEBERRY HOTEL,08-Aug-2018,74.00
D1300G-CORPORATE RESOURCES,Furniture-Domestic Furniture,WWW.IKEA.COM,08-Aug-2018,234.00
D1300G-CORPORATE RESOURCES,Taxi Fares,ABEX6831C LONDON NET C,08-Aug-2018,39.90
D1300G-CORPORATE RESOURCES,Travel/Subsistence,OYSTER AUTO-TOP UP,08-Aug-2018,140.00
D1300G-CORPORATE RESOURCES,Travel/Subsistence,OYSTER AUTO-TOP UP,08-Aug-2018,40.00
D1400G-CHILDREN'S SERVICES,Education-Library Books,AMZN MKTP UK AMAZON.CO.UK,08-Aug-2018,14.05
D1400G-CHILDREN'S SERVICES,Education-Library Books,Amazon.co.uk,08-Aug-2018,17.99
D1400G-CHILDREN'S SERVICES,Building-Tools,HSS HIRE,08-Aug-2018,167.70
D1200G-NEIGHBOURHOODS & GROWTH,Facilities-Market Research,WLY,09-Aug-2018,15.00
D1200G-NEIGHBOURHOODS & GROWTH,Building-Timber,SCREWFIX BRIXTON,09-Aug-2018,170.84
D1300G-CORPORATE RESOURCES,Clothing-Children/Adults,SP * BABY TRAVEL LTD,09-Aug-2018,248.90
D1300G-CORPORATE RESOURCES,Travel/Subsistence,OYSTER ONLINE,09-Aug-2018,100.00
D1300G-CORPORATE RESOURCES,Travel/Subsistence,OYSTER AUTO-TOP UP,09-Aug-2018,60.00
D1300G-CORPORATE RESOURCES,Travel/Subsistence,OYSTER AUTO-TOP UP,09-Aug-2018,20.00
D1300G-CORPORATE RESOURCES,Domestic Goods-Other,WWW.ARGOS.CO.UK,09-Aug-2018,264.94
D1300G-CORPORATE RESOURCES,Domestic Goods-Other,WWW.ARGOS.CO.UK,09-Aug-2018,329.87
D1300G-CORPORATE RESOURCES,Travel/Subsistence,OYSTER AUTO-TOP UP,09-Aug-2018,40.00
D1300G-CORPORATE RESOURCES,Travel/Subsistence,OYSTER AUTO-TOP UP,09-Aug-2018,20.00
D1300G-CORPORATE RESOURCES,Travel/Subsistence,OYSTER AUTO-TOP UP,09-Aug-2018,40.00
D1300G-CORPORATE RESOURCES,Travel/Subsistence,OYSTER ONLINE,09-Aug-2018,30.00
D1400G-CHILDREN'S SERVICES,Education-Library Books,AMZN Mktp UK,09-Aug-2018,9.27
D1400G-CHILDREN'S SERVICES,Catering Food & Drink,HERNE HILL LONDIS,09-Aug-2018,85.65
D1400G-CHILDREN'S SERVICES,Education-Library Books,AMZN Mktp UK,09-Aug-2018,13.97
D1400G-CHILDREN'S SERVICES,Education-Library Books,Amazon.co.uk,09-Aug-2018,10.99
D1100G-ADULTS & PUBLIC HEALTH,Domestic Goods-Other,CURRYS ONLINE,10-Aug-2018,219.99
D1100G-ADULTS & PUBLIC HEALTH,Catering Equipment,Amazon.co.uk,10-Aug-2018,20.92
D1100G-ADULTS & PUBLIC HEALTH,Legal Services-Other,HMCOURTS-SERVICE.G,10-Aug-2018,225.00
D1200G-NEIGHBOURHOODS & GROWTH,Education-Other,ABLE SKILLS LTD,10-Aug-2018,200.00
D1200G-NEIGHBOURHOODS & GROWTH,Financial Services,LAND REGISTRY,10-Aug-2018,6.00
D1200G-NEIGHBOURHOODS & GROWTH,Financial Services,LAND REGISTRY,10-Aug-2018,6.00
D1300G-CORPORATE RESOURCES,Travel/Subsistence,OYSTER AUTO-TOP UP,10-Aug-2018,20.00
D1300G-CORPORATE RESOURCES,Taxi Fares,CR0 TO  E4 RETURN,10-Aug-2018,180.00
D1300G-CORPORATE RESOURCES,Facilities-Market Research,HOO,10-Aug-2018,5.82
D1300G-CORPORATE RESOURCES,Travel/Subsistence,OYSTER AUTO-TOP UP,10-Aug-2018,40.00
D1300G-CORPORATE RESOURCES,Catering Food & Drink,TESCO STORE 2143,10-Aug-2018,30.00
D1300G-CORPORATE RESOURCES,Taxi Fares,ME10 TO N10,10-Aug-2018,250.00
D1300G-CORPORATE RESOURCES,Mail Services-Postage,POST OFFICE SELF SERVI,10-Aug-2018,8.40
D1300G-CORPORATE RESOURCES,Financial Services,GRO HM PASSPORT OFFICE,10-Aug-2018,18.50
D1300G-CORPORATE RESOURCES,Financial Services,SAINSBURYS           CASH,10-Aug-2018,0.00
D1300G-CORPORATE RESOURCES,Domestic Goods-Other,WWW.ARGOS.CO.UK,10-Aug-2018,306.94
D1300G-CORPORATE RESOURCES,Catering Food & Drink,TESCO STORES 5999,10-Aug-2018,72.40
D1300G-CORPORATE RESOURCES,Works-Construction,SQ *COMPARE THE MAN AND V,10-Aug-2018,267.43
D1300G-CORPORATE RESOURCES,Travel/Subsistence,OYSTER AUTO-TOP UP,10-Aug-2018,60.00
D1300G-CORPORATE RESOURCES,Mail Services-Postage,THE POST OFFICE,10-Aug-2018,3.54
D1300G-CORPORATE RESOURCES,Travel/Subsistence,OYSTER AUTO-TOP UP,10-Aug-2018,60.00
D1300G-CORPORATE RESOURCES,Travel/Subsistence,OYSTER AUTO-TOP UP,10-Aug-2018,120.00
D1400G-CHILDREN'S SERVICES,Catering Food & Drink,MARKS&SPENCER PLC SACA,10-Aug-2018,16.40
D1400G-CHILDREN'S SERVICES,Education-Library Books,AMZN Mktp UK,10-Aug-2018,7.94
D1400G-CHILDREN'S SERVICES,Education-Other,POUNDLAND LTD,10-Aug-2018,15.00
D1200G-NEIGHBOURHOODS & GROWTH,Consultancy-Business,FORTRESS MASTER LOCKSMITH,11-Aug-2018,38.17
D1200G-NEIGHBOURHOODS & GROWTH,Building-Timber,HOMEBASE LTD 313,11-Aug-2018,53.10
D1300G-CORPORATE RESOURCES,Travel/Subsistence,OYSTER AUTO-TOP UP,11-Aug-2018,40.00
D1300G-CORPORATE RESOURCES,Travel/Subsistence,OYSTER AUTO-TOP UP,11-Aug-2018,20.00
D1300G-CORPORATE RESOURCES,Travel/Subsistence,OYSTER AUTO-TOP UP,11-Aug-2018,80.00
D1300G-CORPORATE RESOURCES,Facilities-Market Research,Amazon Prime,11-Aug-2018,7.99
D1300G-CORPORATE RESOURCES,Travel/Subsistence,OYSTER AUTO-TOP UP,11-Aug-2018,40.00
D1300G-CORPORATE RESOURCES,Travel/Subsistence,OYSTER AUTO-TOP UP,12-Aug-2018,40.00
D1300G-CORPORATE RESOURCES,Travel/Subsistence,OYSTER AUTO-TOP UP,12-Aug-2018,40.00
D1300G-CORPORATE RESOURCES,Travel/Subsistence,OYSTER AUTO-TOP UP,12-Aug-2018,60.00
D1300G-CORPORATE RESOURCES,Travel/Subsistence,OYSTER AUTO-TOP UP,12-Aug-2018,20.00
D1400G-CHILDREN'S SERVICES,Travel/Subsistence,OYSTER ONLINE,12-Aug-2018,11.90
D1100G-ADULTS & PUBLIC HEALTH,Catering Food & Drink,TESCO STORES 5999,13-Aug-2018,49.43
D1100G-ADULTS & PUBLIC HEALTH,Catering Food & Drink,WWW.ICELAND.CO.UK,13-Aug-2018,151.64
D1200G-NEIGHBOURHOODS & GROWTH,Building-Timber,SCREWFIX BRIXTON,13-Aug-2018,-2.89
D1200G-NEIGHBOURHOODS & GROWTH,Building-Timber,SCREWFIX BRIXTON,13-Aug-2018,54.36
D1300G-CORPORATE RESOURCES,Taxi Fares,CIVIC TO CR0 RETURN,13-Aug-2018,93.50
D1300G-CORPORATE RESOURCES,Accommodation,CASH ADVANCE FEE,13-Aug-2018,0.00
D1300G-CORPORATE RESOURCES,Catering Food & Drink,SAINSBURYS S/MKTS,13-Aug-2018,24.60
D1300G-CORPORATE RESOURCES,Travel/Subsistence,OYSTER ONLINE,13-Aug-2018,49.00
D1300G-CORPORATE RESOURCES,Travel/Subsistence,OYSTER AUTO-TOP UP,13-Aug-2018,40.00
D1300G-CORPORATE RESOURCES,Travel/Subsistence,OYSTER ONLINE,13-Aug-2018,-30.00
D1300G-CORPORATE RESOURCES,Travel/Subsistence,OYSTER AUTO-TOP UP,13-Aug-2018,20.00
D1300G-CORPORATE RESOURCES,Haulage,PAYPAL,13-Aug-2018,165.00
D1400G-CHILDREN'S SERVICES,Public Transport,EXPRESS NEWS,13-Aug-2018,150.00
D1400G-CHILDREN'S SERVICES,Education-Library Books,AMZN Mktp UK,13-Aug-2018,4.79
D1400G-CHILDREN'S SERVICES,Education-Library Books,Amazon.co.uk,13-Aug-2018,9.19
D1200G-NEIGHBOURHOODS & GROWTH,Professional & Advisory Services,PAYPAL,14-Aug-2018,33.50
D1200G-NEIGHBOURHOODS & GROWTH,Professional & Advisory Services,PAYPAL,14-Aug-2018,1.34
D1300G-CORPORATE RESOURCES,Catering Food & Drink,TESCO STORES 5999,14-Aug-2018,72.40
D1300G-CORPORATE RESOURCES,Travel/Subsistence,OYSTER ONLINE,14-Aug-2018,-60.00
D1300G-CORPORATE RESOURCES,Mail Services-Postage,POST OFFICE SELF SERVI,14-Aug-2018,1.77
D1300G-CORPORATE RESOURCES,Taxi Fares,UBER TRIP T224E HELP.UBER,14-Aug-2018,10.02
D1300G-CORPORATE RESOURCES,Catering Food & Drink,TESCO STORE 2143,14-Aug-2018,30.00
D1300G-CORPORATE RESOURCES,Travel/Subsistence,OYSTER AUTO-TOP UP,14-Aug-2018,20.00
D1300G-CORPORATE RESOURCES,Haulage,www.anyvan.com,14-Aug-2018,72.00
D1300G-CORPORATE RESOURCES,Taxi Fares,UBER TRIP UFZRK HELP.UBER,14-Aug-2018,11.42
D1300G-CORPORATE RESOURCES,Taxi Fares,E5CIVIC RETURN,14-Aug-2018,140.00
D1300G-CORPORATE RESOURCES,Facilities-Advertising,BRIX CENTRAL STOP,14-Aug-2018,40.00
D1400G-CHILDREN'S SERVICES,Building-Tools,HSS HIRE,14-Aug-2018,36.00
D1400G-CHILDREN'S SERVICES,Domestic Goods-Other,POUNDLAND LTD 1203,14-Aug-2018,1.00
D1400G-CHILDREN'S SERVICES,Education-Library Books,AMZN Mktp UK,14-Aug-2018,18.68
D1400G-CHILDREN'S SERVICES,Financial Services,LONDON BRGH OF LAMBETH,14-Aug-2018,30.00
D1400G-CHILDREN'S SERVICES,Education-Library Books,Amazon Prime,14-Aug-2018,79.00
D1100G-ADULTS & PUBLIC HEALTH,Catering Food & Drink,SAINSBURY'S S/MKT,15-Aug-2018,79.20
D1100G-ADULTS & PUBLIC HEALTH,Facilities-Advertising,BM PAYMENTS SERVIC,15-Aug-2018,660.00
D1100G-ADULTS & PUBLIC HEALTH,Legal Services-Other,HMCOURTS-SERVICE.G,15-Aug-2018,150.00
D1200G-NEIGHBOURHOODS & GROWTH,Financial Services,LAND REGISTRY,15-Aug-2018,6.00
D1200G-NEIGHBOURHOODS & GROWTH,Financial Services,LAND REGISTRY,15-Aug-2018,3.00
D1200G-NEIGHBOURHOODS & GROWTH,Facilities-Market Research,WLY,15-Aug-2018,-30.00
D1200G-NEIGHBOURHOODS & GROWTH,Financial Services,LAND REGISTRY,15-Aug-2018,3.00
D1200G-NEIGHBOURHOODS & GROWTH,Building-Paint,SENATOR DEVELOPMEN,15-Aug-2018,34.95
D1200G-NEIGHBOURHOODS & GROWTH,Facilities-Market Research,WLY,15-Aug-2018,-30.00
D1300G-CORPORATE RESOURCES,Taxi Fares,UBER TRIP F3VUQ HELP.UBER,15-Aug-2018,10.44
D1300G-CORPORATE RESOURCES,Stationery,KODAK ALARIS LTD,15-Aug-2018,500.40
D1300G-CORPORATE RESOURCES,Travel/Subsistence,OYSTER ONLINE,15-Aug-2018,0.00
D1300G-CORPORATE RESOURCES,Travel/Subsistence,OYSTER AUTO-TOP UP,15-Aug-2018,80.00
D1300G-CORPORATE RESOURCES,Haulage,HAPPY 2 MOVE LIMIT,15-Aug-2018,80.00
D1300G-CORPORATE RESOURCES,Travel/Subsistence,OYSTER ONLINE,15-Aug-2018,30.00
D1300G-CORPORATE RESOURCES,Domestic Goods-Other,WWW.ARGOS.CO.UK,15-Aug-2018,249.92
D1300G-CORPORATE RESOURCES,Travel/Subsistence,OYSTER AUTO-TOP UP,15-Aug-2018,20.00
D1300G-CORPORATE RESOURCES,Taxi Fares,UBER TRIP MOA7B HELP.UBER,15-Aug-2018,6.00
D1300G-CORPORATE RESOURCES,Utilities,WWW.BRITISHGAS.CO.,15-Aug-2018,230.51
D1300G-CORPORATE RESOURCES,Taxi Fares,E5 SW2 SW11,15-Aug-2018,130.00
D1300G-CORPORATE RESOURCES,Travel/Subsistence,OYSTER AUTO-TOP UP,15-Aug-2018,60.00
D1400G-CHILDREN'S SERVICES,Education-Library Books,AMZ*UKPaperbackshop,15-Aug-2018,-15.77
D1800G-NEIGHBOURHOODS & GROWTH (HRA),Education-Library Books,AMZN Mktp UK,15-Aug-2018,26.45
D1200G-NEIGHBOURHOODS & GROWTH,Financial Services,LAND REGISTRY,16-Aug-2018,3.00
D1200G-NEIGHBOURHOODS & GROWTH,Building-Paint,S LONDON DECORTORS,16-Aug-2018,204.89
D1200G-NEIGHBOURHOODS & GROWTH,Facilities-Market Research,MAILCHIMP,16-Aug-2018,63.01
D1200G-NEIGHBOURHOODS & GROWTH,Financial Services,LAND REGISTRY,16-Aug-2018,6.00
D1200G-NEIGHBOURHOODS & GROWTH,Building-Timber,B & Q 1009,16-Aug-2018,74.50
D1200G-NEIGHBOURHOODS & GROWTH,Building-Paint,S LONDON DECORTORS,16-Aug-2018,86.11
D1200G-NEIGHBOURHOODS & GROWTH,Furniture-Domestic Furniture,ARGOS RETAIL GROUP,16-Aug-2018,44.99
D1300G-CORPORATE RESOURCES,Travel/Subsistence,OYSTER AUTO-TOP UP,16-Aug-2018,20.00
D1300G-CORPORATE RESOURCES,Financial Services-Grants,WWW.ADASS.ORG.UK,16-Aug-2018,570.00
D1300G-CORPORATE RESOURCES,Travel/Subsistence,OYSTER ONLINE,16-Aug-2018,-15.00
D1300G-CORPORATE RESOURCES,Travel/Subsistence,OYSTER AUTO-TOP UP,16-Aug-2018,40.00
D1300G-CORPORATE RESOURCES,Travel/Subsistence,OYSTER AUTO-TOP UP,16-Aug-2018,40.00
D1300G-CORPORATE RESOURCES,Catering Food & Drink,TESCO STORE 2143,16-Aug-2018,85.00
D1300G-CORPORATE RESOURCES,Travel/Subsistence,OYSTER ONLINE,16-Aug-2018,210.00
D1300G-CORPORATE RESOURCES,Travel/Subsistence,LUL TICKET MACHINE,16-Aug-2018,50.00
D1300G-CORPORATE RESOURCES,Conference Expenses,WWW.ADASS.ORG.UK,16-Aug-2018,2280.00
D1300G-CORPORATE RESOURCES,Works-Construction,SQ *COMPARE THE MAN AND V,16-Aug-2018,50.95
D1300G-CORPORATE RESOURCES,Travel/Subsistence,OYSTER AUTO-TOP UP,16-Aug-2018,20.00
D1300G-CORPORATE RESOURCES,Travel/Subsistence,JUST THE FLIGHT,16-Aug-2018,295.57
D1300G-CORPORATE RESOURCES,Travel/Subsistence,OYSTER AUTO-TOP UP,16-Aug-2018,40.00
D1400G-CHILDREN'S SERVICES,Catering Food & Drink,ASDA  STORES LTD TOTTE,16-Aug-2018,32.80
D1400G-CHILDREN'S SERVICES,Education-Library Books,Amazon.co.uk,16-Aug-2018,16.95
D1800G-NEIGHBOURHOODS & GROWTH (HRA),Education-Library Books,AMZN Mktp UK,16-Aug-2018,88.13
D1800G-NEIGHBOURHOODS & GROWTH (HRA),Education-Library Books,AMZN Mktp UK,16-Aug-2018,176.26
D1100G-ADULTS & PUBLIC HEALTH,Legal Services-Other,HMCOURTS-SERVICE.G,17-Aug-2018,150.00
D1100G-ADULTS & PUBLIC HEALTH,Catering Food & Drink,TESCO-STORES 6567,17-Aug-2018,30.00
D1200G-NEIGHBOURHOODS & GROWTH,Building-Timber,HOMEBASE LTD 015,17-Aug-2018,98.00
D1200G-NEIGHBOURHOODS & GROWTH,Building-Timber,ACRE LANE BUILDERS,17-Aug-2018,102.75
D1200G-NEIGHBOURHOODS & GROWTH,Building-Timber,ACRE LANE TIMBER LTD,17-Aug-2018,29.13
D1200G-NEIGHBOURHOODS & GROWTH,Building-Timber,ACRE LANE BUILDERS,17-Aug-2018,192.37
D1300G-CORPORATE RESOURCES,Catering Food & Drink,TESCO STORES 5999,17-Aug-2018,72.40
D1300G-CORPORATE RESOURCES,Financial Services,LAND REGISTRY,17-Aug-2018,3.00
D1300G-CORPORATE RESOURCES,Travel/Subsistence,OYSTER ONLINE,17-Aug-2018,60.00
D1300G-CORPORATE RESOURCES,Taxi Fares,UBER TRIP AXAGS HELP.UBER,17-Aug-2018,6.68
D1300G-CORPORATE RESOURCES,Catering Food & Drink,TESCO STORE 2143,17-Aug-2018,30.00
D1300G-CORPORATE RESOURCES,Mail Services-Postage,THE POST OFFICE,17-Aug-2018,8.85
D1300G-CORPORATE RESOURCES,Accommodation,MACDONALD HOTELS MANCH,17-Aug-2018,205.00
D1300G-CORPORATE RESOURCES,Travel/Subsistence,OYSTER AUTO-TOP UP,17-Aug-2018,20.00
D1300G-CORPORATE RESOURCES,Travel/Subsistence,OYSTER AUTO-TOP UP,17-Aug-2018,20.00
D1300G-CORPORATE RESOURCES,Taxi Fares,NW10 TO SE27,17-Aug-2018,80.00
D1300G-CORPORATE RESOURCES,Travel/Subsistence,OYSTER AUTO-TOP UP,17-Aug-2018,60.00
D1300G-CORPORATE RESOURCES,Mail Services-Postage,POST OFFICE SELF SERVI,17-Aug-2018,13.44
D1300G-CORPORATE RESOURCES,Accommodation,PREMIER INN44015990,17-Aug-2018,82.00
D1300G-CORPORATE RESOURCES,Facilities-Storage,SAFESTORE LIMITED,17-Aug-2018,518.77
D1300G-CORPORATE RESOURCES,Travel/Subsistence,OYSTER AUTO-TOP UP,17-Aug-2018,40.00
D1300G-CORPORATE RESOURCES,Catering Food & Drink,TESCO STORE 2143,17-Aug-2018,40.00
D1300G-CORPORATE RESOURCES,Travel/Subsistence,OYSTER AUTO-TOP UP,17-Aug-2018,20.00
D1300G-CORPORATE RESOURCES,Travel/Subsistence,OYSTER AUTO-TOP UP,17-Aug-2018,20.00
D1400G-CHILDREN'S SERVICES,Catering Food & Drink,TESCO STORE 2143,17-Aug-2018,58.35
D1400G-CHILDREN'S SERVICES,Education-Library Books,AMZN Mktp UK,17-Aug-2018,10.75
D1300G-CORPORATE RESOURCES,Travel/Subsistence,OYSTER AUTO-TOP UP,18-Aug-2018,20.00
D1300G-CORPORATE RESOURCES,Facilities-Market Research,Prime Fresh,18-Aug-2018,3.99
D1300G-CORPORATE RESOURCES,Travel/Subsistence,OYSTER AUTO-TOP UP,18-Aug-2018,20.00
D1300G-CORPORATE RESOURCES,Travel/Subsistence,OYSTER AUTO-TOP UP,18-Aug-2018,20.00
D1200G-NEIGHBOURHOODS & GROWTH,Consultancy-Business,WUFOO.COM,19-Aug-2018,14.00
D1200G-NEIGHBOURHOODS & GROWTH,Facilities-Printing,Amazon.co.uk,19-Aug-2018,18.20
D1300G-CORPORATE RESOURCES,Travel/Subsistence,OYSTER AUTO-TOP UP,19-Aug-2018,20.00
D1300G-CORPORATE RESOURCES,Travel/Subsistence,OYSTER AUTO-TOP UP,19-Aug-2018,60.00
D1300G-CORPORATE RESOURCES,Travel/Subsistence,OYSTER AUTO-TOP UP,19-Aug-2018,60.00
D1300G-CORPORATE RESOURCES,Travel/Subsistence,OYSTER AUTO-TOP UP,19-Aug-2018,20.00
D1300G-CORPORATE RESOURCES,Travel/Subsistence,OYSTER AUTO-TOP UP,19-Aug-2018,20.00
D1300G-CORPORATE RESOURCES,Travel/Subsistence,OYSTER AUTO-TOP UP,19-Aug-2018,20.00
D1300G-CORPORATE RESOURCES,Travel/Subsistence,OYSTER AUTO-TOP UP,19-Aug-2018,20.00
D1100G-ADULTS & PUBLIC HEALTH,Catering Food & Drink,SAINSBURY'S,20-Aug-2018,21.44
D1100G-ADULTS & PUBLIC HEALTH,Catering Food & Drink,TESCO STORES 5999,20-Aug-2018,53.81
D1200G-NEIGHBOURHOODS & GROWTH,Building-General,WWW.TOOLSTATION.COM,20-Aug-2018,21.28
D1300G-CORPORATE RESOURCES,Travel/Subsistence,OYSTER TELESALES 1ST ISSU,20-Aug-2018,30.00
D1300G-CORPORATE RESOURCES,Travel/Subsistence,OYSTER AUTO-TOP UP,20-Aug-2018,20.00
D1300G-CORPORATE RESOURCES,Travel/Subsistence,LUL TICKET MACHINE,20-Aug-2018,50.00
D1300G-CORPORATE RESOURCES,Vehicle Hire,BOOKINGABUSCOM,20-Aug-2018,1377.00
D1300G-CORPORATE RESOURCES,Travel/Subsistence,TRAINLINE,20-Aug-2018,45.60
D1300G-CORPORATE RESOURCES,Travel/Subsistence,OYSTER ONLINE,20-Aug-2018,60.00
D1300G-CORPORATE RESOURCES,IT Software,ADOBE  CREATIVE CLOUD,20-Aug-2018,141.60
D1300G-CORPORATE RESOURCES,Travel/Subsistence,OYSTER AUTO-TOP UP,20-Aug-2018,20.00
D1400G-CHILDREN'S SERVICES,Travel/Subsistence,LUL TICKET MACHINE,20-Aug-2018,60.00
D1400G-CHILDREN'S SERVICES,Education-Library Books,AMZN MKTP UK AMAZON.CO.UK,20-Aug-2018,5.45
D1800G-NEIGHBOURHOODS & GROWTH (HRA),Building-Timber,C BREWER & SONS,20-Aug-2018,127.68
D1100G-ADULTS & PUBLIC HEALTH,Catering Food & Drink,WWW.ICELAND.CO.UK,21-Aug-2018,164.20
D1100G-ADULTS & PUBLIC HEALTH,Public Transport,VIRGIN TRAINS,21-Aug-2018,33.00
D1200G-NEIGHBOURHOODS & GROWTH,Building-General,TOOLSTATION LTD,21-Aug-2018,54.46
D1200G-NEIGHBOURHOODS & GROWTH,Building-Roofing,TARA FABRICATIONS,21-Aug-2018,225.60
D1200G-NEIGHBOURHOODS & GROWTH,Building-Electrical,INTERNATIONAL LAMPS LTD,21-Aug-2018,13.15
D1200G-NEIGHBOURHOODS & GROWTH,Furniture-Domestic Furniture,INTERNATIONAL LAMPS,21-Aug-2018,197.52
D1200G-NEIGHBOURHOODS & GROWTH,Education-Library Books,AMZN Mktp UK,21-Aug-2018,68.39
D1300G-CORPORATE RESOURCES,Travel/Subsistence,OYSTER AUTO-TOP UP,21-Aug-2018,20.00
D1300G-CORPORATE RESOURCES,Taxi Fares,FAMILYCOURT TO CR0,21-Aug-2018,75.00
D1300G-CORPORATE RESOURCES,Catering Food & Drink,TESCO STORES 5999,21-Aug-2018,72.40
D1300G-CORPORATE RESOURCES,Travel/Subsistence,OYSTER AUTO-TOP UP,21-Aug-2018,20.00
D1300G-CORPORATE RESOURCES,Financial Services,DVLA DRIVER ONLINE,21-Aug-2018,34.00
D1300G-CORPORATE RESOURCES,Travel/Subsistence,OYSTER ONLINE,21-Aug-2018,30.00
D1300G-CORPORATE RESOURCES,Travel/Subsistence,TRAINLINE,21-Aug-2018,206.50
D1300G-CORPORATE RESOURCES,Travel/Subsistence,OYSTER AUTO-TOP UP,21-Aug-2018,20.00
D1300G-CORPORATE RESOURCES,Travel/Subsistence,OYSTER ONLINE,21-Aug-2018,60.00
D1400G-CHILDREN'S SERVICES,Public Transport,BRIXTONHILL EXPRESS,21-Aug-2018,60.00
D1400G-CHILDREN'S SERVICES,Mail Services-Postage,POST OFFICE SELF SERVI,21-Aug-2018,1.77
D1400G-CHILDREN'S SERVICES,Education-Library Books,AMZN Mktp UK,21-Aug-2018,33.17
D1800G-NEIGHBOURHOODS & GROWTH (HRA),Facilities-Market Research,AMAZON PRIME AMZN.CO.UK/P,21-Aug-2018,7.99
D1100G-ADULTS & PUBLIC HEALTH,Catering Food & Drink,ICELAND,22-Aug-2018,29.59
D1100G-ADULTS & PUBLIC HEALTH,Legal Services-Other,HMCOURTS-SERVICE.G,22-Aug-2018,150.00
D1200G-NEIGHBOURHOODS & GROWTH,Domestic Goods-Other,AMAZON.CO.UK AMAZON.CO.UK,22-Aug-2018,59.42
D1200G-NEIGHBOURHOODS & GROWTH,Education-Library Books,AMZN Mktp UK,22-Aug-2018,16.98
D1200G-NEIGHBOURHOODS & GROWTH,Furniture-Other,WAYFAIR #2572786888,22-Aug-2018,50.00
D1200G-NEIGHBOURHOODS & GROWTH,Travel/Subsistence,TFL PENALTY CHARGE,22-Aug-2018,195.00
D1200G-NEIGHBOURHOODS & GROWTH,Travel/Subsistence,LUL TICKET MACHINE,22-Aug-2018,50.00
D1200G-NEIGHBOURHOODS & GROWTH,Facilities-Printing,Amazon.co.uk,22-Aug-2018,199.00
D1200G-NEIGHBOURHOODS & GROWTH,Furniture-Domestic Furniture,WWW.ARGOS.CO.UK,22-Aug-2018,247.94
D1300G-CORPORATE RESOURCES,Facilities-Advertising,WH SMITH,22-Aug-2018,94.67
D1300G-CORPORATE RESOURCES,Travel/Subsistence,OYSTER AUTO-TOP UP,22-Aug-2018,80.00
D1300G-CORPORATE RESOURCES,Taxi Fares,CIVIC TO CR0 RETURN,22-Aug-2018,75.00
D1300G-CORPORATE RESOURCES,Financial Services,LONDON BOROUGH OF NEWH,22-Aug-2018,14.00
D1300G-CORPORATE RESOURCES,Clothing-Children/Adults,SP * BABY TRAVEL LTD,22-Aug-2018,-248.90
D1300G-CORPORATE RESOURCES,Taxi Fares,CIVIC TO COTSWOLD STRE,22-Aug-2018,75.00
D1300G-CORPORATE RESOURCES,Clothing-Children/Adults,BABY GEAR LIMITED,22-Aug-2018,269.99
D1300G-CORPORATE RESOURCES,Travel/Subsistence,OYSTER AUTO-TOP UP,22-Aug-2018,20.00
D1300G-CORPORATE RESOURCES,Accommodation,PREMIER INN 44536515,22-Aug-2018,81.50
D1300G-CORPORATE RESOURCES,IT Software,EXCEL TAXIS NETWORK,22-Aug-2018,56.00
D1300G-CORPORATE RESOURCES,Travel/Subsistence,OYSTER ONLINE,22-Aug-2018,120.00
D1300G-CORPORATE RESOURCES,Travel/Subsistence,OYSTER AUTO-TOP UP,22-Aug-2018,120.00
D1300G-CORPORATE RESOURCES,Travel/Subsistence,OYSTER AUTO-TOP UP,22-Aug-2018,20.00
D1300G-CORPORATE RESOURCES,Travel/Subsistence,OYSTER AUTO-TOP UP,22-Aug-2018,60.00
D1400G-CHILDREN'S SERVICES,Travel/Subsistence,LUL TICKET MACHINE,22-Aug-2018,90.00
D1400G-CHILDREN'S SERVICES,Public Transport,BRIXTONHILL EXPRESS,22-Aug-2018,60.00
D1400G-CHILDREN'S SERVICES,Sports Equipment,DECATHLON UK LTD,22-Aug-2018,62.80
D1400G-CHILDREN'S SERVICES,Building-Timber,SCREWFIX CROYDON PURLEY W,22-Aug-2018,15.48
D1800G-NEIGHBOURHOODS & GROWTH (HRA),Building-Timber,B & Q 1346,22-Aug-2018,47.87
D1800G-NEIGHBOURHOODS & GROWTH (HRA),Travel/Subsistence,LUL TICKET MACHINE,22-Aug-2018,215.00
D1100G-ADULTS & PUBLIC HEALTH,Catering Food & Drink,TESCO STORE 2764,23-Aug-2018,37.25
D1100G-ADULTS & PUBLIC HEALTH,Financial Services,ROYAL BANK UK /,23-Aug-2018,400.00
D1200G-NEIGHBOURHOODS & GROWTH,Travel/Subsistence,TRAINLINE,23-Aug-2018,85.30
D1200G-NEIGHBOURHOODS & GROWTH,Clothing-Children/Adults,IDC WRISTBANDS,23-Aug-2018,145.80
D1200G-NEIGHBOURHOODS & GROWTH,Furniture-Domestic Furniture,WAYFAIR #2576197198,23-Aug-2018,138.36
D1200G-NEIGHBOURHOODS & GROWTH,Travel/Subsistence,GOEURO,23-Aug-2018,129.00
D1200G-NEIGHBOURHOODS & GROWTH,Furniture-Domestic Furniture,PAYPAL,23-Aug-2018,340.00
D1200G-NEIGHBOURHOODS & GROWTH,Facilities-Printing,Amazon.co.uk,23-Aug-2018,9.99
D1300G-CORPORATE RESOURCES,Travel/Subsistence,OYSTER AUTO-TOP UP,23-Aug-2018,40.00
D1300G-CORPORATE RESOURCES,Travel/Subsistence,OYSTER ONLINE,23-Aug-2018,60.00
D1300G-CORPORATE RESOURCES,Catering Food & Drink,TESCO STORE 2143,23-Aug-2018,30.00
D1300G-CORPORATE RESOURCES,Taxi Fares,CIVIC TW TO EN,23-Aug-2018,180.00
D1300G-CORPORATE RESOURCES,Travel/Subsistence,OYSTER AUTO-TOP UP,23-Aug-2018,40.00
D1300G-CORPORATE RESOURCES,Travel/Subsistence,OYSTER ONLINE,23-Aug-2018,-30.00
D1300G-CORPORATE RESOURCES,Travel/Subsistence,OYSTER AUTO-TOP UP,23-Aug-2018,40.00
D1300G-CORPORATE RESOURCES,Travel/Subsistence,OYSTER AUTO-TOP UP,23-Aug-2018,40.00
D1300G-CORPORATE RESOURCES,Travel/Subsistence,OYSTER ONLINE,23-Aug-2018,30.00
D1300G-CORPORATE RESOURCES,Travel/Subsistence,OYSTER AUTO-TOP UP,23-Aug-2018,20.00
D1300G-CORPORATE RESOURCES,Travel/Subsistence,OYSTER AUTO-TOP UP,23-Aug-2018,20.00
D1300G-CORPORATE RESOURCES,Catering Food & Drink,TESCO STORES 5999,23-Aug-2018,72.40
D1300G-CORPORATE RESOURCES,Travel/Subsistence,OYSTER ONLINE,23-Aug-2018,30.00
D1300G-CORPORATE RESOURCES,Taxi Fares,UBER TRIP TH2TJ HELP.UBER,23-Aug-2018,8.02
D1300G-CORPORATE RESOURCES,Travel/Subsistence,OYSTER AUTO-TOP UP,23-Aug-2018,40.00
D1400G-CHILDREN'S SERVICES,Travel/Subsistence,LUL TICKET MACHINE,23-Aug-2018,170.00
D1400G-CHILDREN'S SERVICES,Education-Library Books,AMZN Mktp UK,23-Aug-2018,17.33
D1400G-CHILDREN'S SERVICES,Domestic Goods-Other,POUNDLAND,23-Aug-2018,3.00
D1800G-NEIGHBOURHOODS & GROWTH (HRA),Travel/Subsistence,LUL TICKET MACHINE,23-Aug-2018,110.00
D1800G-NEIGHBOURHOODS & GROWTH (HRA),Building-Timber,BLISSETTS BUILDERS SUPPLI,23-Aug-2018,123.76
D1800G-NEIGHBOURHOODS & GROWTH (HRA),Catering Food & Drink,TESCO STORES 4342,23-Aug-2018,69.00
D1100G-ADULTS & PUBLIC HEALTH,Financial Services,CASH ADVANCE FEE,24-Aug-2018,11.80
D1100G-ADULTS & PUBLIC HEALTH,Legal Services-Other,HMCOURTS-SERVICE.G,24-Aug-2018,75.00
D1200G-NEIGHBOURHOODS & GROWTH,Facilities-Market Research,HOO,24-Aug-2018,30.00
D1300G-CORPORATE RESOURCES,Accommodation,BRITISH A,24-Aug-2018,305.49
D1300G-CORPORATE RESOURCES,Financial Services-Insurance,WWW.AVIVA.CO.UK,24-Aug-2018,489.22
D1300G-CORPORATE RESOURCES,Travel/Subsistence,OYSTER AUTO-TOP UP,24-Aug-2018,40.00
D1300G-CORPORATE RESOURCES,Travel/Subsistence,OYSTER AUTO-TOP UP,24-Aug-2018,20.00
D1300G-CORPORATE RESOURCES,Domestic Goods-Other,WWW.ARGOS.CO.UK,24-Aug-2018,264.00
D1300G-CORPORATE RESOURCES,Travel/Subsistence,OYSTER AUTO-TOP UP,24-Aug-2018,20.00
D1300G-CORPORATE RESOURCES,Travel/Subsistence,OYSTER AUTO-TOP UP,24-Aug-2018,20.00
D1300G-CORPORATE RESOURCES,Travel/Subsistence,OYSTER ONLINE,24-Aug-2018,30.00
D1300G-CORPORATE RESOURCES,Travel/Subsistence,SACKVILLE TRAVELSERVIC,24-Aug-2018,1872.00
D1300G-CORPORATE RESOURCES,Mail Services-Postage,THE POST OFFICE,24-Aug-2018,9.19
D1300G-CORPORATE RESOURCES,Facilities-Market Research,Amazon Prime,24-Aug-2018,7.99
D1300G-CORPORATE RESOURCES,Conference Expenses,WWW.ADASS.ORG.UK,24-Aug-2018,570.00
D1300G-CORPORATE RESOURCES,Catering Food & Drink,TESCO STORE 2143,24-Aug-2018,30.00
D1400G-CHILDREN'S SERVICES,Education-Library Books,Amazon.co.uk,24-Aug-2018,5.10
D1400G-CHILDREN'S SERVICES,Education-Library Books,AMZN Mktp UK,24-Aug-2018,2.21
D1200G-NEIGHBOURHOODS & GROWTH,Travel/Subsistence,OYSTER AUTO-TOP UP,25-Aug-2018,20.00
D1300G-CORPORATE RESOURCES,Travel/Subsistence,OYSTER AUTO-TOP UP,25-Aug-2018,60.00
D1300G-CORPORATE RESOURCES,Travel/Subsistence,OYSTER AUTO-TOP UP,25-Aug-2018,20.00
D1300G-CORPORATE RESOURCES,Financial Services,NATIONALITY DIRECTORAT,25-Aug-2018,1236.00
D1300G-CORPORATE RESOURCES,Travel/Subsistence,OYSTER AUTO-TOP UP,25-Aug-2018,20.00
D1300G-CORPORATE RESOURCES,Travel/Subsistence,OYSTER AUTO-TOP UP,25-Aug-2018,40.00
D1400G-CHILDREN'S SERVICES,Education-Library Books,Amazon.co.uk,25-Aug-2018,8.18
D1400G-CHILDREN'S SERVICES,Financial Services,METRO BANK - CLAPHAM HI,25-Aug-2018,150.00
D1200G-NEIGHBOURHOODS & GROWTH,IT Software,GRAMMARLY CO06Y0-QCRG,26-Aug-2018,112.58
D1300G-CORPORATE RESOURCES,Travel/Subsistence,OYSTER AUTO-TOP UP,26-Aug-2018,60.00
D1300G-CORPORATE RESOURCES,Travel/Subsistence,OYSTER AUTO-TOP UP,26-Aug-2018,20.00
D1300G-CORPORATE RESOURCES,Travel/Subsistence,OYSTER AUTO-TOP UP,26-Aug-2018,40.00
D1300G-CORPORATE RESOURCES,Travel/Subsistence,OYSTER AUTO-TOP UP,26-Aug-2018,20.00
D1300G-CORPORATE RESOURCES,Travel/Subsistence,OYSTER AUTO-TOP UP,26-Aug-2018,20.00
D1300G-CORPORATE RESOURCES,Travel/Subsistence,OYSTER AUTO-TOP UP,27-Aug-2018,20.00
D1400G-CHILDREN'S SERVICES,Education-Library Books,AMZN Mktp UK,27-Aug-2018,4.95
D1400G-CHILDREN'S SERVICES,Education-Library Books,Amazon.co.uk,27-Aug-2018,28.28
D1400G-CHILDREN'S SERVICES,Education-Library Books,AMZN Mktp UK,27-Aug-2018,4.98
D1400G-CHILDREN'S SERVICES,Accommodation,CASH ADVANCE FEE,27-Aug-2018,4.43
D1100G-ADULTS & PUBLIC HEALTH,Catering Food & Drink,TESCO STORES 5999,28-Aug-2018,40.84
D1100G-ADULTS & PUBLIC HEALTH,Legal Services-Other,HMCOURTS-SERVICE.G,28-Aug-2018,225.00
D1200G-NEIGHBOURHOODS & GROWTH,IT Services,Dropbox VWHKJXWYVVYS,28-Aug-2018,36.00
D1200G-NEIGHBOURHOODS & GROWTH,Travel/Subsistence,OYSTER AUTO-TOP UP,28-Aug-2018,20.00
D1300G-CORPORATE RESOURCES,Catering Food & Drink,TESCO STORES 5999,28-Aug-2018,105.10
D1300G-CORPORATE RESOURCES,Taxi Fares,2 TRIPS CR2 RETURN CR7,28-Aug-2018,145.00
D1300G-CORPORATE RESOURCES,Facilities-Advertising,WOODSIDE STORES,28-Aug-2018,35.00
D1300G-CORPORATE RESOURCES,Travel/Subsistence,OYSTER ONLINE,28-Aug-2018,75.00
D1300G-CORPORATE RESOURCES,Travel/Subsistence,TRAINLINE,28-Aug-2018,27.61
D1300G-CORPORATE RESOURCES,Facilities-Storage,BIG YELLOW S S NINE EL,28-Aug-2018,303.00
D1300G-CORPORATE RESOURCES,Travel/Subsistence,OYSTER ONLINE,28-Aug-2018,49.00
D1400G-CHILDREN'S SERVICES,Catering Food & Drink,TESCO STORE 2143,28-Aug-2018,100.00
D1400G-CHILDREN'S SERVICES,Catering Food & Drink,ICELAND,28-Aug-2018,29.34
D1400G-CHILDREN'S SERVICES,Education-Other,POUNDLAND LTD,28-Aug-2018,38.00
D1400G-CHILDREN'S SERVICES,Education-Library Books,AMZN Mktp UK,28-Aug-2018,10.60
D1400G-CHILDREN'S SERVICES,Public Transport,BRIXTONHILL EXPRESS,28-Aug-2018,30.00
D1100G-ADULTS & PUBLIC HEALTH,Catering Food & Drink,TESCO STORE 2143,29-Aug-2018,5.90
D1200G-NEIGHBOURHOODS & GROWTH,Building-General,LEYLAND SDM CLAPHAM HIGH,29-Aug-2018,10.76
D1200G-NEIGHBOURHOODS & GROWTH,Accommodation,SLEEPAWAYS,29-Aug-2018,359.83
D1200G-NEIGHBOURHOODS & GROWTH,Facilities-Printing,VINE LODGE PRODUCTS LT,29-Aug-2018,146.85
D1200G-NEIGHBOURHOODS & GROWTH,IT Services,PAYPAL,29-Aug-2018,278.21
D1200G-NEIGHBOURHOODS & GROWTH,Education-Library Books,AMZN MKTP UK AMAZON.CO.UK,29-Aug-2018,49.99
D1300G-CORPORATE RESOURCES,Furniture-Domestic Furniture,BRIXTON FURNITURE CENT,29-Aug-2018,430.00
D1300G-CORPORATE RESOURCES,Taxi Fares,WWW.CABAPP.NET,29-Aug-2018,17.00
D1300G-CORPORATE RESOURCES,Travel/Subsistence,TRAINLINE,29-Aug-2018,19.55
D1300G-CORPORATE RESOURCES,Domestic Goods-Other,WWW.ARGOS.CO.UK,29-Aug-2018,445.91
D1300G-CORPORATE RESOURCES,Travel/Subsistence,OYSTER ONLINE,29-Aug-2018,30.00
D1300G-CORPORATE RESOURCES,Taxi Fares,WWW.ADDISONLEE.COM,29-Aug-2018,24.00
D1300G-CORPORATE RESOURCES,Childcare Services,CHERUBINS DAY NURSERY,29-Aug-2018,268.80
D1300G-CORPORATE RESOURCES,Domestic Goods-Other,WWW.VOUCHEREXPRESS.CO.,29-Aug-2018,200.00
D1300G-CORPORATE RESOURCES,Travel/Subsistence,OYSTER AUTO-TOP UP,29-Aug-2018,20.00
D1400G-CHILDREN'S SERVICES,Domestic Goods-Other,POUNDLAND LTD 1203,29-Aug-2018,7.10
D1800G-NEIGHBOURHOODS & GROWTH (HRA),Building-Timber,B & Q 1037,29-Aug-2018,52.99
D1800G-NEIGHBOURHOODS & GROWTH (HRA),Consultancy-Business,WP-WWW.OYEZFORMSLINK.C,29-Aug-2018,146.84
D1800G-NEIGHBOURHOODS & GROWTH (HRA),Travel/Subsistence,LUL TICKET MACHINE,29-Aug-2018,60.00
D1100G-ADULTS & PUBLIC HEALTH,Catering Food & Drink,MN WEST NORWOOD HALAL,30-Aug-2018,54.64
D1100G-ADULTS & PUBLIC HEALTH,Catering Food & Drink,LIDL UK LONDON,30-Aug-2018,17.94
D1100G-ADULTS & PUBLIC HEALTH,Travel/Subsistence,TRAINLINE,30-Aug-2018,20.15
D1100G-ADULTS & PUBLIC HEALTH,Healthcare Equipment,WWW.OXFORDMEDICAL.CO.U,30-Aug-2018,49.62
D1100G-ADULTS & PUBLIC HEALTH,Education-Library Books,AMZN Mktp UK,30-Aug-2018,2.21
D1100G-ADULTS & PUBLIC HEALTH,Education-Library Books,AMZN MKTP UK AMAZON.CO.UK,30-Aug-2018,12.48
D1200G-NEIGHBOURHOODS & GROWTH,Furniture-Office Furniture,ABSOLUTEPRODUCT.CO,30-Aug-2018,346.36
D1200G-NEIGHBOURHOODS & GROWTH,Accommodation,SLEEPAWAYS,30-Aug-2018,-354.23
D1200G-NEIGHBOURHOODS & GROWTH,Furniture-Other,WWW.ARGOS.CO.UK,30-Aug-2018,-20.00
D1300G-CORPORATE RESOURCES,Domestic Goods-Other,POUNDLAND LTD,30-Aug-2018,9.05
D1300G-CORPORATE RESOURCES,Travel/Subsistence,OYSTER AUTO-TOP UP,30-Aug-2018,20.00
D1300G-CORPORATE RESOURCES,Financial Services-Grants,ALLPAY *PA HOUSING,30-Aug-2018,712.01
D1300G-CORPORATE RESOURCES,Travel/Subsistence,OYSTER ONLINE,30-Aug-2018,0.00
D1300G-CORPORATE RESOURCES,Travel/Subsistence,OYSTER AUTO-TOP UP,30-Aug-2018,40.00
D1300G-CORPORATE RESOURCES,Taxi Fares,CIVIC TO CR8,30-Aug-2018,60.00
D1300G-CORPORATE RESOURCES,Taxi Fares,DA7 TO SE27,30-Aug-2018,45.00
D1300G-CORPORATE RESOURCES,Consultancy-Business,EB *DATA VISUALISATION,30-Aug-2018,306.80
D1300G-CORPORATE RESOURCES,Utilities,UK POWER NETWORKS,30-Aug-2018,1908.00
D1300G-CORPORATE RESOURCES,Accommodation,NOVOTEL HOTELS,30-Aug-2018,942.00
D1300G-CORPORATE RESOURCES,Travel/Subsistence,OYSTER AUTO-TOP UP,30-Aug-2018,40.00
D1300G-CORPORATE RESOURCES,Education-Library Books,AMZN Mktp UK,30-Aug-2018,11.37
D1300G-CORPORATE RESOURCES,Travel/Subsistence,TRAINLINE,30-Aug-2018,515.62
D1300G-CORPORATE RESOURCES,Travel/Subsistence,OYSTER AUTO-TOP UP,30-Aug-2018,20.00
D1300G-CORPORATE RESOURCES,Catering Food & Drink,MARKS&SPENCER PLC SACA,30-Aug-2018,44.65
D1400G-CHILDREN'S SERVICES,Catering Food & Drink,TESCO STORE 2143,30-Aug-2018,112.79
D1800G-NEIGHBOURHOODS & GROWTH (HRA),Catering Food & Drink,TESCO STORES 4342,30-Aug-2018,5.30
D1800G-NEIGHBOURHOODS & GROWTH (HRA),Travel/Subsistence,LUL TICKET MACHINE,30-Aug-2018,50.00
D1800G-NEIGHBOURHOODS & GROWTH (HRA),Consultancy-Business,WWW.LICENCEPLUS.CO.UK,30-Aug-2018,170.50
D1100G-ADULTS & PUBLIC HEALTH,Catering Food & Drink,WWW.ICELAND.CO.UK,31-Aug-2018,199.33
D1100G-ADULTS & PUBLIC HEALTH,IT Software,SMARTSHEET,31-Aug-2018,84.00
D1100G-ADULTS & PUBLIC HEALTH,Facilities-Market Research,Amazon Prime,31-Aug-2018,7.99
D1100G-ADULTS & PUBLIC HEALTH,Legal Services-Other,HMCOURTS-SERVICE.G,31-Aug-2018,300.00
D1200G-NEIGHBOURHOODS & GROWTH,Consultancy-Business,CANVAS EVENTS LTD,31-Aug-2018,36.00
D1200G-NEIGHBOURHOODS & GROWTH,Professional & Advisory Services,WWW.FTA.CO.UK,31-Aug-2018,344.40
D1200G-NEIGHBOURHOODS & GROWTH,Utilities,E.ON ENERGY SOLUTIONS,31-Aug-2018,15.27
D1300G-CORPORATE RESOURCES,Childcare Services,CHERUBINS DAY NURSERY,31-Aug-2018,291.20
D1300G-CORPORATE RESOURCES,Catering Food & Drink,MARKS&SPENCER PLC,31-Aug-2018,26.05
D1300G-CORPORATE RESOURCES,Financial Services,IPS DURHAM CONTACT CTR,31-Aug-2018,58.50
D1300G-CORPORATE RESOURCES,Travel/Subsistence,OYSTER AUTO-TOP UP,31-Aug-2018,40.00
D1300G-CORPORATE RESOURCES,Travel/Subsistence,OYSTER AUTO-TOP UP,31-Aug-2018,20.00
D1300G-CORPORATE RESOURCES,Travel/Subsistence,OYSTER AUTO-TOP UP,31-Aug-2018,40.00
D1300G-CORPORATE RESOURCES,Catering Food & Drink,TESCO STORE 2143,31-Aug-2018,30.00
D1300G-CORPORATE RESOURCES,Taxi Fares,SW16 TO ST THOMAS RETU,31-Aug-2018,70.00
D1300G-CORPORATE RESOURCES,Taxi Fares,SW2 TO SE26,31-Aug-2018,40.00
D1300G-CORPORATE RESOURCES,Travel/Subsistence,OYSTER ONLINE,31-Aug-2018,50.00
D1300G-CORPORATE RESOURCES,Education-Library Books,AMZN Mktp UK,31-Aug-2018,24.45
D1300G-CORPORATE RESOURCES,Domestic Goods-Other,WWW.VOUCHEREXPRESS.CO.,31-Aug-2018,160.00
D1300G-CORPORATE RESOURCES,Taxi Fares,CR8 TO CIVIC,31-Aug-2018,60.00
D1300G-CORPORATE RESOURCES,Facilities-Advertising,JUNCTION NEWS,31-Aug-2018,30.00
D1300G-CORPORATE RESOURCES,Travel/Subsistence,OYSTER AUTO-TOP UP,31-Aug-2018,40.00
D1300G-CORPORATE RESOURCES,Organised Activities,MOORCROFT GROUP,31-Aug-2018,200.00
D1300G-CORPORATE RESOURCES,Accommodation,AIRBNB,31-Aug-2018,107.23
D1300G-CORPORATE RESOURCES,Domestic Goods-Other,WWW.ARGOS.CO.UK,31-Aug-2018,197.92
D1300G-CORPORATE RESOURCES,Travel/Subsistence,OYSTER AUTO-TOP UP,31-Aug-2018,20.00
D1300G-CORPORATE RESOURCES,Accommodation,HOTEL ARBAL.VPC,31-Aug-2018,440.48
D1400G-CHILDREN'S SERVICES,IT Software,THE JOJO ENTERTAINMENT,31-Aug-2018,192.00
D1400G-CHILDREN'S SERVICES,Domestic Goods-Other,ECO UK MERCHANT LTD,31-Aug-2018,6.00
D1400G-CHILDREN'S SERVICES,Public Transport,BRIXTONHILL EXPRESS,31-Aug-2018,60.00
D1400G-CHILDREN'S SERVICES,Catering Food & Drink,MARKS&SPENCER PLC SACA,31-Aug-2018,44.10
D1200G-NEIGHBOURHOODS & GROWTH,Consultancy-Business,CANVAS EVENTS LTD,01-Sep-2018,72.00
D1300G-CORPORATE RESOURCES,Travel/Subsistence,OYSTER AUTO-TOP UP,01-Sep-2018,100.00
D1300G-CORPORATE RESOURCES,Travel/Subsistence,OYSTER AUTO-TOP UP,01-Sep-2018,20.00
D1300G-CORPORATE RESOURCES,Travel/Subsistence,OYSTER AUTO-TOP UP,01-Sep-2018,20.00
D1300G-CORPORATE RESOURCES,Travel/Subsistence,OYSTER AUTO-TOP UP,01-Sep-2018,20.00
D1300G-CORPORATE RESOURCES,Accommodation,NATIONBUILDER,01-Sep-2018,174.16
D1300G-CORPORATE RESOURCES,Travel/Subsistence,OYSTER AUTO-TOP UP,01-Sep-2018,20.00
D1300G-CORPORATE RESOURCES,Education-Library Books,AMZN Mktp UK,01-Sep-2018,39.49
D1300G-CORPORATE RESOURCES,Travel/Subsistence,OYSTER AUTO-TOP UP,02-Sep-2018,40.00
D1100G-ADULTS & PUBLIC HEALTH,Catering Food & Drink,TESCO STORES 5999,03-Sep-2018,76.55
D1200G-NEIGHBOURHOODS & GROWTH,Education-Library Books,AMZN Mktp UK,03-Sep-2018,33.72
D1200G-NEIGHBOURHOODS & GROWTH,Consultancy-Business,BLS*DAPULSE LABS LTD,03-Sep-2018,74.40
D1200G-NEIGHBOURHOODS & GROWTH,IT Software,ADOBE  CREATIVE CLOUD,03-Sep-2018,83.24
D1300G-CORPORATE RESOURCES,Domestic Goods-Other,CANFORD AUDIO PLC,03-Sep-2018,81.60
D1300G-CORPORATE RESOURCES,Domestic Goods-Other,WWW.ARGOS.CO.UK,03-Sep-2018,178.92
D1300G-CORPORATE RESOURCES,Stationery,WWW.BLACKWELL.CO.UK,03-Sep-2018,200.88
D1300G-CORPORATE RESOURCES,Accommodation,NATIONBUILDER,03-Sep-2018,71.28
D1300G-CORPORATE RESOURCES,Consultancy-Business,AWS EMEA,03-Sep-2018,143.81
D1400G-CHILDREN'S SERVICES,Education-Library Books,AMZN Mktp UK,03-Sep-2018,21.61
D1200G-NEIGHBOURHOODS & GROWTH,Education-Library Books,AMZN Mktp UK,04-Sep-2018,18.98
D1200G-NEIGHBOURHOODS & GROWTH,Facilities-Printing,CENTRAL SOURCE LTD,04-Sep-2018,1019.28
D1200G-NEIGHBOURHOODS & GROWTH,Travel/Subsistence,TFL CYCLE HIRE,04-Sep-2018,6.00
D1300G-CORPORATE RESOURCES,Domestic Goods-Other,WWW.ARGOS.CO.UK,04-Sep-2018,264.88
D1300G-CORPORATE RESOURCES,Financial Services,DVLA DRIVER ONLINE,04-Sep-2018,34.00
D1300G-CORPORATE RESOURCES,Mail Services-Postage,POST OFFICE SELF SERVI,04-Sep-2018,10.21
D1300G-CORPORATE RESOURCES,Travel/Subsistence,OYSTER ONLINE,04-Sep-2018,79.00
D1300G-CORPORATE RESOURCES,IT Software-Customised,PANTHEON SYSTEMS INC,04-Sep-2018,28.13
D1300G-CORPORATE RESOURCES,Catering Food & Drink,TESCO STORES 5999,04-Sep-2018,72.40
D1300G-CORPORATE RESOURCES,Travel/Subsistence,TRAINLINE,04-Sep-2018,63.50
D1300G-CORPORATE RESOURCES,Financial Services,THE HOME OFFICE,04-Sep-2018,49.00
D1300G-CORPORATE RESOURCES,Financial Services,LONDON BRGH OF LAMBETH,04-Sep-2018,30.00
D1300G-CORPORATE RESOURCES,Haulage,PAYPAL,04-Sep-2018,100.00
D1300G-CORPORATE RESOURCES,Facilities-Market Research,WHSMITH.CO.UK,04-Sep-2018,5.24
D1400G-CHILDREN'S SERVICES,Education-Library Books,AMZN Mktp UK,04-Sep-2018,17.79
D1400G-CHILDREN'S SERVICES,Education-Library Books,Amazon.co.uk,04-Sep-2018,14.42
D1400G-CHILDREN'S SERVICES,Education-Other,MIKES NEWS,04-Sep-2018,826.80
D1400G-CHILDREN'S SERVICES,Education-Library Books,AMZN MKTP UK AMAZON.CO.UK,04-Sep-2018,9.72
D1200G-NEIGHBOURHOODS & GROWTH,Domestic Goods-Other,AMZ*Annova (UK) Ltd,05-Sep-2018,-16.98
D1300G-CORPORATE RESOURCES,IT Software,WWW.WEVIDEO.COM/CHARGE,05-Sep-2018,12.88
D1300G-CORPORATE RESOURCES,Catering Food & Drink,MARKS&SPENCER PLC SACA,05-Sep-2018,30.30
D1300G-CORPORATE RESOURCES,Legal Services-Other,HMCOURTS-SERVICE.G,05-Sep-2018,990.50
D1300G-CORPORATE RESOURCES,Stationery,KODAK ALARIS LTD,05-Sep-2018,622.26
D1300G-CORPORATE RESOURCES,Travel/Subsistence,OYSTER ONLINE,05-Sep-2018,90.00
D1300G-CORPORATE RESOURCES,Travel/Subsistence,AUTO TOP-UP ARREARS,05-Sep-2018,20.00
D1300G-CORPORATE RESOURCES,Travel/Subsistence,OYSTER ONLINE,05-Sep-2018,60.00
D1300G-CORPORATE RESOURCES,Travel/Subsistence,TFL AUTOSETTLEMENT,05-Sep-2018,60.00
D1300G-CORPORATE RESOURCES,Travel/Subsistence,OYSTER AUTO-TOP UP,05-Sep-2018,20.00
D1300G-CORPORATE RESOURCES,Travel/Subsistence,LUL TICKET MACHINE,05-Sep-2018,50.00
D1300G-CORPORATE RESOURCES,Travel/Subsistence,OYSTER ONLINE,05-Sep-2018,50.00
D1300G-CORPORATE RESOURCES,Catering Food & Drink,JAMAICA SPICE BAKERY L,05-Sep-2018,12.80
D1400G-CHILDREN'S SERVICES,Education-Library Books,Amazon.co.uk,05-Sep-2018,47.31
D1200G-NEIGHBOURHOODS & GROWTH,Facilities-Advertising,PAYPAL,06-Sep-2018,126.39
D1200G-NEIGHBOURHOODS & GROWTH,Clothing-Children/Adults,SHOE ZONE (INTERNET),06-Sep-2018,27.99
D1200G-NEIGHBOURHOODS & GROWTH,Travel/Subsistence,ZIPCAR,06-Sep-2018,12.00
D1300G-CORPORATE RESOURCES,Travel/Subsistence,TRAINLINE,06-Sep-2018,155.09
D1300G-CORPORATE RESOURCES,Financial Services,LAND REGISTRY,06-Sep-2018,3.00
D1300G-CORPORATE RESOURCES,Taxi Fares,CIVIC TO CR7,06-Sep-2018,35.00
D1300G-CORPORATE RESOURCES,Travel/Subsistence,OYSTER ONLINE,06-Sep-2018,20.00
D1300G-CORPORATE RESOURCES,Travel/Subsistence,AUTO TOP-UP ARREARS,06-Sep-2018,40.00
D1300G-CORPORATE RESOURCES,Travel/Subsistence,AUTO TOP-UP ARREARS,06-Sep-2018,40.00
D1300G-CORPORATE RESOURCES,Domestic Goods-Commercial,PAYPAL,06-Sep-2018,299.99
D1300G-CORPORATE RESOURCES,Financial Services,IHS031259373PA01 2018-,06-Sep-2018,500.00
D1300G-CORPORATE RESOURCES,Travel/Subsistence,OYSTER AUTO-TOP UP,06-Sep-2018,60.00
D1300G-CORPORATE RESOURCES,Mail Services-Postage,POST OFFICE COUNTER,06-Sep-2018,518.13
D1300G-CORPORATE RESOURCES,Domestic Goods-Other,AMAZON.CO.UK AMAZON.CO.UK,06-Sep-2018,36.98
D1300G-CORPORATE RESOURCES,Travel/Subsistence,OYSTER ONLINE,06-Sep-2018,280.00
D1300G-CORPORATE RESOURCES,Furniture-Domestic Furniture,KOALA FURNISHINGS LEE,06-Sep-2018,595.00
D1300G-CORPORATE RESOURCES,Stationery,AMZN Mktp UK,06-Sep-2018,33.35
D1300G-CORPORATE RESOURCES,Taxi Fares,CIVIC TO SE19,06-Sep-2018,27.00
D1300G-CORPORATE RESOURCES,Taxi Fares,WWW.ADDISONLEE.COM,06-Sep-2018,45.60
D1300G-CORPORATE RESOURCES,Travel/Subsistence,TRAINLINE,06-Sep-2018,18.55
D1300G-CORPORATE RESOURCES,Travel/Subsistence,OYSTER ONLINE,06-Sep-2018,15.00
D1300G-CORPORATE RESOURCES,Consultancy-Business,EB *USING YOUR SMARTPH,06-Sep-2018,108.98
D1300G-CORPORATE RESOURCES,Taxi Fares,SE21 TO CR0,06-Sep-2018,50.00
D1300G-CORPORATE RESOURCES,Travel/Subsistence,TFL AUTOSETTLEMENT,06-Sep-2018,20.00
D1300G-CORPORATE RESOURCES,Travel/Subsistence,OYSTER ONLINE,06-Sep-2018,20.00
D1400G-CHILDREN'S SERVICES,Accommodation,LOVE2SHOP.CO.UK,06-Sep-2018,504.25
D1400G-CHILDREN'S SERVICES,Education-Library Books,AMZ*ThriftBooks-Phoeni,06-Sep-2018,-11.80
D1400G-CHILDREN'S SERVICES,Education-Library Books,AMZN Mktp UK,06-Sep-2018,26.13
D1100G-ADULTS & PUBLIC HEALTH,Financial Services,LAMBETH INTERNET PAYM,07-Sep-2018,-100.00
D1200G-NEIGHBOURHOODS & GROWTH,Consultancy-Business,FORTRESS MASTER LOCKSMITH,07-Sep-2018,115.08
D1200G-NEIGHBOURHOODS & GROWTH,Domestic Goods-Other,WWW.ARGOS.CO.UK,07-Sep-2018,33.94
D1200G-NEIGHBOURHOODS & GROWTH,Staff Recruitment costs,THE LEISURE MEDIA,07-Sep-2018,238.20
D1200G-NEIGHBOURHOODS & GROWTH,Financial Services,LAMBETH INTERNET PAYM,07-Sep-2018,21.00
D1200G-NEIGHBOURHOODS & GROWTH,Facilities-Market Research,THE LEISURE MEDIA,07-Sep-2018,238.20
D1200G-NEIGHBOURHOODS & GROWTH,Financial Services,WWW.JERSEYFSC.ORG,07-Sep-2018,16.00
D1300G-CORPORATE RESOURCES,Haulage,WANNA LTD,07-Sep-2018,180.75
D1300G-CORPORATE RESOURCES,Catering Food & Drink,TESCO STORES 5999,07-Sep-2018,39.34
D1300G-CORPORATE RESOURCES,Financial Services,LONDON BRGH OF LAMBETH,07-Sep-2018,40.00
D1300G-CORPORATE RESOURCES,Catering Food & Drink,TESCO STORE 2143,07-Sep-2018,250.00
D1300G-CORPORATE RESOURCES,Mail Services-Postage,POST OFFICE SELF SERVI,07-Sep-2018,7.40
D1300G-CORPORATE RESOURCES,Travel/Subsistence,TRAINLINE,07-Sep-2018,-36.00
D1300G-CORPORATE RESOURCES,Mail Services-Postage,POST OFFICE SELF SERVI,07-Sep-2018,15.93
D1300G-CORPORATE RESOURCES,Travel/Subsistence,OYSTER ONLINE,07-Sep-2018,30.00
D1300G-CORPORATE RESOURCES,Catering Food & Drink,TESCO STORE 2143,07-Sep-2018,30.00
D1300G-CORPORATE RESOURCES,Travel/Subsistence,OYSTER ONLINE,07-Sep-2018,205.00
D1300G-CORPORATE RESOURCES,Travel/Subsistence,TRAINLINE,07-Sep-2018,76.80
D1300G-CORPORATE RESOURCES,Accommodation,PREMIER INN44012635,07-Sep-2018,498.00
D1300G-CORPORATE RESOURCES,Travel/Subsistence,OYSTER ONLINE,07-Sep-2018,30.00
D1300G-CORPORATE RESOURCES,Catering Food & Drink,TESCO STORE 3300,07-Sep-2018,150.00
D1300G-CORPORATE RESOURCES,Catering Food & Drink,LOW COST SUPERMARKET,07-Sep-2018,60.00
D1300G-CORPORATE RESOURCES,Travel/Subsistence,OYSTER AUTO-TOP UP,07-Sep-2018,20.00
D1400G-CHILDREN'S SERVICES,Public Transport,BRIXTONHILL EXPRESS,07-Sep-2018,120.00
D1400G-CHILDREN'S SERVICES,Education-Library Books,AMZN Mktp UK,07-Sep-2018,30.07
D1400G-CHILDREN'S SERVICES,Public Transport,OYSTER ONLINE,07-Sep-2018,30.00
D1800G-NEIGHBOURHOODS & GROWTH (HRA),Financial Services,LONDON BRGH OF LAMBETH,07-Sep-2018,40.00
D1800G-NEIGHBOURHOODS & GROWTH (HRA),Horticultural-Other,AMZN Mktp UK,07-Sep-2018,98.57
D1200G-NEIGHBOURHOODS & GROWTH,Travel/Subsistence,TFL CYCLE HIRE,08-Sep-2018,4.00
D1200G-NEIGHBOURHOODS & GROWTH,Books/Publications/Resources,WHICH,08-Sep-2018,10.75
D1300G-CORPORATE RESOURCES,Financial Services,HM PASSPORT OFFICE,08-Sep-2018,85.00
D1300G-CORPORATE RESOURCES,Travel/Subsistence,OYSTER AUTO-TOP UP,08-Sep-2018,20.00
D1300G-CORPORATE RESOURCES,Travel/Subsistence,OYSTER AUTO-TOP UP,08-Sep-2018,120.00
D1400G-CHILDREN'S SERVICES,Education-Library Books,AMZN Mktp UK,08-Sep-2018,27.48
D1300G-CORPORATE RESOURCES,Travel/Subsistence,OYSTER AUTO-TOP UP,09-Sep-2018,20.00
D1300G-CORPORATE RESOURCES,Travel/Subsistence,OYSTER AUTO-TOP UP,09-Sep-2018,20.00
D1300G-CORPORATE RESOURCES,Travel/Subsistence,OYSTER AUTO-TOP UP,09-Sep-2018,20.00
D1400G-CHILDREN'S SERVICES,Education-Library Books,Amazon.co.uk,09-Sep-2018,7.71
D1400G-CHILDREN'S SERVICES,Education-Library Books,AMZN Mktp UK,09-Sep-2018,25.86
D1100G-ADULTS & PUBLIC HEALTH,Catering Food & Drink,TESCO STORES 5999,10-Sep-2018,57.55
D1200G-NEIGHBOURHOODS & GROWTH,Domestic Goods-Other,PAYPAL,10-Sep-2018,10.99
D1300G-CORPORATE RESOURCES,Catering Food & Drink,TESCO STORES 5999,10-Sep-2018,72.40
D1300G-CORPORATE RESOURCES,Travel/Subsistence,LUL TICKET MACHINE,10-Sep-2018,100.00
D1300G-CORPORATE RESOURCES,Travel/Subsistence,LONDON & SOUTH EAS,10-Sep-2018,0.00
D1300G-CORPORATE RESOURCES,Mail Services-Postage,POST OFFICE SELF SERVI,10-Sep-2018,3.54
D1300G-CORPORATE RESOURCES,Travel/Subsistence,OYSTER ONLINE,10-Sep-2018,30.00
D1300G-CORPORATE RESOURCES,Travel/Subsistence,OYSTER ONLINE,10-Sep-2018,100.00
D1300G-CORPORATE RESOURCES,Travel/Subsistence,OYSTER ONLINE,10-Sep-2018,10.00
D1300G-CORPORATE RESOURCES,Financial Services,THE HOME OFFICE,10-Sep-2018,75.00
D1300G-CORPORATE RESOURCES,Travel/Subsistence,TFL AUTOSETTLEMENT,10-Sep-2018,40.00
D1300G-CORPORATE RESOURCES,Financial Services,HM PASSPORT OFFICE,10-Sep-2018,85.00
D1300G-CORPORATE RESOURCES,Travel/Subsistence,TFL AUTOSETTLEMENT,10-Sep-2018,60.00
D1300G-CORPORATE RESOURCES,Travel/Subsistence,AUTO TOP-UP ARREARS,10-Sep-2018,20.00
D1400G-CHILDREN'S SERVICES,Public Transport,OYSTER ONLINE,10-Sep-2018,150.00
D1800G-NEIGHBOURHOODS & GROWTH (HRA),Horticultural-Other,AMZN Mktp UK,10-Sep-2018,30.40
D1100G-ADULTS & PUBLIC HEALTH,Legal Services-Other,HMCOURTS-SERVICE.G,11-Sep-2018,300.00
D1200G-NEIGHBOURHOODS & GROWTH,Consultancy-Business,FORTRESS MASTER LOCKSMITH,11-Sep-2018,7.70
D1200G-NEIGHBOURHOODS & GROWTH,Stationery,AMZN MKTP UK AMAZON.CO.UK,11-Sep-2018,6.89
D1200G-NEIGHBOURHOODS & GROWTH,Education-Library Books,AMZN MKTP UK AMAZON.CO.UK,11-Sep-2018,22.94
D1300G-CORPORATE RESOURCES,Travel/Subsistence,LUL TICKET MACHINE,11-Sep-2018,50.00
D1300G-CORPORATE RESOURCES,Stationery,AMAZON.CO.UK AMAZON.CO.UK,11-Sep-2018,439.63
D1300G-CORPORATE RESOURCES,Travel/Subsistence,AUTO TOP-UP ARREARS,11-Sep-2018,20.00
D1300G-CORPORATE RESOURCES,Taxi Fares,SW2 TO EN3,11-Sep-2018,80.00
D1300G-CORPORATE RESOURCES,Haulage,PAYPAL,11-Sep-2018,110.00
D1300G-CORPORATE RESOURCES,Mail Services-Postage,THE POST OFFICE,11-Sep-2018,1.77
D1300G-CORPORATE RESOURCES,Travel/Subsistence,TRAINLINE,11-Sep-2018,49.32
D1300G-CORPORATE RESOURCES,Travel/Subsistence,OYSTER ONLINE,11-Sep-2018,60.00
D1300G-CORPORATE RESOURCES,Travel/Subsistence,OYSTER AUTO-TOP UP,11-Sep-2018,20.00
D1300G-CORPORATE RESOURCES,Financial Services-Grants,LEARNING AND WORK INST,11-Sep-2018,120.00
D1300G-CORPORATE RESOURCES,Catering Food & Drink,SAINSBURYS S/MKTS,11-Sep-2018,6.96
D1300G-CORPORATE RESOURCES,Travel/Subsistence,OYSTER ONLINE,11-Sep-2018,20.00
D1300G-CORPORATE RESOURCES,Facilities-Market Research,Amazon Prime,11-Sep-2018,7.99
D1300G-CORPORATE RESOURCES,Consultancy-Business,DENNIS PUBLISHING,11-Sep-2018,1020.00
D1300G-CORPORATE RESOURCES,Building-Timber,B & Q 1162,11-Sep-2018,331.00
D1300G-CORPORATE RESOURCES,Travel/Subsistence,LUL TICKET MACHINE,11-Sep-2018,121.20
D1300G-CORPORATE RESOURCES,Taxi Fares,THE KEEN GROUP,11-Sep-2018,51.58
D1400G-CHILDREN'S SERVICES,Domestic Goods-Other,WWW.VOUCHEREXPRESS.CO.,11-Sep-2018,411.00
D1400G-CHILDREN'S SERVICES,Public Transport,OYSTER ONLINE,11-Sep-2018,90.00
D1200G-NEIGHBOURHOODS & GROWTH,Travel/Subsistence,LUL TICKET MACHINE,12-Sep-2018,50.00
D1200G-NEIGHBOURHOODS & GROWTH,Travel/Subsistence,OYSTER AUTO-TOP UP,12-Sep-2018,40.00
D1200G-NEIGHBOURHOODS & GROWTH,IT Software,LONDON SPORT,12-Sep-2018,66.00
D1200G-NEIGHBOURHOODS & GROWTH,Building-Timber,SCREWFIX BRIXTON,12-Sep-2018,127.81
D1200G-NEIGHBOURHOODS & GROWTH,Education-Library Books,AMZN MKTP UK AMAZON.CO.UK,12-Sep-2018,22.94
D1300G-CORPORATE RESOURCES,Travel/Subsistence,OYSTER ONLINE,12-Sep-2018,30.00
D1300G-CORPORATE RESOURCES,Taxi Fares,CR0 SE21 RETURN,12-Sep-2018,100.00
D1300G-CORPORATE RESOURCES,Catering Food & Drink,TESCO STORES 5999,12-Sep-2018,70.90
D1300G-CORPORATE RESOURCES,Travel/Subsistence,OYSTER ONLINE,12-Sep-2018,60.00
D1300G-CORPORATE RESOURCES,Accommodation,EASYJET,12-Sep-2018,132.57
D1300G-CORPORATE RESOURCES,Catering Food & Drink,VERA CRUZ,12-Sep-2018,150.00
D1300G-CORPORATE RESOURCES,Taxi Fares,SUBWAY TO SE19,12-Sep-2018,30.00
D1300G-CORPORATE RESOURCES,Furniture-Domestic Furniture,BRIXTON FURNITURE CENT,12-Sep-2018,660.00
D1300G-CORPORATE RESOURCES,Travel/Subsistence,OYSTER ONLINE,12-Sep-2018,60.00
D1300G-CORPORATE RESOURCES,Catering Food & Drink,TESCO STORE 2143,12-Sep-2018,30.14
D1300G-CORPORATE RESOURCES,Travel/Subsistence,OYSTER ONLINE,12-Sep-2018,-20.00
D1300G-CORPORATE RESOURCES,Catering Food & Drink,MARKS&SPENCER PLC SACA,12-Sep-2018,45.30
D1300G-CORPORATE RESOURCES,Travel/Subsistence,OYSTER AUTO-TOP UP,12-Sep-2018,20.00
D1300G-CORPORATE RESOURCES,Travel/Subsistence,OYSTER AUTO-TOP UP,12-Sep-2018,60.00
D1300G-CORPORATE RESOURCES,Travel/Subsistence,OYSTER ONLINE,12-Sep-2018,10.00
D1300G-CORPORATE RESOURCES,Travel/Subsistence,OYSTER ONLINE,12-Sep-2018,30.00
D1300G-CORPORATE RESOURCES,Catering Food & Drink,TESCO STORE 2143,12-Sep-2018,30.00
D1300G-CORPORATE RESOURCES,Travel/Subsistence,OYSTER AUTO-TOP UP,12-Sep-2018,20.00
D1400G-CHILDREN'S SERVICES,Catering Food & Drink,POUNDLAND LTD,12-Sep-2018,46.20
D1400G-CHILDREN'S SERVICES,Education-Library Books,Amazon.co.uk,12-Sep-2018,8.99
D1400G-CHILDREN'S SERVICES,Education-Library Books,Amazon.co.uk,12-Sep-2018,9.18
D1400G-CHILDREN'S SERVICES,Accommodation,PREMIER INN 44536515,12-Sep-2018,65.00
D1400G-CHILDREN'S SERVICES,Public Transport,OYSTER ONLINE,12-Sep-2018,60.00
D1400G-CHILDREN'S SERVICES,Catering Food & Drink,WM MORRISON PLC,12-Sep-2018,33.27
D1100G-ADULTS & PUBLIC HEALTH,Financial Services,NATWEST BANK  /,13-Sep-2018,400.00
D1200G-NEIGHBOURHOODS & GROWTH,Domestic Goods-Other,MYVOLTS ORDER 6005664,13-Sep-2018,9.99
D1200G-NEIGHBOURHOODS & GROWTH,Consultancy-Business,FORTRESS MASTER LOCKSMITH,13-Sep-2018,57.53
D1300G-CORPORATE RESOURCES,Catering Food & Drink,MARKS&SPENCER PLC,13-Sep-2018,61.00
D1300G-CORPORATE RESOURCES,Mail Services-Postage,THE POST OFFICE,13-Sep-2018,6.50
D1300G-CORPORATE RESOURCES,Travel/Subsistence,OYSTER ONLINE,13-Sep-2018,-70.00
D1300G-CORPORATE RESOURCES,Facilities-Storage,WWW.BIGYELLOW.CO.UK,13-Sep-2018,108.00
D1300G-CORPORATE RESOURCES,Taxi Fares,CR0 TO SW9,13-Sep-2018,50.00
D1300G-CORPORATE RESOURCES,Catering Food & Drink,TESCO STORE 2143,13-Sep-2018,10.00
D1300G-CORPORATE RESOURCES,Mail Services-Postage,POST OFFICE SELF SERVI,13-Sep-2018,5.04
D1300G-CORPORATE RESOURCES,Mail Services-Postage,THE POST OFFICE,13-Sep-2018,67.00
D1300G-CORPORATE RESOURCES,Accommodation,PREMIER INN44012635,13-Sep-2018,458.00
D1300G-CORPORATE RESOURCES,Travel/Subsistence,OYSTER ONLINE,13-Sep-2018,-20.00
D1300G-CORPORATE RESOURCES,Domestic Goods-Other,WWW.ARGOS.CO.UK,13-Sep-2018,386.88
D1300G-CORPORATE RESOURCES,Travel/Subsistence,OYSTER ONLINE,13-Sep-2018,30.00
D1300G-CORPORATE RESOURCES,Travel/Subsistence,OYSTER ONLINE,13-Sep-2018,-20.00
D1300G-CORPORATE RESOURCES,Travel/Subsistence,OYSTER ONLINE,13-Sep-2018,-20.00
D1300G-CORPORATE RESOURCES,Catering Food & Drink,TESCO STORE 2143,13-Sep-2018,30.00
D1300G-CORPORATE RESOURCES,Travel/Subsistence,OYSTER AUTO-TOP UP,13-Sep-2018,20.00
D1300G-CORPORATE RESOURCES,Accommodation,PREMIER INN 44536895,13-Sep-2018,240.00
D1300G-CORPORATE RESOURCES,Travel/Subsistence,TFL AUTOSETTLEMENT,13-Sep-2018,20.00
D1400G-CHILDREN'S SERVICES,Public Transport,OYSTER ONLINE,13-Sep-2018,30.00
D1400G-CHILDREN'S SERVICES,Catering Food & Drink,LIDL UK  LONDON,13-Sep-2018,31.85
D1400G-CHILDREN'S SERVICES,Domestic Goods-Other,POUNDLAND,13-Sep-2018,6.00
D1100G-ADULTS & PUBLIC HEALTH,Financial Services,CASH ADVANCE FEE,14-Sep-2018,11.80
D1100G-ADULTS & PUBLIC HEALTH,Catering Food & Drink,TESCO STORE 2764,14-Sep-2018,178.32
D1100G-ADULTS & PUBLIC HEALTH,Legal Services-Other,HMCOURTS-SERVICE.G,14-Sep-2018,150.00
D1100G-ADULTS & PUBLIC HEALTH,Building-Others,AMZN Mktp UK,14-Sep-2018,75.52
D1200G-NEIGHBOURHOODS & GROWTH,Travel/Subsistence,TRAINLINE,14-Sep-2018,-24.40
D1300G-CORPORATE RESOURCES,Catering Food & Drink,LAS IGUANAS,14-Sep-2018,184.55
D1300G-CORPORATE RESOURCES,Travel/Subsistence,OYSTER AUTO-TOP UP,14-Sep-2018,40.00
D1300G-CORPORATE RESOURCES,Travel/Subsistence,OYSTER ONLINE,14-Sep-2018,35.00
D1300G-CORPORATE RESOURCES,Catering Food & Drink,TESCO STORES 5999,14-Sep-2018,72.40
D1300G-CORPORATE RESOURCES,Travel/Subsistence,AUTO TOP-UP ARREARS,14-Sep-2018,20.00
D1300G-CORPORATE RESOURCES,Catering Food & Drink,CLIFTON FOOD 'N' WINE,14-Sep-2018,20.00
D1300G-CORPORATE RESOURCES,Travel/Subsistence,OYSTER AUTO-TOP UP,14-Sep-2018,20.00
D1300G-CORPORATE RESOURCES,Domestic Goods-Other,ARGOS,14-Sep-2018,27.99
D1300G-CORPORATE RESOURCES,Travel/Subsistence,OYSTER AUTO-TOP UP,14-Sep-2018,20.00
D1300G-CORPORATE RESOURCES,Catering Food & Drink,TESCO STORE 2143,14-Sep-2018,30.00
D1300G-CORPORATE RESOURCES,Financial Services,WANDSWORTH COUNCIL,14-Sep-2018,12.00
D1300G-CORPORATE RESOURCES,Travel/Subsistence,OYSTER ONLINE,14-Sep-2018,50.00
D1300G-CORPORATE RESOURCES,Travel/Subsistence,AUTO TOP-UP ARREARS,14-Sep-2018,20.00
D1400G-CHILDREN'S SERVICES,Public Transport,OYSTER ONLINE,14-Sep-2018,-30.00
D1800G-NEIGHBOURHOODS & GROWTH (HRA),Building-Timber,SCREWFIX CROYDON PURLEY W,14-Sep-2018,5.49
D1800G-NEIGHBOURHOODS & GROWTH (HRA),Building-Timber,B & Q 1256,14-Sep-2018,60.01
D1100G-ADULTS & PUBLIC HEALTH,Building-Others,AMZN Mktp UK,15-Sep-2018,5.02
D1300G-CORPORATE RESOURCES,Travel/Subsistence,OYSTER AUTO-TOP UP,15-Sep-2018,60.00
D1300G-CORPORATE RESOURCES,Travel/Subsistence,OYSTER AUTO-TOP UP,15-Sep-2018,20.00
D1300G-CORPORATE RESOURCES,Travel/Subsistence,OYSTER AUTO-TOP UP,15-Sep-2018,20.00
D1100G-ADULTS & PUBLIC HEALTH,Building-Others,AMZN Mktp UK,16-Sep-2018,117.71
D1100G-ADULTS & PUBLIC HEALTH,Catering Food & Drink,SAINSBURY'S,16-Sep-2018,25.35
D1200G-NEIGHBOURHOODS & GROWTH,Facilities-Market Research,MAILCHIMP,16-Sep-2018,65.60
D1300G-CORPORATE RESOURCES,Travel/Subsistence,OYSTER AUTO-TOP UP,16-Sep-2018,40.00
D1300G-CORPORATE RESOURCES,Travel/Subsistence,OYSTER AUTO-TOP UP,16-Sep-2018,80.00
D1400G-CHILDREN'S SERVICES,Education-Library Books,Amazon.co.uk,16-Sep-2018,11.81
D1100G-ADULTS & PUBLIC HEALTH,Building-Others,AMZN Mktp UK,17-Sep-2018,15.99
D1100G-ADULTS & PUBLIC HEALTH,Legal Services-Other,HMCOURTS-SERVICE.G,17-Sep-2018,150.00
D1100G-ADULTS & PUBLIC HEALTH,Catering Food & Drink,ICELAND,17-Sep-2018,31.60
D1100G-ADULTS & PUBLIC HEALTH,Catering Food & Drink,TESCO STORE 2764,17-Sep-2018,111.49
D1100G-ADULTS & PUBLIC HEALTH,Catering Food & Drink,TESCO STORES 5999,17-Sep-2018,53.35
D1200G-NEIGHBOURHOODS & GROWTH,Building-Timber,SCREWFIX DIRECT,17-Sep-2018,190.83
D1200G-NEIGHBOURHOODS & GROWTH,Building-Timber,SEALANTS DIRECT,17-Sep-2018,217.91
D1200G-NEIGHBOURHOODS & GROWTH,Domestic Goods-Other,WWW.DISCOUNTDISPLAYS.C,17-Sep-2018,940.08
D1300G-CORPORATE RESOURCES,Accommodation,NOVOTEL HOTELS,17-Sep-2018,174.80
D1300G-CORPORATE RESOURCES,Travel/Subsistence,OYSTER AUTO-TOP UP,17-Sep-2018,20.00
D1300G-CORPORATE RESOURCES,Stationery,CLEAR PRINTS DIGITAL,17-Sep-2018,15.00
D1300G-CORPORATE RESOURCES,Domestic Goods-Other,ARGOS,17-Sep-2018,27.99
D1300G-CORPORATE RESOURCES,Financial Services,M&S BRIXTON,17-Sep-2018,0.00
D1300G-CORPORATE RESOURCES,Travel/Subsistence,TFL ROAD CHARGE,17-Sep-2018,11.50
D1300G-CORPORATE RESOURCES,Travel/Subsistence,TRAINLINE,17-Sep-2018,174.82
D1300G-CORPORATE RESOURCES,Travel/Subsistence,OYSTER ONLINE,17-Sep-2018,30.00
D1300G-CORPORATE RESOURCES,Accommodation,PREMIER INN 44537110,17-Sep-2018,467.50
D1300G-CORPORATE RESOURCES,Travel/Subsistence,OYSTER ONLINE,17-Sep-2018,-20.00
D1300G-CORPORATE RESOURCES,Accommodation,BRITISH A,17-Sep-2018,886.61
D1300G-CORPORATE RESOURCES,Travel/Subsistence,OYSTER ONLINE,17-Sep-2018,60.00
D1300G-CORPORATE RESOURCES,Travel/Subsistence,OYSTER ONLINE,17-Sep-2018,20.00
D1300G-CORPORATE RESOURCES,Travel/Subsistence,OYSTER AUTO-TOP UP,17-Sep-2018,20.00
D1300G-CORPORATE RESOURCES,Travel/Subsistence,OYSTER ONLINE,17-Sep-2018,15.00
D1300G-CORPORATE RESOURCES,Travel/Subsistence,LUL TICKET MACHINE,17-Sep-2018,50.00
D1400G-CHILDREN'S SERVICES,Education-Library Books,AMAZON.CO.UK AMAZON.CO.UK,17-Sep-2018,7.19
D1400G-CHILDREN'S SERVICES,Financial Services,METRO BANK - CLAPHAM HI,17-Sep-2018,150.00
D1100G-ADULTS & PUBLIC HEALTH,Catering Food & Drink,ICELAND,18-Sep-2018,35.65
D1100G-ADULTS & PUBLIC HEALTH,Public Transport,VIRGIN TRAINS,18-Sep-2018,131.00
D1100G-ADULTS & PUBLIC HEALTH,Facilities-Printing,VISTAPR*VistaPrint.com,18-Sep-2018,69.35
D1100G-ADULTS & PUBLIC HEALTH,Catering Food & Drink,TESCO STORE 2143,18-Sep-2018,35.00
D1200G-NEIGHBOURHOODS & GROWTH,Financial Services,L B CAMDEN INT,18-Sep-2018,203.00
D1200G-NEIGHBOURHOODS & GROWTH,Arts & Leisure Services,TICKETS08712200260,18-Sep-2018,49.00
D1300G-CORPORATE RESOURCES,Catering Food & Drink,TESCO STORES 5999,18-Sep-2018,72.40
D1300G-CORPORATE RESOURCES,Financial Services,REGISTER OFFICE,18-Sep-2018,10.00
D1300G-CORPORATE RESOURCES,Travel/Subsistence,OYSTER ONLINE,18-Sep-2018,60.00
D1300G-CORPORATE RESOURCES,Travel/Subsistence,OYSTER ONLINE,18-Sep-2018,79.00
D1300G-CORPORATE RESOURCES,Accommodation,easyHotel London Croydon,18-Sep-2018,282.93
D1300G-CORPORATE RESOURCES,Accommodation,CASH ADVANCE FEE,18-Sep-2018,0.00
D1300G-CORPORATE RESOURCES,Financial Services,LAND REGISTRY,18-Sep-2018,3.00
D1300G-CORPORATE RESOURCES,Stationery,AMZN Mktp UK,18-Sep-2018,12.48
D1300G-CORPORATE RESOURCES,Taxi Fares,SUBWAY TO SE19,18-Sep-2018,27.00
D1300G-CORPORATE RESOURCES,Facilities-Market Research,Prime Fresh,18-Sep-2018,3.99
D1300G-CORPORATE RESOURCES,Travel/Subsistence,OYSTER ONLINE,18-Sep-2018,30.00
D1300G-CORPORATE RESOURCES,Travel/Subsistence,OYSTER ONLINE,18-Sep-2018,20.00
D1300G-CORPORATE RESOURCES,Travel/Subsistence,OYSTER AUTO-TOP UP,18-Sep-2018,20.00
D1300G-CORPORATE RESOURCES,Facilities-Printing,THE GLEANER CO. LTD.,18-Sep-2018,1610.96
D1300G-CORPORATE RESOURCES,Taxi Fares,MAYDAY TO UB2,18-Sep-2018,150.00
D1300G-CORPORATE RESOURCES,Travel/Subsistence,OYSTER AUTO-TOP UP,18-Sep-2018,20.00
D1300G-CORPORATE RESOURCES,Travel/Subsistence,OYSTER ONLINE,18-Sep-2018,35.00
D1300G-CORPORATE RESOURCES,Catering Food & Drink,MARKS & SPENCER SACA,18-Sep-2018,41.30
D1400G-CHILDREN'S SERVICES,Education-Library Books,AMZN MKTP UK AMAZON.CO.UK,18-Sep-2018,3.91
D1400G-CHILDREN'S SERVICES,Education-Library Books,Amazon.co.uk,18-Sep-2018,9.99
D1400G-CHILDREN'S SERVICES,Accommodation,CASH ADVANCE FEE,18-Sep-2018,4.43
D1800G-NEIGHBOURHOODS & GROWTH (HRA),Taxi Fares,TAXI FARE BY VERIFONE,18-Sep-2018,34.40
D1800G-NEIGHBOURHOODS & GROWTH (HRA),Taxi Fares,CMT UK LTD TAXI FARE,18-Sep-2018,28.60
D1100G-ADULTS & PUBLIC HEALTH,Facilities-Printing,VISTAPR*VistaPrint.com,19-Sep-2018,-24.96
D1100G-ADULTS & PUBLIC HEALTH,Catering Food & Drink,MN WEST NORWOOD HALAL,19-Sep-2018,79.53
D1100G-ADULTS & PUBLIC HEALTH,Catering Food & Drink,WWW.ICELAND.CO.UK,19-Sep-2018,144.16
D1200G-NEIGHBOURHOODS & GROWTH,Consultancy-Business,WUFOO.COM,19-Sep-2018,14.00
D1200G-NEIGHBOURHOODS & GROWTH,Building-Timber,PREMIER SHEDS,19-Sep-2018,241.98
D1300G-CORPORATE RESOURCES,Travel/Subsistence,TFL ROAD CHARGE,19-Sep-2018,11.50
D1300G-CORPORATE RESOURCES,Domestic Goods-Other,ARGOS RETAIL GROUP,19-Sep-2018,74.98
D1300G-CORPORATE RESOURCES,Travel/Subsistence,OYSTER ONLINE,19-Sep-2018,25.00
D1300G-CORPORATE RESOURCES,Cemetery & Crematorium,DIGNITY FUNERALS,19-Sep-2018,5827.00
D1300G-CORPORATE RESOURCES,Travel/Subsistence,TRAINLINE,19-Sep-2018,201.85
D1300G-CORPORATE RESOURCES,Travel/Subsistence,OYSTER AUTO-TOP UP,19-Sep-2018,60.00
D1300G-CORPORATE RESOURCES,Financial Services,HM PASSPORT OFFICE,19-Sep-2018,162.00
D1300G-CORPORATE RESOURCES,Travel/Subsistence,OYSTER ONLINE,19-Sep-2018,20.00
D1300G-CORPORATE RESOURCES,Catering Food & Drink,TESCO STORES-2143,19-Sep-2018,12.00
D1300G-CORPORATE RESOURCES,Travel/Subsistence,OYSTER ONLINE,19-Sep-2018,20.00
D1300G-CORPORATE RESOURCES,Travel/Subsistence,OYSTER AUTO-TOP UP,19-Sep-2018,40.00
D1300G-CORPORATE RESOURCES,Taxi Fares,SW2 TO FAMILY C RETURN,19-Sep-2018,120.00
D1300G-CORPORATE RESOURCES,Travel/Subsistence,LUL TICKET MACHINE,19-Sep-2018,260.00
D1300G-CORPORATE RESOURCES,Accommodation,HOLIDAY INN BARNSLEY,19-Sep-2018,534.00
D1300G-CORPORATE RESOURCES,Education-Library Books,AMZN Mktp UK,19-Sep-2018,27.99
D1300G-CORPORATE RESOURCES,Travel/Subsistence,AUTO TOP-UP ARREARS,19-Sep-2018,20.00
D1300G-CORPORATE RESOURCES,Accommodation,easyHotel London Croydon,19-Sep-2018,10.00
D1300G-CORPORATE RESOURCES,Taxi Fares,TW7 TO LUNAR HSE,19-Sep-2018,90.00
D1400G-CHILDREN'S SERVICES,Catering Food & Drink,TESCO STORE 2143,19-Sep-2018,11.15
D1400G-CHILDREN'S SERVICES,Public Transport,OYSTER ONLINE,19-Sep-2018,30.00
D1200G-NEIGHBOURHOODS & GROWTH,Furniture-Domestic Furniture,WWW.NINGBO.CO.UK,20-Sep-2018,1012.80
D1200G-NEIGHBOURHOODS & GROWTH,Travel/Subsistence,TFL ROAD CHARGE,20-Sep-2018,11.50
D1300G-CORPORATE RESOURCES,Conference Expenses,WWW.ADASS.ORG.UK,20-Sep-2018,1026.00
D1300G-CORPORATE RESOURCES,Travel/Subsistence,OYSTER AUTO-TOP UP,20-Sep-2018,20.00
D1300G-CORPORATE RESOURCES,Travel/Subsistence,TRAINLINE,20-Sep-2018,132.52
D1300G-CORPORATE RESOURCES,Catering Food & Drink,TESCO STORES 5999,20-Sep-2018,72.40
D1300G-CORPORATE RESOURCES,IT Software,ADOBE  CREATIVE CLOUD,20-Sep-2018,141.60
D1300G-CORPORATE RESOURCES,Travel/Subsistence,LUL TICKET MACHINE,20-Sep-2018,50.00
D1300G-CORPORATE RESOURCES,Travel/Subsistence,OYSTER ONLINE,20-Sep-2018,-30.00
D1300G-CORPORATE RESOURCES,Catering Food & Drink,TESCO STORE 2143,20-Sep-2018,30.00
D1300G-CORPORATE RESOURCES,Travel/Subsistence,OYSTER AUTO-TOP UP,20-Sep-2018,20.00
D1300G-CORPORATE RESOURCES,Domestic Goods-Other,WWW.ARGOS.CO.UK,20-Sep-2018,339.93
D1300G-CORPORATE RESOURCES,Travel/Subsistence,OYSTER AUTO-TOP UP,20-Sep-2018,20.00
D1300G-CORPORATE RESOURCES,Furniture-Domestic Furniture,WWW.IKEA.COM,20-Sep-2018,575.00
D1300G-CORPORATE RESOURCES,Financial Services,LAND REGISTRY,20-Sep-2018,3.00
D1300G-CORPORATE RESOURCES,Travel/Subsistence,OYSTER ONLINE,20-Sep-2018,30.00
D1300G-CORPORATE RESOURCES,Professional & Advisory Services,UNITE STUDENTS,20-Sep-2018,647.14
D1300G-CORPORATE RESOURCES,Taxi Fares,GATWICK TO CR0,20-Sep-2018,100.00
D1300G-CORPORATE RESOURCES,Mail Services-Postage,POST OFFICE SELF SERVI,20-Sep-2018,16.80
D1300G-CORPORATE RESOURCES,Taxi Fares,CIVIC TO CR0,20-Sep-2018,60.00
D1400G-CHILDREN'S SERVICES,Travel/Subsistence,OYSTER AUTO-TOP UP,20-Sep-2018,40.00
D1400G-CHILDREN'S SERVICES,Mail Services-Postage,POST OFFICE SELF SERVI,20-Sep-2018,5.36
D1400G-CHILDREN'S SERVICES,Public Transport,OYSTER ONLINE,20-Sep-2018,90.00
D1400G-CHILDREN'S SERVICES,Domestic Goods-Other,NATWEST BANK  /,20-Sep-2018,40.00
D1100G-ADULTS & PUBLIC HEALTH,Legal Services-Other,HMCOURTS-SERVICE.G,21-Sep-2018,150.00
D1100G-ADULTS & PUBLIC HEALTH,Banquet & Catering,WWW.EVENTSUPPLIES.CO.U,21-Sep-2018,47.40
D1200G-NEIGHBOURHOODS & GROWTH,Facilities-Advertising,FACEBK S3459GE5B2,21-Sep-2018,40.00
D1200G-NEIGHBOURHOODS & GROWTH,Catering Food & Drink,SAINSBURYS S/MKTS,21-Sep-2018,1.00
D1200G-NEIGHBOURHOODS & GROWTH,Building-Timber,SCREWFIX TOOTING,21-Sep-2018,31.69
D1200G-NEIGHBOURHOODS & GROWTH,Catering Food & Drink,SUPER DISCOUNT STO,21-Sep-2018,35.84
D1200G-NEIGHBOURHOODS & GROWTH,Furniture-Domestic Furniture,SP * RINKIT.COM,21-Sep-2018,107.88
D1200G-NEIGHBOURHOODS & GROWTH,Domestic Goods-Other,LOCKFIELD SYSTEMS LTD,21-Sep-2018,47.40
D1200G-NEIGHBOURHOODS & GROWTH,Travel/Subsistence,ZIPCAR,21-Sep-2018,95.00
D1200G-NEIGHBOURHOODS & GROWTH,Building-Timber,SCREWFIX DIRECT,21-Sep-2018,119.96
D1300G-CORPORATE RESOURCES,Travel/Subsistence,TRAINLINE,21-Sep-2018,93.55
D1300G-CORPORATE RESOURCES,Travel/Subsistence,OYSTER AUTO-TOP UP,21-Sep-2018,60.00
D1300G-CORPORATE RESOURCES,Accommodation,Nottingham Gateway Hotel,21-Sep-2018,218.00
D1300G-CORPORATE RESOURCES,Catering Food & Drink,ASDA GEORGE COM LEEDS,21-Sep-2018,59.00
D1300G-CORPORATE RESOURCES,Travel/Subsistence,EAST MIDLANDS TRAINS,21-Sep-2018,173.00
D1300G-CORPORATE RESOURCES,Travel/Subsistence,OYSTER AUTO-TOP UP,21-Sep-2018,40.00
D1300G-CORPORATE RESOURCES,Travel/Subsistence,OYSTER AUTO-TOP UP,21-Sep-2018,80.00
D1300G-CORPORATE RESOURCES,Travel/Subsistence,OYSTER ONLINE,21-Sep-2018,-25.00
D1400G-CHILDREN'S SERVICES,IT Office Equipment,AMZN Mktp UK,21-Sep-2018,70.45
D1400G-CHILDREN'S SERVICES,Domestic Goods-Other,CASH ADVANCE FEE,21-Sep-2018,2.95
D1400G-CHILDREN'S SERVICES,IT Office Equipment,Amazon.co.uk,21-Sep-2018,97.20
D1400G-CHILDREN'S SERVICES,Public Transport,BRIXTONHILL EXPRESS,21-Sep-2018,90.00
D1800G-NEIGHBOURHOODS & GROWTH (HRA),Stationery,AMZN Mktp UK,21-Sep-2018,23.98
D1800G-NEIGHBOURHOODS & GROWTH (HRA),Facilities-Market Research,Amazon Prime,21-Sep-2018,7.99
D1300G-CORPORATE RESOURCES,Travel/Subsistence,OYSTER AUTO-TOP UP,22-Sep-2018,40.00
D1300G-CORPORATE RESOURCES,Travel/Subsistence,OYSTER AUTO-TOP UP,22-Sep-2018,20.00
D1300G-CORPORATE RESOURCES,Travel/Subsistence,OYSTER AUTO-TOP UP,22-Sep-2018,100.00
D1300G-CORPORATE RESOURCES,Mail Services-Postage,POST OFFICE COUNTER,22-Sep-2018,8.85
D1300G-CORPORATE RESOURCES,Travel/Subsistence,OYSTER AUTO-TOP UP,22-Sep-2018,40.00
D1400G-CHILDREN'S SERVICES,Education-Library Books,Amazon.co.uk,22-Sep-2018,16.99
D1300G-CORPORATE RESOURCES,Travel/Subsistence,OYSTER AUTO-TOP UP,23-Sep-2018,40.00
D1300G-CORPORATE RESOURCES,Travel/Subsistence,OYSTER AUTO-TOP UP,23-Sep-2018,20.00
D1300G-CORPORATE RESOURCES,Travel/Subsistence,OYSTER AUTO-TOP UP,23-Sep-2018,40.00
D1300G-CORPORATE RESOURCES,Travel/Subsistence,OYSTER AUTO-TOP UP,23-Sep-2018,80.00
D1400G-CHILDREN'S SERVICES,Domestic Goods-Other,AMZN Mktp UK,23-Sep-2018,22.47
D1100G-ADULTS & PUBLIC HEALTH,Catering Food & Drink,TESCO STORES 5999,24-Sep-2018,68.40
D1100G-ADULTS & PUBLIC HEALTH,Catering Food & Drink,ICELAND,24-Sep-2018,21.15
D1200G-NEIGHBOURHOODS & GROWTH,Facilities-Market Research,HOO,24-Sep-2018,30.00
D1300G-CORPORATE RESOURCES,Travel/Subsistence,AUTO TOP-UP ARREARS,24-Sep-2018,20.00
D1300G-CORPORATE RESOURCES,Travel/Subsistence,AUTO TOP-UP ARREARS,24-Sep-2018,20.00
D1300G-CORPORATE RESOURCES,Utilities,E.ON ENERGY SOLUTIONS,24-Sep-2018,1889.00
D1300G-CORPORATE RESOURCES,Facilities-Market Research,123 REG R/T,24-Sep-2018,23.99
D1300G-CORPORATE RESOURCES,Taxi Fares,CIVIC SE11 RETURN,24-Sep-2018,40.00
D1300G-CORPORATE RESOURCES,Catering Food & Drink,TESCO STORE 2143,24-Sep-2018,40.00
D1300G-CORPORATE RESOURCES,Travel/Subsistence,LUL TICKET MACHINE,24-Sep-2018,100.00
D1300G-CORPORATE RESOURCES,Travel/Subsistence,OYSTER AUTO-TOP UP,24-Sep-2018,20.00
D1300G-CORPORATE RESOURCES,Facilities-Advertising,WH SMITH,24-Sep-2018,60.00
D1300G-CORPORATE RESOURCES,Catering Food & Drink,MARKS&SPENCER PLC SACA,24-Sep-2018,18.75
D1300G-CORPORATE RESOURCES,Catering Food & Drink,TESCO STORES 5999,24-Sep-2018,72.40
D1300G-CORPORATE RESOURCES,Travel/Subsistence,TRAINLINE,24-Sep-2018,25.05
D1300G-CORPORATE RESOURCES,Travel/Subsistence,OYSTER ONLINE,24-Sep-2018,20.00
D1300G-CORPORATE RESOURCES,Financial Services,LAND REGISTRY,24-Sep-2018,6.00
D1300G-CORPORATE RESOURCES,Domestic Goods-Other,ARGOS,24-Sep-2018,339.99
D1300G-CORPORATE RESOURCES,Travel/Subsistence,OYSTER ONLINE,24-Sep-2018,25.00
D1400G-CHILDREN'S SERVICES,Education-Library Books,AMZN Mktp UK,24-Sep-2018,26.72
D1400G-CHILDREN'S SERVICES,Public Transport,OYSTER ONLINE,24-Sep-2018,30.00
D1100G-ADULTS & PUBLIC HEALTH,Catering Food & Drink,SAINSBURY'S,25-Sep-2018,10.82
D1200G-NEIGHBOURHOODS & GROWTH,Building-Timber,SCREWFIX DIRECT,25-Sep-2018,46.94
D1200G-NEIGHBOURHOODS & GROWTH,Education-Library Books,AMZN MKTP UK AMAZON.CO.UK,25-Sep-2018,326.19
D1300G-CORPORATE RESOURCES,Furniture-Office Furniture,WWW.POSTURITE.CO.UK,25-Sep-2018,161.93
D1300G-CORPORATE RESOURCES,Travel/Subsistence,OYSTER ONLINE,25-Sep-2018,50.00
D1300G-CORPORATE RESOURCES,Travel/Subsistence,OYSTER ONLINE,25-Sep-2018,90.00
D1300G-CORPORATE RESOURCES,Travel/Subsistence,TRAINLINE,25-Sep-2018,406.34
D1300G-CORPORATE RESOURCES,Travel/Subsistence,OYSTER ONLINE,25-Sep-2018,90.00
D1300G-CORPORATE RESOURCES,Travel/Subsistence,OYSTER ONLINE,25-Sep-2018,20.00
D1300G-CORPORATE RESOURCES,Travel/Subsistence,LUL TICKET MACHINE,25-Sep-2018,85.00
D1300G-CORPORATE RESOURCES,Travel/Subsistence,TRAINLINE,25-Sep-2018,136.50
D1300G-CORPORATE RESOURCES,Facilities-Advertising,WOODSIDE STORES,25-Sep-2018,100.00
D1300G-CORPORATE RESOURCES,Financial Services-Grants,WWW.POPPYLOTTERY.SAFEA,25-Sep-2018,865.00
D1300G-CORPORATE RESOURCES,Mail Services-Postage,POST OFFICE SELF SERVI,25-Sep-2018,14.07
D1300G-CORPORATE RESOURCES,Travel/Subsistence,TFL ROAD CHARGE,25-Sep-2018,11.50
D1300G-CORPORATE RESOURCES,Travel/Subsistence,TRAINLINE,25-Sep-2018,80.85
D1300G-CORPORATE RESOURCES,Travel/Subsistence,OYSTER AUTO-TOP UP,25-Sep-2018,20.00
D1300G-CORPORATE RESOURCES,Financial Services,THE HOME OFFICE,25-Sep-2018,75.00
D1300G-CORPORATE RESOURCES,Travel/Subsistence,TRAINLINE,25-Sep-2018,146.85
D1400G-CHILDREN'S SERVICES,Education-Library Books,Amazon.co.uk,25-Sep-2018,6.99
D1100G-ADULTS & PUBLIC HEALTH,Catering Food & Drink,LIDL UK LONDON,26-Sep-2018,25.92
D1200G-NEIGHBOURHOODS & GROWTH,Travel/Subsistence,LUL TICKET MACHINE,26-Sep-2018,60.00
D1200G-NEIGHBOURHOODS & GROWTH,Building-Timber,SCREWFIX BRIXTON,26-Sep-2018,47.97
D1300G-CORPORATE RESOURCES,Arts & Leisure Services,THE FREE WORD CENTRE,26-Sep-2018,220.00
D1300G-CORPORATE RESOURCES,Domestic Goods-Other,POUNDLAND LTD,26-Sep-2018,31.00
D1300G-CORPORATE RESOURCES,Healthcare Services,WWW.CIPS.ORG,26-Sep-2018,134.00
D1300G-CORPORATE RESOURCES,Travel/Subsistence,OYSTER AUTO-TOP UP,26-Sep-2018,20.00
D1300G-CORPORATE RESOURCES,Accommodation,THE EDGCUMBE,26-Sep-2018,45.00
D1300G-CORPORATE RESOURCES,Travel/Subsistence,OYSTER ONLINE,26-Sep-2018,30.00
D1300G-CORPORATE RESOURCES,Travel/Subsistence,OYSTER AUTO-TOP UP,26-Sep-2018,20.00
D1300G-CORPORATE RESOURCES,Travel/Subsistence,TRAINLINE,26-Sep-2018,70.17
D1300G-CORPORATE RESOURCES,Travel/Subsistence,OYSTER AUTO-TOP UP,26-Sep-2018,40.00
D1300G-CORPORATE RESOURCES,Travel/Subsistence,OYSTER AUTO-TOP UP,26-Sep-2018,20.00
D1300G-CORPORATE RESOURCES,Catering Food & Drink,MARKS&SPENCER PLC SACA,26-Sep-2018,26.80
D1300G-CORPORATE RESOURCES,Mail Services-Postage,THE POST OFFICE,26-Sep-2018,340.00
D1300G-CORPORATE RESOURCES,Financial Services,LONDON BRGH OF LAMBETH,26-Sep-2018,10.00
D1300G-CORPORATE RESOURCES,Travel/Subsistence,OYSTER AUTO-TOP UP,26-Sep-2018,20.00
D1300G-CORPORATE RESOURCES,Travel/Subsistence,LUL TICKET MACHINE,26-Sep-2018,70.00
D1300G-CORPORATE RESOURCES,Consultancy-Business,WWW.SHURGARD.CO.UK,26-Sep-2018,212.00
D1300G-CORPORATE RESOURCES,Facilities-Storage,BIG YELLOW BOX & LOCK,26-Sep-2018,98.00
D1300G-CORPORATE RESOURCES,Travel/Subsistence,TFL OYST PHOTOCARD,26-Sep-2018,10.00
D1300G-CORPORATE RESOURCES,Financial Services,WANDSWORTH COUNCIL,26-Sep-2018,30.00
D1300G-CORPORATE RESOURCES,Travel/Subsistence,OYSTER ONLINE,26-Sep-2018,90.00
D1300G-CORPORATE RESOURCES,Domestic Goods-Other,ARGOS,26-Sep-2018,34.99
D1300G-CORPORATE RESOURCES,Travel/Subsistence,OYSTER ONLINE,26-Sep-2018,-25.00
D1300G-CORPORATE RESOURCES,Domestic Goods-Other,POUNDLAND LTD 1203,26-Sep-2018,44.00
D1300G-CORPORATE RESOURCES,Travel/Subsistence,OYSTER AUTO-TOP UP,26-Sep-2018,20.00
D1400G-CHILDREN'S SERVICES,Travel/Subsistence,LONDON & SOUTH EAS,26-Sep-2018,62.60
D1400G-CHILDREN'S SERVICES,Public Transport,OYSTER ONLINE,26-Sep-2018,0.00
D1400G-CHILDREN'S SERVICES,Education-Other,LAMBETH INTERNET PAYM,26-Sep-2018,21.00
D1400G-CHILDREN'S SERVICES,Travel/Subsistence,TFL AUTOSETTLEMENT,26-Sep-2018,40.00
D1400G-CHILDREN'S SERVICES,Education-Other,LAMBETH INTERNET PAYM,26-Sep-2018,21.00
D1100G-ADULTS & PUBLIC HEALTH,Legal Services-Other,HMCOURTS-SERVICE.G,27-Sep-2018,150.00
D1200G-NEIGHBOURHOODS & GROWTH,Cycles Purchase,BRIXTON CYCLES LTD,27-Sep-2018,125.00
D1200G-NEIGHBOURHOODS & GROWTH,Building-Timber,ACRE LANE BUILDERS,27-Sep-2018,250.00
D1200G-NEIGHBOURHOODS & GROWTH,Catering Food & Drink,TESCO STORES-2143,27-Sep-2018,18.62
D1300G-CORPORATE RESOURCES,Taxi Fares,KT4 TO KINGS COLL,27-Sep-2018,70.00
D1300G-CORPORATE RESOURCES,Travel/Subsistence,AIR27091802_509449 MYHOLI,27-Sep-2018,5.44
D1300G-CORPORATE RESOURCES,Travel/Subsistence,AUTO TOP-UP ARREARS,27-Sep-2018,20.00
D1300G-CORPORATE RESOURCES,Financial Services,PRESCRIPTIONS CHG,27-Sep-2018,147.90
D1300G-CORPORATE RESOURCES,Accommodation,TRAVELODGE GB0000,27-Sep-2018,53.50
D1300G-CORPORATE RESOURCES,Travel/Subsistence,OYSTER AUTO-TOP UP,27-Sep-2018,60.00
D1300G-CORPORATE RESOURCES,Travel/Subsistence,OYSTER ONLINE,27-Sep-2018,49.00
D1300G-CORPORATE RESOURCES,Financial Services,LB CROYDON,27-Sep-2018,30.00
D1300G-CORPORATE RESOURCES,Travel/Subsistence,OYSTER ONLINE,27-Sep-2018,100.00
D1300G-CORPORATE RESOURCES,Travel/Subsistence,OYSTER AUTO-TOP UP,27-Sep-2018,20.00
D1300G-CORPORATE RESOURCES,Travel/Subsistence,LUL TICKET MACHINE,27-Sep-2018,100.00
D1300G-CORPORATE RESOURCES,Accommodation,EASYJET,27-Sep-2018,394.14
D1300G-CORPORATE RESOURCES,Accommodation,BRITISH A,27-Sep-2018,1133.55
D1300G-CORPORATE RESOURCES,Catering Food & Drink,TESCO STORES 5999,27-Sep-2018,72.40
D1300G-CORPORATE RESOURCES,Domestic Goods-Other,MOTHERCARE DIRECT-E-CO,27-Sep-2018,64.99
D1300G-CORPORATE RESOURCES,Travel/Subsistence,OYSTER AUTO-TOP UP,27-Sep-2018,20.00
D1300G-CORPORATE RESOURCES,Travel/Subsistence,OYSTER ONLINE,27-Sep-2018,25.00
D1300G-CORPORATE RESOURCES,Financial Services,HM PASSPORT OFFICE,27-Sep-2018,85.00
D1400G-CHILDREN'S SERVICES,Education-Library Books,Amazon.co.uk,27-Sep-2018,9.33
D1400G-CHILDREN'S SERVICES,Education-Library Books,AMZN Mktp UK,27-Sep-2018,16.90
D1400G-CHILDREN'S SERVICES,Public Transport,OYSTER AUTO-TOP UP,27-Sep-2018,20.00
D1800G-NEIGHBOURHOODS & GROWTH (HRA),Building-Timber,B & Q 1009,27-Sep-2018,17.72
D1100G-ADULTS & PUBLIC HEALTH,Catering Food & Drink,ICELAND,28-Sep-2018,30.00
D1200G-NEIGHBOURHOODS & GROWTH,Building-Plumbing,PLUMB CENTER FFO,28-Sep-2018,48.73
D1200G-NEIGHBOURHOODS & GROWTH,IT Services,Dropbox CL11M5R88F65,28-Sep-2018,36.00
D1300G-CORPORATE RESOURCES,Facilities-Storage,SAFESTORE LIMITED,28-Sep-2018,518.77
D1300G-CORPORATE RESOURCES,Travel/Subsistence,OYSTER AUTO-TOP UP,28-Sep-2018,20.00
D1300G-CORPORATE RESOURCES,Travel/Subsistence,TFL AUTOSETTLEMENT,28-Sep-2018,40.00
D1300G-CORPORATE RESOURCES,Travel/Subsistence,TRAINLINE,28-Sep-2018,44.50
D1300G-CORPORATE RESOURCES,Travel/Subsistence,OYSTER AUTO-TOP UP,28-Sep-2018,60.00
D1300G-CORPORATE RESOURCES,Travel/Subsistence,LUL TICKET MACHINE,28-Sep-2018,30.00
D1300G-CORPORATE RESOURCES,Travel/Subsistence,OYSTER AUTO-TOP UP,28-Sep-2018,40.00
D1300G-CORPORATE RESOURCES,Travel/Subsistence,TFL AUTOSETTLEMENT,28-Sep-2018,40.00
D1300G-CORPORATE RESOURCES,Domestic Goods-Other,MOTHERCARE DIRECT-E-CO,28-Sep-2018,299.00
D1300G-CORPORATE RESOURCES,Travel/Subsistence,OYSTER ONLINE,28-Sep-2018,30.00
D1300G-CORPORATE RESOURCES,Travel/Subsistence,OYSTER AUTO-TOP UP,28-Sep-2018,20.00
D1300G-CORPORATE RESOURCES,Travel/Subsistence,VIRGIN TRAINS,28-Sep-2018,87.25
D1400G-CHILDREN'S SERVICES,Catering Food & Drink,TESCO STORE 2143,28-Sep-2018,156.28
D1400G-CHILDREN'S SERVICES,Education-Other,WWW.THEBOOKSELLER.COM,28-Sep-2018,213.25
D1400G-CHILDREN'S SERVICES,Education-Library Books,Amazon.co.uk,28-Sep-2018,6.37
D1400G-CHILDREN'S SERVICES,Public Transport,OYSTER AUTO-TOP UP,28-Sep-2018,20.00
D1800G-NEIGHBOURHOODS & GROWTH (HRA),Mail Services-Postage,POST OFFICE COUNTER,28-Sep-2018,1.77
D1200G-NEIGHBOURHOODS & GROWTH,Horticultural-Other,ACP* KOEMAN FLOWERBULBS,29-Sep-2018,117.89
D1200G-NEIGHBOURHOODS & GROWTH,Consultancy-Business,FORTRESS MASTER LOCKSMITH,29-Sep-2018,8.40
D1300G-CORPORATE RESOURCES,Travel/Subsistence,OYSTER AUTO-TOP UP,29-Sep-2018,20.00
D1300G-CORPORATE RESOURCES,Travel/Subsistence,OYSTER AUTO-TOP UP,29-Sep-2018,40.00
D1300G-CORPORATE RESOURCES,Travel/Subsistence,OYSTER AUTO-TOP UP,29-Sep-2018,60.00
D1300G-CORPORATE RESOURCES,Travel/Subsistence,OYSTER AUTO-TOP UP,29-Sep-2018,40.00
D1100G-ADULTS & PUBLIC HEALTH,Facilities-Market Research,Amazon Prime,30-Sep-2018,7.99
D1200G-NEIGHBOURHOODS & GROWTH,Consultancy-Business,CANVAS EVENTS LTD,30-Sep-2018,36.00
D1200G-NEIGHBOURHOODS & GROWTH,Travel/Subsistence,TFL CYCLE HIRE,30-Sep-2018,90.00
D1200G-NEIGHBOURHOODS & GROWTH,Facilities-Advertising,FACEBK VJCB8GE6B2,30-Sep-2018,14.00
D1300G-CORPORATE RESOURCES,Travel/Subsistence,OYSTER AUTO-TOP UP,30-Sep-2018,20.00
D1300G-CORPORATE RESOURCES,Travel/Subsistence,OYSTER AUTO-TOP UP,30-Sep-2018,20.00
D1300G-CORPORATE RESOURCES,Travel/Subsistence,OYSTER AUTO-TOP UP,30-Sep-2018,40.00
